Workbook

Sheet INSTRUCTIONS
A2: INSTRUCTIONS TO USE THE AUTOMATIC ADVANCEMENT SCHEME (AAS) SOFTWARE
A4: THIS IS A FREE SOFTWARE PREPARED FOR THE BENEFIT OF A.P. UNITED TEACHERS FEDERATION
A5: MEMBERS OF UTF PRAKASAM
E7: PREPARED BY
F9: SANNAMURI MARUTHI
F10: SCHOOL ASSISTANT (MATHS)
F11: Z.P.H. SCHOOL
F12: CHAKRAYAPALEM
F13: ADDANKI MANDAL
F14: PRAKASAM DIST.
F15: Mail ID: maruthisannamuri@rediffmail.com
A17: GUIDED BY | I17: TECHNICALLY GUIDED BY
B19: AAVULA THIRUMALESH | J19: SRINIVASARAO THANGA ( )
B20: HEADMASTER | J20: S.A.(P.S.)
B21: Z.P.H. SCHOOL | J21: Z.P.H.SCHOOL
B22: DAMMALAPADU | J22: MANGINAPUDI
B23: MUPPALLA MANDAL | J23: DONAKONDA(MANDAL)
B24: GUNTUR DIST. | J24: PRAKASAM(DT)
B25: Mail ID: thirumalaaavula@rediffmail.com | J25: Mail ID: srinivasarao.thanga@gmail.com
J26: Site URL: http://iteacherz.blogspot.com
A28: 1. | B28: THIS SOFTWARE WILL BE WORKED ONLY IN MS EXCEL 2007 ONLY
A29: 2. | B29: SELECT THE WORK SHEET "TAB" AND FILL THE DATA IN BLUE COLOUR CELLS AND TAKE THE PRINT IN LEGAL SHEETS
A31: 3. | B31: THIS IS MAY NOT BE WORK FOR 18 YEARS SCALE IN THE PROMOTION POST
A32: 4. | B32: THE TEACHERS SHOULD CAREFUL AT SCALES IN THE PROCEEDINGS FOR 24 YEARS SCALE HOLDERS (ie THEY HAVE TO ENTER THE REMARKS COLUMN MANUALLY IN PROCEEDINGS)
A34: 5. | B34: AMPLE CARE HAS BEEN TAKEN IN PREPARING THIS EXCEL BOOK. WE ARE NOT RESPONSEBLE FOR ANY IRREGULARITY DONE BY USING THIS EXCEL BOOK.
A36: 6. | B36: MAKE USE OF THIS EXCEL BOOK AND DO THE AAS BILLS AT THE EARLIEST POSSIBLE
A37: 7. | B37: IF YOU WANT CHANGE MANUALLY UNPROTECT ANY SHEET OTHER THAN INSTRUCTIONS AND WORKSHEET, PASSWORD IS dheeraj
A39: 8. | B39: SINCE THIS IS MACRO ENABLED WORK BOOK, DO THE FOLLOWING
C40: 1. Click the Microsoft Office Button( ), and then click Excel Options.
C41: 2. Click Trust Center, click Trust Center Settings, and then click Macro Settings.
C42: 3. Then check the radio button Enable all macros.
B43: WISH YOU ALL THE BEST

Sheet WORK SHEET
A1: WORK SHEET
A2: Individual Data | B2: NAME OF THE TEACHER | D2: : | E2: SK.KHAJARAHAMTULLA | H2: PLEASE READ THE INSTRECTIONS CAREFULLY BEFORE FILL THE WORK SHEET
B3: SCHOOL | D3: : | E3: MPPS(G)
B4: VILLAGE / TOWN | D4: : | E4: POTLAPADU
B5: MANDAL | D5: : | E5: KURICHEDU
B6: DISTRICT | D6: : | E6: PRAKASAM
B7: EMPLOYEE CODE | D7: : | E7: 724731
B8: BANK ACCOUNT NO. | D8: : | E8: 11393579473
B9: G.P.F / ZPPF | D9: : | E9: Z.P.P.F.
B10: G.P.F / ZPPF NO. | E10: 17396
B11: APGLI No. | D11: : | E11: L2107590
B12: APGLI PREMIUM | D12: :Rs | E12: 450
B13: DO YOU HAVE EXEMPTION WITH AGE ?(APGLI) | E13: NO
A14: DDO Data | B14: PROCEEDINGS Rc.No. | D14: : | E14: 2/AAS/2011
B15: PROCEEDINGS DATE | D15: : | E15: 2011-08-01
B16: NAME OF THE D.D.O.( IF G.H.M. Enter Dy.E.O. ) | D16: : | E16: N.vijayakumar
B17: DDO CODE | D17: : | E17: 7050308026
B18: NAME OF SUB-TREASURY | D18: : | E18: STO;DARSI
B19: BANK CODE | D19: : | E19: 3641
B20: NAME OF THE BANK | D20: : | E20: SYNDICATE BANK DARSI
B21: NAME OF THE MESSENGER | D21: : | E21: J.V.V.M.SUDHAKAR
B22: MESSENGER DESIGNATION | D22: : | E22: M.R.P
B23: ARE YOU A GAZITTED HEAD MASTER? | D23: : | E23: NO
C24: YOUR EDUCATIONAL DIVISION NAME | D24: : | E24: NO
B25: POST HELD ( AS ON 1/02/2010 ) | D25: : | E25: S.G.T.
B26: SCALE ( ORDINARY / SG / SPP / SAPP ) ON 1/02/2010 | D26: : | E26: S.G
C27: CHOOSE THE PATRON DO YOU HAVE? | E27: S.G./SPP-1/SPP-II
A28: Bill Data | B28: DATE OF JOIN IN THE POST WHICH HELD ON 1/2/2010 | D28: : | E28: 6 | F28: AUGUST | G28: 1997
B29: BILL CLAIMED UPTO (LAST DAY OF MONTH) | D29: : | E29: 30 | F29: JULY | G29: 2011
B30: TYPE OF SCHOOL NOW WORKING | D30: : | E30: M.P.P.School
B31: WHETHER DEPARTMENTAL TESTS PASSED | E31: NO
B32: WHETHER SUBSTANTIVE OR OFFICIATING | D32: : | E32: SUBSTANTIVE
B33: BASIC PAY ( AS ON 1/2/2010 ) | D33: :Rs | E33: 14440
B34: F.P | D34: :Rs | E34: 0
B35: P.P | D35: :Rs | E35: 0
B36: HRA % (ON 1/2/2010) | D36: : | E36: 10 &12
B37: IF HRA CHANGED THEN CHANGED HRA % | D37: : | E37: 10 &12
C38: HRA% CHANGED DATE | D38: : | E38: 1 | F38: APRIL | G38: 2010
B39: INCREMENT MONTH ( ON 1ST JULY 2008 ) | D39: : | E39: AUGUST
C40: ARE YOU TAKEN 8/16/24 AFTER 01-02-2010? | E40: NO
B41: DID YOU GET PROMOTION AFTER 01-02-2010? | D41: : | E41: NO
B42: IF PROMOTED | C42: PROMO. FIX. OPTED (D.O.P. / NEXT INCRE.) | D42: :
C43: DATE OF PROMOTION | D43: : | H43: =J78 -> YOU HAVE BENIFIT
C44: POST HELD ( AFTER PROMOTION ) | D44: :
C45: SCALE OF PAY ( AFTER PROMOTION ) | D45: :Rs
C46: ARE YOU HAVE E.O.L.s IN THIS CADRE? | E46: NO | Z46: 6700-200-7300-220-7960-240-8680-260-9460-280-10300-300-11200-330-12190-360-13270-390-14440-420-15700-450-17050-490-18520-530-20110-570-21820-610-23650-650-25600-700-27700-750-29950-800-32350-850-34900-900-37600-970-40510-1040-43630-1110-46960-1200-51760-130055660(80)
C47: FILL THE DATES (MM/DD/YYYY)FORM
C48: PUT '0'(1/0/1900) IN THE REMAINING BOXES
C51: TO INCREMENT MONTH | E51: =IF(E126<8,E126+12,E126) -> 8 | F51: =E126 -> 8 | H51: =IF(E36=E37,"x","y") -> x
Y52: 1 | Z52: 6500 | AA52: 6700 | AB52: 6900 | AC52: 1 | AG52: 5470 | AH52: 5470-12385 | AI52: 10900-31550 | AJ52: 5470-145-6040-155-6505-170-7015-185-7570-200-8170-215-8815-235-9520-255-10285-280-11125-315-12385 | AK52: 10900-300-11200-330-12190-360-13270-390-14440-420-15700-450-17050-490-18520-530-20110-570-21820-610-23650-650-25600-700-27700-750-29950-800-31550 | AL52: 10900 | AM52: 8 | AN52: 2008-08-01 | AO52: 40026 | AP52: 2008-07-01 | AQ52: 2009-07-01 | AR52: 2010-07-01 | AS52: 1 | AT52: Assistance to Local Bodies for Primary Education | AU52: 0 | AV52: 3 | AW52: Teaching Grant to Mandal Praja Parishad | AX52: 5 | AY52: 1 | AZ52: Elementry Education | BA52: MANDAL EDUCATIONAL OFFICER | BB52: =E5 -> KURICHEDU | BC52: D.E.O | BD52: =CONCATENATE("MRC, ",E5) -> MRC, KURICHEDU | BE52: 1 | BF52: ONE | BH52: 6500 | BI52: 1 | BJ52: 2011-07-25 | BK52: 2008-07-01
C53: =IF(E26=N87,1,IF(E26=N88,2,IF(E26=N89,3,IF(E26=N90,4,IF(E26=N91,5,6))))) -> 2 | D53: 1 | F53: =IF(C53=1,6,IF(C53=D54,12,IF(OR(C53=D55,C53=D57),18,24))) -> 12 | N53: =F47 -> 00:00:00 | O53: 00:00:00 | P53: =IF(N53=0,0,O53-N53+1) -> 0 | Y53: 2 | Z53: 6700 | AA53: =AA52+200 -> 6900 | AB53: 7100 | AC53: 2 | AD53: 6500 | AG53: 5750 | AH53: 5750-13030 | AI53: 11530-33200 | AJ53: 5750-145-6040-155-6505-170-7015-185-7570-200-8170-215-8815-235-9520-255-10285-280-11125-315-12700-330-13030 | AK53: 11530-330-12190-360-13270-390-14440-420-15700-450-17050-490-18520-530-20110-570-21820-610-23650-650-25600-700-27700-750-29950-800-31550-8 | AL53: 11530 | AM53: 9 | AN53: 2008-09-01 | AO53: 40057 | AP53: 2008-08-01 | AQ53: 2009-08-01 | AR53: 2010-08-01 | AS53: 2 | AT53: Assistance to Local Bodies for Secondary Education | AU53: 9 | AV53: 1 | AW53: Teaching Grant to Zilla Praja Parishads | AX53: 5 | AY53: 2 | AZ53: Secondary Education | BA53: HEAD MASTER | BB53: =CONCATENATE(E3," ",E4) -> MPPS(G) POTLAPADU | BC53: DEPUTY EDUCATIONAL OFFICER | BD53: =CONCATENATE("ZPHS, ",E4) -> ZPHS, POTLAPADU | BE53: 2 | BF53: TWO | BH53: 6700 | BI53: 2 | BJ53: 2011-07-26 | BK53: 2008-07-02 | BP53: 1 | BQ53: 2 | BR53: 3 | BS53: 4 | BT53: 5 | BU53: 6 | BV53: 7 | BW53: 8
D54: 2 | N54: 00:00:00 | O54: 00:00:00 | P54: =IF(N54=0,0,O54-N54+1) -> 0 | Y54: 3 | Z54: =Z53+200 -> 6900 | AA54: =AA53+200 -> 7100 | AB54: 7300 | AC54: 3 | AD54: 6700 | AG54: 7200 | AH54: 7200-16925 | AI54: 14860-39540 | AJ54: 7200-185-7570-200-8170-215-8815-235-9520-255-10285-280-11125-315-12700-330-13030-360-13750-425-15025-475-16925 | AK54: 14860-420-15700-450-17050-490-18520-530-20110-570-21820-610-23650-650-25600-700-27700-750-29950-800-32350-850-34900-900-37600-970-39540 | AL54: 14860 | AM54: 10 | AN54: 2008-10-01 | AO54: 40087 | AP54: 2008-09-01 | AQ54: 2009-09-01 | AR54: 2010-09-01 | AS54: 3 | AT54: Government Primary Schools | AU54: 0 | AV54: 1 | AW54: Primary Schools | AX54: 4 | AY54: 1 | AZ54: Elementry Education | BA54: MANDAL EDUCATIONAL OFFICER | BB54: =BB52 -> KURICHEDU | BC54: D.E.O | BD54: =BD52 -> MRC, KURICHEDU | BE54: 3 | BF54: THREE | BH54: =BH53+200 -> 6900 | BI54: 3 | BJ54: 2011-07-27 | BK54: 2008-07-03 | BM54: =BP67 -> 2010-02-01 | BN54: =E81 -> 2010-02-01 | BO54: =IF(AND(E41=O106,E42=O113,BN54>BN58),F68,BN54) -> 2010-02-01 | BP54: =IF(BO54=BP67," ",BO54) -> 
D55: 3 | N55: 00:00:00 | O55: 00:00:00 | P55: =IF(N55=0,0,O55-N55+1) -> 0 | Y55: 4 | Z55: =Z54+200 -> 7100 | AA55: =AA54+200 -> 7300 | AB55: 7520 | AC55: 4 | AD55: =AD54+200 -> 6900 | AG55: 7385 | AH55: 7385-17475 | AI55: 15280-40510 | AJ55: 7385-185-7570-200-8170-215-8815-235-9520-255-10285-280-11125-315-12700-330-13030-360-13750-425-15025-475-16925-550-17475 | AK55: 15280-420-15700-450-17050-490-18520-530-20110-570-21820-610-23650-650-25600-700-27700-750-29950-800-32350-850-34900-900-37600-970-40510 | AL55: 15280 | AM55: 11 | AN55: 2008-11-01 | AO55: 40118 | AP55: 2008-10-01 | AQ55: 2009-10-01 | AR55: 2010-10-01 | AS55: 4 | AT55: Government Secondary Schools | AU55: 0 | AV55: 9 | AW55: Secondary Schools | AX55: 4 | AY55: 2 | AZ55: Secondary Education | BA55: HEAD MASTER | BB55: =BB53 -> MPPS(G) POTLAPADU | BC55: DEPUTY EDUCATIONAL OFFICER | BD55: =CONCATENATE(E3," ",E4) -> MPPS(G) POTLAPADU | BE55: 4 | BF55: FOUR | BH55: =BH54+200 -> 7100 | BI55: 4 | BJ55: 2011-07-28 | BK55: 2008-07-04 | BM55: =BQ67 -> 2010-08-01 | BN55: =E82 -> 2010-08-01 | BO55: =IF(AND(E41=O106,E42=O113,BN55>BN58),F68,BN55) -> 2010-08-01 | BP55: =IF(BO55=BP68," ",BO55) -> 2010-08-01
D56: 4 | N56: 00:00:00 | O56: 00:00:00 | P56: =IF(N56=0,0,O56-N56+1) -> 0 | Y56: 5 | Z56: =Z55+200 -> 7300 | AA56: =AA55+220 -> 7520 | AB56: 7740 | AC56: 5 | AD56: =AD55+200 -> 7100 | AG56: 9285 | AH56: 9285-21550 | AI56: 18030-43630 | AJ56: 9285-235-9520-255-10285-280-11125-315-12700-330-13030-360-13750-425-15025-475-16925-550-19675-625-21550 | AK56: 18030-490-18520-530-20110-570-21820-610-23650-650-25600-700-27700-750-29950-800-32350-850-34900-900-37600-970-40510-1040-43630 | AL56: 18030 | AM56: 12 | AN56: 2008-12-01 | AO56: 40148 | AP56: 2008-11-01 | AQ56: 2009-11-01 | AR56: 2010-11-01 | BE56: 5 | BF56: FIVE | BH56: =BH55+200 -> 7300 | BI56: 5 | BJ56: 2011-07-29 | BK56: 2008-07-05 | BM56: =BR67 -> 2011-08-01 | BN56: 2011-08-01 | BO56: =IF(AND(E41=O106,E42=O113,BN56>BN58),F68,BN56) -> 2011-08-01 | BP56: =IF(BO56=BP69," ",BO56) -> 2011-08-01 | BQ56: 2011-08-01
D57: 5 | Y57: 6 | Z57: =Z56+220 -> 7520 | AA57: =AA56+220 -> 7740 | AB57: 7960 | AC57: 6 | AD57: =AD56+200 -> 7300 | AG57: 10285 | AH57: 10285-24200 | AI57: 19050-45850 | AJ57: 10285-280-11125-315-12700-330-13030-360-13750-425-15025-475-16925-550-19675-625-22800-700-24200 | AK57: 19050-530-20110-570-21820-610-23650-650-25600-700-27700-750-29950-800-32350-850-34900-900-37600-970-40510-1040-43630-1110-45860 | AL57: 19050 | AM57: 13 | AN57: 2009-01-01 | AO57: 40179 | AP57: 2008-12-01 | AQ57: 2009-12-01 | AR57: 2010-12-01 | BE57: 6 | BF57: SIX | BH57: =BH56+220 -> 7520 | BI57: 6 | BJ57: 2011-07-30 | BK57: 2008-07-06 | BM57: =BS67 -> 2012-08-01 | BN57: 2012-08-01 | BO57: =IF(AND(E41=O106,E42=O113,BN57>BN58),F68,BN57) -> 2012-08-01 | BP57: =IF(BO57=BP70," ",BO57) -> 2012-08-01 | BQ57: 2012-08-01 | BR57: 2012-08-01
D58: 6 | N58: OR | O58: SG | P58: SPP-I | Q58: SPP-II | R58: SAPP-I | S58: SAPP-II | T58: 0 | U58: 0 | Y58: 7 | Z58: =Z57+220 -> 7740 | AA58: =AA57+220 -> 7960 | AB58: 8200 | AC58: 7 | AD58: =AD57+220 -> 7520 | AG58: 10845 | AH58: 10845-25600 | AI58: 19050-45850 | AJ58: 10845-280-11125-315-12700-330-13030-360-13750-425-15025-475-16925-550-19675-625-22800-700-25600 | AK58: 19050-530-20110-570-21820-610-23650-650-25600-700-27700-750-29950-800-32350-850-34900-900-37600-970-40510-1040-43630-1110-45860 | AL58: 19050 | AM58: 14 | AN58: 2009-02-01 | AO58: 40210 | AP58: 2009-01-01 | AQ58: 2010-01-01 | AR58: 2011-01-01 | BE58: 7 | BF58: SEVEN | BH58: =BH57+220 -> 7740 | BI58: 7 | BJ58: 2011-07-31 | BK58: 2008-07-07 | BM58: =BT67 -> 00:00:00 | BN58: 2010-08-01 | BO58: =BN58 -> 2010-08-01 | BP58: =IF(BO58=BP71," ",BO58) -> 2010-08-01
M59: 1 | N59: 10900 | O59: 11530 | P59: 14860 | Q59: 18030 | R59: 11860 | S59: 15280 | T59: 10900 | U59: 10900-300-11200-330-12190-360-13270-390-14440-420-15700-450-17050-490-18520-530-20110-570-21820-610-23650-650-25600-700-27700-750-29950-800-31550 | V59: 10900-31550 | Y59: 8 | Z59: =Z58+220 -> 7960 | AA59: =AA58+240 -> 8200 | AB59: 8440 | AC59: 8 | AD59: =AD58+220 -> 7740 | AM59: 15 | AN59: 2009-03-01 | AO59: 40238 | AP59: 2009-02-01 | AQ59: 2010-02-01 | AR59: 2011-02-01 | BE59: 8 | BF59: EIGHT | BH59: =BH58+220 -> 7960 | BI59: 8 | BJ59: 2011-08-01 | BK59: 2008-07-08 | BM59: =BU67 -> 00:00:00 | BN59: 2010-08-01 | BO59: =IF(AND(E41=O106,E42=O113),BN59,F68) -> 2010-02-01 | BP59: =IF(BO59=BP72," ",BO59) -> 
M60: 2 | N60: 14860 | O60: 15280 | P60: 18030 | Q60: 18030 | R60: 16150 | S60: 18030 | T60: 11530 | U60: 11530-330-12190-360-13270-390-14440-420-15700-450-17050-490-18520-530-20110-570-21820-610-23650-650-25600-700-27700-750-29950-800-32350-850-33200 | V60: 11530-33200 | Y60: 9 | Z60: =Z59+240 -> 8200 | AA60: =AA59+240 -> 8440 | AB60: 8680 | AC60: 9 | AD60: =AD59+220 -> 7960 | AM60: 16 | AN60: 2009-04-01 | AO60: 40269 | AP60: 2009-03-01 | AQ60: 2010-03-01 | AR60: 2011-03-01 | BE60: 9 | BF60: NINE | BH60: =BH59+240 -> 8200 | BI60: 9 | BJ60: 2011-08-02 | BK60: 2008-07-09 | BM60: =BV67 -> 00:00:00 | BN60: 2010-08-01 | BO60: =IF(AND(E41=O106,E42=O113),BN60,F68) -> 2010-02-01 | BP60: =IF(BO60=BP73," ",BO60) -> 
C61: EOL DAYS | M61: 3 | N61: 18030 | O61: 19050 | P61: 19050 | Q61: 21820 | R61: 19050 | S61: 20680 | T61: 11860 | U61: 11860-330-12190-360-13270-390-14440-420-15700-450-17050-490-18520-530-20110-570-21820-610-23650-650-25600-700-27700-750-29950-800-32350-850-34050 | V61: 11860-34050 | Y61: 10 | Z61: =Z60+240 -> 8440 | AA61: =AA60+240 -> 8680 | AB61: 8940 | AC61: 10 | AD61: =AD60+240 -> 8200 | AL61: 0 | AM61: 17 | AN61: 2009-05-01 | AO61: 40299 | AP61: 2009-04-01 | AQ61: 2010-04-01 | AR61: 2011-04-01 | BE61: 10 | BF61: TEN | BH61: =BH60+240 -> 8440 | BI61: 10 | BJ61: 2011-08-03 | BK61: 2008-07-10 | BM61: =BW67 -> 00:00:00 | BN61: 2010-02-01 | BO61: =BN61 -> 2010-02-01 | BP61: =IF(BO61=BP74," ",BO61) -> 
C62: C,DATE OF JOINING | E62: =DATE(YEAR(E63)+F53,MONTH(E63),DAY(E63)) -> 2009-08-06 | G62: =IF(E62<E66,1,2) -> 1 | T62: 14860 | U62: 14860-420-15700-450-17050-490-18520-530-20110-570-21820-610-23650-650-25600-700-27700-750-29950-800-32350-850-34900-900-37600-970-39540 | V62: 14860-39540 | Y62: 11 | Z62: =Z61+240 -> 8680 | AA62: =AA61+260 -> 8940 | AB62: 9200 | AC62: 11 | AD62: =AD61+240 -> 8440 | AM62: 18 | AN62: 2009-06-01 | AO62: 40330 | AP62: 2009-05-01 | AQ62: 2010-05-01 | AR62: 2011-05-01 | BE62: 11 | BF62: ELEVEN | BH62: =BH61+240 -> 8680 | BI62: 11 | BJ62: 2011-08-04 | BK62: 2008-07-11 | BN62: 2010-02-01 | BO62: =BN62 -> 2010-02-01 | BQ62: =IF(BP62=BQ75," ",BP62) ->  | BR62: =IF(BQ62=BR75," ",BQ62) ->  | BS62: =IF(BR62=BS75," ",BR62) ->  | BT62: =IF(BS62=BT75," ",BS62) ->  | BU62: =IF(BT62=BU75," ",BT62) ->  | BV62: =IF(BU62=BV75," ",BU62) ->  | BW62: =IF(BV62=BW75," ",BV62) ->  | BX62: =IF(BW62=BX75," ",BW62) -> 
C63: EOL EVALUATE DATE | E63: =E134+E64 -> 1997-08-06 | G63: =E63+2*(3*365+366) -> 2005-08-06 | H63: =IF(AND(G63<=E135,G63>BC164),G63,0) -> 00:00:00 | K63: PR.SCALE | M63: =IF(E25=Q121,3,IF(OR(E25=Q122,E25=Q123,E25=Q124,E25=Q125,E25=Q126,E25=Q127,E25=Q128,E25=Q129,E25=Q135,E25=Q136),2,1)) -> 1 | N63: =VLOOKUP(M63,M59:S61,M64+1,TRUE) -> 11530 | O63: =VLOOKUP(N63,T58:U68,2,TRUE) -> 11530-330-12190-360-13270-390-14440-420-15700-450-17050-490-18520-530-20110-570-21820-610-23650-650-25600-700-27700-750-29950-800-32350-850-33200 | T63: 15280 | U63: 15280-450-17050-490-18520-530-20110-570-21820-610-23650-650-25600-700-27700-750-29950-800-32350-850-34900-900-37600-970-40510 | V63: 15280-40510 | Y63: 12 | Z63: =Z62+260 -> 8940 | AA63: =AA62+260 -> 9200 | AB63: 9460 | AC63: 12 | AD63: =AD62+240 -> 8680 | AM63: 19 | AN63: 2009-07-01 | AO63: 40360 | AP63: 2009-06-01 | AQ63: 2010-06-01 | AR63: 2011-06-01 | BE63: 12 | BF63: TWELVE | BH63: =BH62+260 -> 8940 | BI63: 12 | BJ63: 2011-08-05 | BK63: 2008-07-12
C64: EOL DAYS | E64: =IF(E46=O107,0,SUM(P53:P56)) -> 0 | G64: =E63+4*(3*365+366) -> 2013-08-06 | H64: =IF(AND(G64<=E135,G64>BC164),G64,0) -> 00:00:00 | M64: =IF(E26=N87,1,IF(E26=N88,2,IF(E26=N89,3,IF(E26=N90,4,IF(E26=N91,5,6))))) -> 2 | T64: 16150 | U64: 16150-450-17050-490-18520-530-20110-570-21820-610-23650-650-25600-700-27700-750-29950-800-32350-850-34900-900-37600-970-40510-1040-42590 | V64: 16150-42590 | Y64: 13 | Z64: =Z63+260 -> 9200 | AA64: =AA63+260 -> 9460 | AB64: 9740 | AC64: 13 | AD64: =AD63+260 -> 8940 | AM64: 0 | AN64: 00:00:00 | AO64: 0 | AP64: 2009-07-01 | AQ64: 2010-07-01 | AR64: 2011-07-01 | BE64: 13 | BF64: THIRTEEN | BH64: =BH63+260 -> 9200 | BI64: 13 | BJ64: 2011-08-06 | BK64: 2008-07-13
C65: PROMOTION DATE | E65: =IF(E41="YES",E138,E135+1) -> 2011-07-31T00:14:24 | G65: =E63+6*(3*365+366) -> 2021-08-06 | H65: =IF(AND(G65<=E135,G65>BC164),G65,0) -> 00:00:00 | M65: =IF(E27=N95,1,IF(E27=N96,2,3)) -> 1 | T65: 18030 | U65: 18030-530-20110-570-21820-610-23650-650-25600-700-27700-750-29950-800-32350-850-34900-900-37600-970-40510-1040-43630 | V65: 18030-43630 | Y65: 14 | Z65: =Z64+260 -> 9460 | AA65: =AA64+280 -> 9740 | AB65: 10020 | AC65: 14 | AD65: =AD64+260 -> 9200 | AM65: 2010-01-01 | AN65: 1900-02-11T09:21:36 | AO65: 16.264 | AP65: 2009-08-01 | AQ65: 2010-08-01 | AR65: 2011-08-01 | BE65: 14 | BF65: FOURTEEN | BH65: =BH64+260 -> 9460 | BI65: 14 | BJ65: 2011-08-07 | BK65: 2008-07-14
C66: MIN(PRO,BILL) | E66: =MIN(E65,E135+1) -> 2011-07-31T00:14:24 | G66: =MAX(H63:H65) -> 00:00:00 | H66: =IF(E40=O106,1,2) -> 2 | L66: prpost | M66: =IF(E44=Q121,3,IF(OR(E44=Q122,E44=Q123,E44=Q124,E44=Q125,E44=Q126,E44=Q127,E44=Q128,E44=Q129,E44=Q135,E44=Q136),2,1)) -> 1 | N66: =VLOOKUP(M66,M59:S61,2,TRUE) -> 10900 | O66: =VLOOKUP(N66,T59:V68,3,TRUE) -> 10900-31550 | T66: 19050 | U66: 19050-530-20110-570-21820-610-23650-650-25600-700-27700-750-29950-800-32350-850-34900-900-37600-970-40510-1040-43630-1110-45850 | V66: 19050-45850 | Y66: 15 | Z66: =Z65+280 -> 9740 | AA66: =AA65+280 -> 10020 | AB66: 10300 | AC66: 15 | AD66: =AD65+260 -> 9460 | AM66: 2010-07-01 | AN66: 1900-02-20T19:26:24 | AO66: 24.824 | AP66: 2009-09-01 | AQ66: 2010-09-01 | AR66: 2011-09-01 | BE66: 15 | BF66: FIFTEEN | BH66: =BH65+280 -> 9740 | BI66: 15 | BJ66: 2011-08-08 | BK66: 2008-07-15 | BP66: 1 | BQ66: 2 | BR66: 3 | BS66: 4 | BT66: 5 | BU66: 6 | BV66: 7 | BW66: 8
C67: HRA CHANGE DATE | E67: =E136 -> 2010-04-01T00:01:26.400 | F67: 2010-02-01 | M67: 1 | N67: 2 | O67: 3 | T67: 20680 | U67: 20680-570-21820-610-23650-650-25600-700-27700-750-29950-800-32350-850-34900-900-37600-970-40510-1040-43630-1110-46960 | V67: 20680-46960 | Y67: 16 | Z67: =Z66+280 -> 10020 | AA67: =AA66+280 -> 10300 | AB67: 10600 | AC67: 16 | AD67: =AD66+280 -> 9740 | AM67: 2011-01-01 | AN67: 60.288 | AO67: 29.96 | AP67: 2009-10-01 | AQ67: 2010-10-01 | AR67: 2011-10-01 | BE67: 16 | BF67: SIXTEEN | BH67: =BH66+280 -> 10020 | BI67: 16 | BJ67: 2011-08-09 | BK67: 2008-07-16 | BO67: 1 | BP67: =MIN(BO54:BO62) -> 2010-02-01 | BQ67: =MIN(BP54:BP62) -> 2010-08-01 | BR67: 2011-08-01 | BS67: 2012-08-01 | BT67: 00:00:00 | BU67: 00:00:00 | BV67: 00:00:00 | BW67: 00:00:00 | BX67: 00:00:00
C68: 8/16/24 DATE | E68: =IF(H66=1,G66,F68) -> 2010-02-01 | F68: =MIN(E65,F67) -> 2010-02-01 | G68: =IF(E41=O106,E138,E135) -> 2011-07-30T00:14:24 | L68: 6 | M68: 2 | N68: =M68 -> 2 | O68: =N68 -> 2 | T68: 21820 | U68: 21820-610-23650-650-25600-700-27700-750-29950-800-32350-850-34900-900-37600-970-40510-1040-43630-1110-46960-1200-48160 | V68: 21820-48160 | Y68: 17 | Z68: =Z67+280 -> 10300 | AA68: =AA67+300 -> 10600 | AB68: 10900 | AC68: 17 | AD68: =AD67+280 -> 10020 | AM68: 2011-07-01 | AN68: 60.288 | AO68: 29.96 | AP68: 2009-11-01 | AQ68: 2010-11-01 | AR68: 2011-11-01 | BE68: 17 | BF68: SEVENTEEN | BH68: =BH67+280 -> 10300 | BI68: 17 | BJ68: 2011-08-10 | BK68: 2008-07-17 | BO68: 2 | BP68: =BP67 -> 2010-02-01 | BQ68: =BQ67 -> 2010-08-01 | BR68: =BR67 -> 2011-08-01 | BS68: =BS67 -> 2012-08-01 | BT68: =BT67 -> 00:00:00 | BU68: =BU67 -> 00:00:00 | BV68: =BV67 -> 00:00:00 | BW68: =BW67 -> 00:00:00 | BX68: =MIN(BW55:BW63) -> 00:00:00
C69: 6/12/18/24 DATE | E69: =IF(E62<E66,E62,F67) -> 2009-08-06 | F69: =IF(E69<F67,F67,E69) -> 2010-02-01 | G69: =DATE(YEAR(E69),MONTH(E69),1) -> 2009-08-01 | L69: 12 | M69: 3 | N69: 3 | O69: 5 | Y69: 18 | Z69: =Z68+300 -> 10600 | AA69: =AA68+300 -> 10900 | AB69: 11200 | AC69: 18 | AD69: =AD68+280 -> 10300 | AN69: =IF(E36=N113,12,IF(E36=N114=14.5,E36)) -> 12 | AO69: =IF(E36=N113,10,IF(E36=N114=12.5,E36)) -> 10 | AP69: 2009-12-01 | AQ69: 2010-12-01 | AR69: 2011-12-01 | BE69: 18 | BF69: EIGHTEEN | BH69: =BH68+300 -> 10600 | BI69: 18 | BJ69: 2011-08-11 | BK69: 2008-07-18 | BO69: 3 | BP69: =BP68 -> 2010-02-01 | BQ69: =BQ68 -> 2010-08-01 | BR69: =BR68 -> 2011-08-01 | BS69: =BS68 -> 2012-08-01 | BT69: 00:00:00 | BU69: 00:00:00 | BV69: 00:00:00 | BW69: 00:00:00 | BX69: =MIN(BW56:BW64) -> 00:00:00
L70: 18 | M70: 4 | N70: 4 | O70: 6 | Y70: 19 | Z70: =Z69+300 -> 10900 | AA70: =AA69+300 -> 11200 | AB70: 11530 | AC70: 19 | AD70: =AD69+300 -> 10600 | AN70: =IF(E37=N113,12,IF(E37=N114,14.5,E37)) -> 12 | AO70: =IF(E37=N113,10,IF(E37=N114,12.5,E37)) -> 10 | AP70: 2010-01-01 | AQ70: 2011-01-01 | AR70: 2012-01-01 | BE70: 19 | BF70: NINETEEN | BH70: =BH69+300 -> 10900 | BI70: 19 | BJ70: 2011-08-12 | BK70: 2008-07-19 | BO70: 4 | BP70: 2010-02-01 | BQ70: 2010-08-01 | BR70: 2011-08-01 | BS70: 2012-08-01 | BT70: 00:00:00 | BU70: 00:00:00 | BV70: 00:00:00 | BW70: 00:00:00 | BX70: =MIN(BW57:BW65) -> 00:00:00
C71: ALREADY DRAWN INCREMENTS | E71: =F67 -> 2010-02-01 | F71: =AF89 -> 2010-02-01 | G71: =E33 -> 14440 | H71: =IF(F71=0,0,G71) -> 14440 | I71: 1900-01-01 | L71: 24 | M71: 7 | N71: 8 | O71: 8 | Y71: 20 | Z71: =Z70+300 -> 11200 | AA71: =AA70+330 -> 11530 | AB71: 11860 | AC71: 20 | AD71: =AD70+300 -> 10900 | AO71: 2011-04-01 | AP71: 2010-02-01 | AQ71: 2011-02-01 | AR71: 2012-02-01 | BE71: 20 | BF71: TWENTY | BH71: =BH70+300 -> 11200 | BI71: 20 | BJ71: 2011-08-13 | BK71: 2008-07-20 | BO71: 5 | BP71: 2010-02-01 | BQ71: 2010-08-01 | BR71: 2011-08-01 | BS71: 2012-08-01 | BT71: 00:00:00 | BU71: 00:00:00 | BV71: 00:00:00 | BW71: 00:00:00 | BX71: =MIN(BW58:BW66) -> 1900-01-08
C72: increment date | E72: =DATE(IF(OR(F51=1,F51=2),2011,2010),F51,1) -> 2010-08-01 | F72: =AF90 -> 2010-08-01 | G72: =VLOOKUP(G71,Z52:AB135,IF(OR(AND(E41=O106,E42=O113,E75=F72),AND(E41=O106,E42=O112,F71=E75)),3,2),TRUE) -> 14860 | H72: =IF(F72=0,0,G72) -> 14860 | I72: 1900-01-02 | K72: AAS GRADE | N72: =VLOOKUP(F53,L67:O71,M65+1,TRUE) -> 3 | O72: =IF(N72=2,3,IF(OR(N72=3,N72=4),4,IF(OR(N72=5,N72=6),6,IF(N72=7,5,8)))) -> 4 | Y72: 21 | Z72: =Z71+330 -> 11530 | AA72: =AA71+330 -> 11860 | AB72: 12190 | AC72: 21 | AD72: =AD71+300 -> 11200 | AP72: 2010-03-01 | AQ72: 2011-03-01 | AR72: 2012-03-01 | BE72: 21 | BF72: TWENTY ONE | BH72: =BH71+330 -> 11530 | BI72: 21 | BJ72: 2011-08-14 | BK72: 2008-07-21 | BO72: 6 | BP72: 2010-02-01 | BQ72: 2010-08-01 | BR72: 2011-08-01 | BS72: 2012-08-01 | BT72: 00:00:00 | BU72: 00:00:00 | BV72: 00:00:00 | BW72: 00:00:00 | BX72: =MIN(BW59:BW67) -> 00:00:00
E73: =DATE(YEAR(E72)+1,MONTH(E72),1) -> 2011-08-01 | F73: =AF91 -> 2011-08-01 | G73: =VLOOKUP(G72,Z52:AB135,IF(OR(AND(E41=O106,E42=O113,E75=F73),AND(E41=O106,E42=O112,F72=E75)),3,2),TRUE) -> 15280 | H73: 15280 | I73: 1900-01-03 | N73: =IF(N72=2,"S.G.",IF(N72=3,"S.P.P.-1A",IF(N72=4,"S.P.P-IB",IF(N72=5,"S.A.P.P.-IA",IF(N72=6,"S.A.P.P.-IB",IF(N72=7,"S.P.P.-II",S.A.P.P.-II)))))) -> S.P.P.-1A | O73: =VLOOKUP(M63,M59:S61,O72,TRUE) -> 14860 | P73: =VLOOKUP(O73,T58:U68,2,TRUE) -> 14860-420-15700-450-17050-490-18520-530-20110-570-21820-610-23650-650-25600-700-27700-750-29950-800-32350-850-34900-900-37600-970-39540 | Y73: 22 | Z73: =Z72+330 -> 11860 | AA73: =AA72+330 -> 12190 | AB73: 12550 | AC73: 22 | AD73: =AD72+330 -> 11530 | AP73: 2010-04-01 | AQ73: 2011-04-01 | AR73: 2012-04-01 | BE73: 22 | BF73: TWENTY TWO | BH73: =BH72+330 -> 11860 | BI73: 22 | BJ73: 2011-08-15 | BK73: 2008-07-22 | BO73: 7 | BP73: 2010-02-01 | BQ73: 2010-08-01 | BR73: 2011-08-01 | BS73: 2012-08-01 | BT73: 00:00:00 | BU73: 00:00:00 | BV73: 00:00:00 | BW73: 00:00:00 | BX73: =MIN(BW60:BW68) -> 00:00:00
E74: =DATE(YEAR(E73)+1,MONTH(E73),1) -> 2012-08-01 | F74: 2012-08-01 | G74: =VLOOKUP(G73,Z52:AB135,IF(OR(AND(E41=O106,E42=O113,E75=F74),AND(E41=O106,E42=O112,F73=E75)),3,2),TRUE) -> 15700 | H74: 15700 | I74: 1900-01-04 | N74: =IF(F53=24," as per FR 31(2)",IF(F53=18," "," as per FR 22(a)(i)")) -> as per FR 22(a)(i) | Y74: 23 | Z74: =Z73+330 -> 12190 | AA74: =AA73+360 -> 12550 | AB74: 12910 | AC74: 23 | AD74: =AD73+330 -> 11860 | AP74: 2010-05-01 | AQ74: 2011-05-01 | AR74: 2012-05-01 | BE74: 23 | BF74: TWENTY THREE | BH74: =BH73+330 -> 12190 | BI74: 23 | BJ74: 2011-08-16 | BK74: 2008-07-23 | BO74: 8 | BP74: 2010-02-01 | BQ74: 2010-08-01 | BR74: 2011-08-01 | BS74: 2012-08-01 | BT74: 00:00:00 | BU74: 00:00:00 | BV74: 00:00:00 | BW74: 00:00:00 | BX74: =MIN(BW61:BW69) -> 00:00:00
C75: promotion date | E75: =IF(E41=O106,E138,E72) -> 2010-08-01 | F75: 00:00:00 | G75: =VLOOKUP(G74,Z52:AB135,IF(OR(AND(E41=O106,E42=O113,E75=F75),AND(E41=O106,E42=O112,F74=E75)),3,2),TRUE) -> 16150 | H75: 0 | I75: 1900-01-05 | Y75: 24 | Z75: =Z74+360 -> 12550 | AA75: =AA74+360 -> 12910 | AB75: 13270 | AC75: 24 | AD75: =AD74+330 -> 12190 | AP75: 2010-06-01 | AQ75: 2011-06-01 | AR75: 2012-06-01 | BE75: 24 | BF75: TWENTY FOUR | BH75: =BH74+360 -> 12550 | BI75: 24 | BJ75: 2011-08-17 | BK75: 2008-07-24 | BO75: 9 | BP75: 2010-02-01 | BQ75: 2010-08-01 | BR75: 2011-08-01 | BS75: 2012-08-01 | BT75: 00:00:00 | BU75: 00:00:00 | BV75: 00:00:00 | BW75: 00:00:00 | BX75: =MIN(BW62:BW70) -> 00:00:00
E76: =IF(AND(E41=O106,E42=O113),DATE(YEAR(E75)+1,MONTH(E75),1),E75) -> 2010-08-01 | F76: 00:00:00 | G76: =VLOOKUP(G75,Z52:AB135,IF(OR(AND(E41=O106,E42=O113,E75=F76),AND(E41=O106,E42=O112,F75=E75)),3,2),TRUE) -> 16600 | H76: 0 | I76: 1900-01-06 | Y76: 25 | Z76: =Z75+360 -> 12910 | AA76: =AA75+360 -> 13270 | AB76: 13660 | AC76: 25 | AD76: =AD75+360 -> 12550 | AP76: 2010-07-01 | AQ76: 2011-07-01 | AR76: 2012-07-01 | BE76: 25 | BF76: TWENTY FIVE | BH76: =BH75+360 -> 12910 | BI76: 25 | BJ76: 2011-08-18 | BK76: 2008-07-25 | BO76: 10 | BP76: 2010-02-01 | BQ76: 2010-08-01 | BR76: 2011-08-01 | BS76: 2012-08-01 | BT76: 00:00:00 | BU76: 00:00:00 | BV76: 00:00:00 | BW76: 00:00:00 | BX76: =MIN(BW63:BW71) -> 00:00:00
E77: =IF(AND(E41=O106,E42=O113),DATE(YEAR(E76)+1,MONTH(E76),1),E76) -> 2010-08-01 | F77: 00:00:00 | G77: =VLOOKUP(G76,Z52:AB135,IF(OR(AND(E41=O106,E42=O113,E75=F77),AND(E41=O106,E42=O112,F76=E75)),3,2),TRUE) -> 17050 | H77: 0 | I77: 1900-01-07 | Y77: 26 | Z77: =Z76+360 -> 13270 | AA77: =AA76+390 -> 13660 | AB77: 14050 | AC77: 26 | AD77: =AD76+360 -> 12910 | BE77: 26 | BF77: TWENTY SIX | BH77: =BH76+360 -> 13270 | BI77: 26 | BJ77: 2011-08-19 | BK77: 2008-07-26
E78: =E68 -> 2010-02-01 | F78: 00:00:00 | G78: =VLOOKUP(G77,Z52:AB135,IF(OR(AND(E41=O106,E42=O113,E75=F78),AND(E41=O106,E42=O112,F77=E75)),3,2),TRUE) -> 17540 | H78: 0 | I78: 1900-01-08 | J78: =IF(F244=G244,"YOU HAVE NO BENIFIT NOW","YOU HAVE BENIFIT") -> YOU HAVE BENIFIT | N78: PROPOST | O78: =IF(N66>O73,O66,G97) -> 14860-39540 | Y78: 27 | Z78: =Z77+390 -> 13660 | AA78: =AA77+390 -> 14050 | AB78: 14440 | AC78: 27 | AD78: =AD77+360 -> 13270 | BE78: 27 | BF78: TWENTY SEVEN | BH78: =BH77+390 -> 13660 | BI78: 27 | BJ78: 2011-08-20 | BK78: 2008-07-27 | BQ78: 0 | BR78: 0 | BS78: 0 | BT78: 0 | BU78: 0 | BV78: 0
Y79: 28 | Z79: =Z78+390 -> 14050 | AA79: =AA78+390 -> 14440 | AB79: 14860 | AC79: 28 | AD79: =AD78+390 -> 13660 | BE79: 28 | BF79: TWENTY EIGHT | BH79: =BH78+390 -> 14050 | BI79: 28 | BJ79: 2011-08-21 | BK79: 2008-07-28 | BN79: 2010-02-01 | BO79: =E135 -> 2011-07-30T00:14:24 | BP79: =IF(BN79<BO79,BN79,0) -> 2010-02-01 | BQ79: =BILL!D5 -> 40210 | BR79: =IF(BQ79=0,BR78+0.1,BQ79) -> 40210 | BS79: =BILL!Z5 -> 18233 | BT79: =BILL!X5 -> 150 | BU79: =BILL!P5 -> 18763 | BV79: =BILL!N5 -> 150 | BW79: =VLOOKUP(BN79,BR78:BV111,2,TRUE) -> 18233 | BX79: =VLOOKUP(BN79,BR78:BV111,3,TRUE) -> 150 | BY79: =VLOOKUP(BN79,BR78:BV111,4,TRUE) -> 18763 | BZ79: =VLOOKUP(BN79,BR78:BV111,5,TRUE) -> 150
I80: =F81 -> 2010-02-01 | Y80: 29 | Z80: =Z79+390 -> 14440 | AA80: =AA79+420 -> 14860 | AB80: 15280 | AC80: 29 | AD80: =AD79+390 -> 14050 | BE80: 29 | BF80: TWENTY NINE | BH80: =BH79+390 -> 14440 | BI80: 29 | BJ80: 2011-08-22 | BK80: 2008-07-29 | BN80: 2010-03-01 | BO80: =BO79 -> 2011-07-30T00:14:24 | BP80: =IF(BN80<BO80,BN80,0) -> 2010-03-01 | BQ80: =BILL!D6 -> 40238 | BR80: =IF(BQ80=0,BR79+0.1,BQ80) -> 40238 | BS80: =BILL!Z6 -> 18233 | BT80: =BILL!X6 -> 150 | BU80: =BILL!P6 -> 18763 | BV80: =BILL!N6 -> 150 | BW80: =VLOOKUP(BN80,BR78:BV111,2,TRUE) -> 18233 | BX80: =VLOOKUP(BN80,BR78:BV111,3,TRUE) -> 150 | BY80: =VLOOKUP(BN80,BR78:BV111,4,TRUE) -> 18763 | BZ80: =VLOOKUP(BN80,BR78:BV111,5,TRUE) -> 150
C81: TO BE DRAWN INCREMENTS | D81: 1 | E81: =E71 -> 2010-02-01 | F81: =IF(BM54=0,MAX(E81:E88),BM54) -> 2010-02-01 | G81: =VLOOKUP(E33,Z52:AB128,IF(AND(E62<=F67,E62<E66),2,1),TRUE) -> 14860 | H81: =IF(F81=0,0,G81) -> 14860 | I81: =F82 -> 2010-08-01 | J81: 1 | Y81: 30 | Z81: =Z80+420 -> 14860 | AA81: =AA80+420 -> 15280 | AB81: 15700 | AC81: 30 | AD81: =AD80+390 -> 14440 | BE81: 30 | BF81: THIRTY | BH81: =BH80+420 -> 14860 | BI81: 30 | BJ81: 2011-08-23 | BK81: 2008-07-30 | BN81: 2010-04-01 | BO81: =BO80 -> 2011-07-30T00:14:24 | BP81: =IF(BN81<BO81,BN81,0) -> 2010-04-01 | BQ81: =BILL!D7 -> 40269 | BR81: 40269 | BS81: =BILL!Z7 -> 18233 | BT81: =BILL!X7 -> 150 | BU81: =BILL!P7 -> 18763 | BV81: =BILL!N7 -> 150 | BW81: =VLOOKUP(BN81,BR78:BV111,2,TRUE) -> 18233 | BX81: =VLOOKUP(BN81,BR78:BV111,3,TRUE) -> 150 | BY81: =VLOOKUP(BN81,BR78:BV111,4,TRUE) -> 18763 | BZ81: =VLOOKUP(BN81,BR78:BV111,5,TRUE) -> 150
D82: 2 | E82: =E72 -> 2010-08-01 | F82: =IF(BM55=0,MAX(E81:E88),BM55) -> 2010-08-01 | G82: =VLOOKUP(G81,Z52:AB135,IF(OR(AND(E41=O106,E42=O113,E85=F82),AND(E41=O106,E42=O112,F81=E85)),3,2),TRUE) -> 15280 | H82: =IF(F82=0,0,G82) -> 15280 | I82: 2011-08-01 | J82: 2 | Y82: 31 | Z82: =Z81+420 -> 15280 | AA82: =AA81+420 -> 15700 | AB82: 16150 | AC82: 31 | AD82: =AD81+420 -> 14860 | BE82: 31 | BF82: THIRTY ONE | BH82: =BH81+420 -> 15280 | BI82: 31 | BJ82: 2011-08-24 | BK82: 2008-07-31 | BN82: 2010-05-01 | BO82: 2011-07-30T00:14:24 | BP82: 2010-05-01 | BQ82: =BILL!D8 -> 40299 | BR82: 40299 | BS82: =BILL!Z8 -> 18233 | BT82: =BILL!X8 -> 150 | BU82: =BILL!P8 -> 18763 | BV82: =BILL!N8 -> 150 | BW82: =VLOOKUP(BN82,BR78:BV111,2,TRUE) -> 18233 | BX82: =VLOOKUP(BN82,BR78:BV111,3,TRUE) -> 150 | BY82: =VLOOKUP(BN82,BR78:BV111,4,TRUE) -> 18763 | BZ82: =VLOOKUP(BN82,BR78:BV111,5,TRUE) -> 150
D83: 3 | E83: 2011-08-01 | F83: =IF(BM56=0,MAX(E81:E88),BM56) -> 2011-08-01 | G83: =VLOOKUP(G82,Z52:AB135,IF(OR(AND(E41=O106,E42=O113,E85=F83),AND(E41=O106,E42=O112,F82=E75)),3,2),TRUE) -> 15700 | H83: 15700 | I83: 2012-08-01 | J83: 3 | Y83: 32 | Z83: =Z82+420 -> 15700 | AA83: =AA82+450 -> 16150 | AB83: 16600 | AC83: 32 | AD83: =AD82+420 -> 15280 | BE83: 32 | BF83: THIRTY TWO | BH83: =BH82+420 -> 15700 | BI83: 32 | BJ83: 2011-08-25 | BK83: 2008-08-01 | BN83: 2010-06-01 | BO83: 2011-07-30T00:14:24 | BP83: 2010-06-01 | BQ83: =BILL!D9 -> 40330 | BR83: 40330 | BS83: =BILL!Z9 -> 18233 | BT83: =BILL!X9 -> 150 | BU83: =BILL!P9 -> 18763 | BV83: =BILL!N9 -> 150 | BW83: =VLOOKUP(BN83,BR78:BV111,2,TRUE) -> 18233 | BX83: =VLOOKUP(BN83,BR78:BV111,3,TRUE) -> 150 | BY83: =VLOOKUP(BN83,BR78:BV111,4,TRUE) -> 18763 | BZ83: =VLOOKUP(BN83,BR78:BV111,5,TRUE) -> 150
D84: 4 | E84: 2012-08-01 | F84: =IF(BM57=0,MAX(E81:E88),BM57) -> 2012-08-01 | G84: =VLOOKUP(G83,Z52:AB135,IF(OR(AND(E41=O106,E42=O113,E85=F84),AND(E41=O106,E42=O112,F83=E85)),3,2),TRUE) -> 16150 | H84: 16150 | I84: 2012-08-01 | J84: 4 | Y84: 33 | Z84: =Z83+450 -> 16150 | AA84: =AA83+450 -> 16600 | AB84: 17050 | AC84: 33 | AD84: =AD83+420 -> 15700 | BE84: 33 | BF84: THIRTY THREE | BH84: =BH83+450 -> 16150 | BI84: 33 | BJ84: 2011-08-26 | BK84: 2008-08-02 | BN84: 2010-07-01 | BO84: 2011-07-30T00:14:24 | BP84: 2010-07-01 | BQ84: =BILL!D10 -> 40360 | BR84: 40360 | BS84: =BILL!Z10 -> 19469 | BT84: =BILL!X10 -> 150 | BU84: =BILL!P10 -> 20035 | BV84: =BILL!N10 -> 200 | BW84: =VLOOKUP(BN84,BR78:BV111,2,TRUE) -> 19469 | BX84: =VLOOKUP(BN84,BR78:BV111,3,TRUE) -> 150 | BY84: =VLOOKUP(BN84,BR78:BV111,4,TRUE) -> 20035 | BZ84: =VLOOKUP(BN84,BR78:BV111,5,TRUE) -> 200
D85: 5 | E85: 2010-08-01 | F85: =IF(BM58=0,MAX(E81:E88),BM58) -> 2012-08-01 | G85: =VLOOKUP(G84,Z52:AB135,IF(OR(AND(E41=O106,E42=O113,E85=F85),AND(E41=O106,E42=O112,F84=E85)),3,2),TRUE) -> 16600 | H85: 16600 | I85: 2012-08-01 | J85: 5 | Y85: 34 | Z85: =Z84+450 -> 16600 | AA85: =AA84+450 -> 17050 | AB85: 17540 | AC85: 34 | AD85: =AD84+450 -> 16150 | BE85: 34 | BF85: THIRTY FOUR | BH85: =BH84+450 -> 16600 | BI85: 34 | BJ85: 2011-08-27 | BK85: 2008-08-03 | BN85: 2010-08-01 | BO85: 2011-07-30T00:14:24 | BP85: 2010-08-01 | BQ85: =BILL!D11 -> 40391 | BR85: 40391 | BS85: =BILL!Z11 -> 20035 | BT85: =BILL!X11 -> 200 | BU85: =BILL!P11 -> 20601 | BV85: =BILL!N11 -> 200 | BW85: =VLOOKUP(BN85,BR78:BV111,2,TRUE) -> 20035 | BX85: =VLOOKUP(BN85,BR78:BV111,3,TRUE) -> 200 | BY85: =VLOOKUP(BN85,BR78:BV111,4,TRUE) -> 20601 | BZ85: =VLOOKUP(BN85,BR78:BV111,5,TRUE) -> 200
D86: 6 | E86: 2010-08-01 | F86: =IF(BM59=0,MAX(E81:E88),BM59) -> 2012-08-01 | G86: =VLOOKUP(G85,Z52:AB135,IF(OR(AND(E41=O106,E42=O113,E85=F85),AND(E41=O106,E42=O112,F84=E85)),3,2),TRUE) -> 17050 | H86: 17050 | I86: 2012-08-01 | J86: 6 | Y86: 35 | Z86: =Z85+450 -> 17050 | AA86: =AA85+490 -> 17540 | AB86: 18030 | AC86: 35 | AD86: =AD85+450 -> 16600 | BE86: 35 | BF86: THIRTY FIVE | BH86: =BH85+450 -> 17050 | BI86: 35 | BJ86: 2011-08-28 | BK86: 2008-08-04 | BN86: 2010-09-01 | BO86: 2011-07-30T00:14:24 | BP86: 2010-09-01 | BQ86: =BILL!D12 -> 40422 | BR86: 40422 | BS86: =BILL!Z12 -> 20035 | BT86: =BILL!X12 -> 200 | BU86: =BILL!P12 -> 20601 | BV86: =BILL!N12 -> 200 | BW86: =VLOOKUP(BN86,BR78:BV111,2,TRUE) -> 20035 | BX86: =VLOOKUP(BN86,BR78:BV111,3,TRUE) -> 200 | BY86: =VLOOKUP(BN86,BR78:BV111,4,TRUE) -> 20601 | BZ86: =VLOOKUP(BN86,BR78:BV111,5,TRUE) -> 200
D87: 7 | E87: 2010-08-01 | F87: =IF(BM60=0,MAX(E81:E88),BM60) -> 2012-08-01 | G87: =VLOOKUP(G86,Z52:AB135,IF(OR(AND(E41=O106,E42=O113,E85=F87),AND(E41=O106,E42=O112,F86=E85)),3,2),TRUE) -> 17540 | H87: 17540 | I87: 2012-08-01 | J87: 7 | N87: ORDINARY | O87: 0 | P87: NIL | Y87: 36 | Z87: =Z86+490 -> 17540 | AA87: =AA86+490 -> 18030 | AB87: 18520 | AC87: 36 | AD87: =AD86+450 -> 17050 | BE87: 36 | BF87: THIRTY SIX | BH87: =BH86+490 -> 17540 | BI87: 36 | BJ87: 2011-08-29 | BK87: 2008-08-05 | BN87: 2010-10-01 | BO87: 2011-07-30T00:14:24 | BP87: 2010-10-01 | BQ87: =BILL!D13 -> 40452 | BR87: 40452 | BS87: =BILL!Z13 -> 20035 | BT87: =BILL!X13 -> 200 | BU87: =BILL!P13 -> 20601 | BV87: =BILL!N13 -> 200 | BW87: =VLOOKUP(BN87,BR78:BV111,2,TRUE) -> 20035 | BX87: =VLOOKUP(BN87,BR78:BV111,3,TRUE) -> 200 | BY87: =VLOOKUP(BN87,BR78:BV111,4,TRUE) -> 20601 | BZ87: =VLOOKUP(BN87,BR78:BV111,5,TRUE) -> 200
D88: 8 | E88: =F69 -> 2010-02-01 | F88: =IF(BM61=0,MAX(E81:E88),BM61) -> 2012-08-01 | G88: =VLOOKUP(G87,Z52:AB135,IF(OR(AND(E41=O106,E42=O113,E85=F88),AND(E41=O106,E42=O112,F87=E85)),3,2),TRUE) -> 18030 | H88: 18030 | J88: 8 | N88: S.G | O88: 1 | P88: PHC ALVENCE | Y88: 37 | Z88: =Z87+490 -> 18030 | AA88: =AA87+490 -> 18520 | AB88: 19050 | AC88: 37 | AD88: =AD87+490 -> 17540 | AJ88: 1 | AK88: 2 | AL88: 3 | AM88: 4 | AN88: 5 | AO88: 6 | AP88: 7 | AQ88: 8 | BE88: 37 | BF88: THIRTY SEVEN | BH88: =BH87+490 -> 18030 | BI88: 37 | BJ88: 2011-08-30 | BK88: 2008-08-06 | BN88: 2010-11-01 | BO88: 2011-07-30T00:14:24 | BP88: 2010-11-01 | BQ88: =BILL!D14 -> 40483 | BR88: 40483 | BS88: =BILL!Z14 -> 20035 | BT88: =BILL!X14 -> 200 | BU88: =BILL!P14 -> 20601 | BV88: =BILL!N14 -> 200 | BW88: =VLOOKUP(BN88,BR78:BV111,2,TRUE) -> 20035 | BX88: =VLOOKUP(BN88,BR78:BV111,3,TRUE) -> 200 | BY88: =VLOOKUP(BN88,BR78:BV111,4,TRUE) -> 20601 | BZ88: =VLOOKUP(BN88,BR78:BV111,5,TRUE) -> 200
E89: =IF(E68=G65,E68+0.01,E81) -> 2010-02-01 | N89: S.P.P-1 | O89: 2 | P89: HMA-40 | Y89: 38 | Z89: =Z88+490 -> 18520 | AA89: =AA88+530 -> 19050 | AB89: 19580 | AC89: 38 | AD89: =AD88+490 -> 18030 | AF89: =AJ102 -> 2010-02-01 | AH89: =E71 -> 2010-02-01 | AI89: =IF(AND(E41=O106,E42=O113,AH89>AH93),F68,AH89) -> 2010-02-01 | AJ89: =IF(AI89=AJ102," ",AI89) ->  | BE89: 38 | BF89: THIRTY EIGHT | BH89: =BH88+490 -> 18520 | BI89: 38 | BJ89: 2011-08-31 | BK89: 2008-08-07 | BN89: 2010-12-01 | BO89: 2011-07-30T00:14:24 | BP89: 2010-12-01 | BQ89: =BILL!D15 -> 40513 | BR89: 40513 | BS89: =BILL!Z15 -> 20035 | BT89: =BILL!X15 -> 200 | BU89: =BILL!P15 -> 20601 | BV89: =BILL!N15 -> 200 | BW89: =VLOOKUP(BN89,BR78:BV111,2,TRUE) -> 20035 | BX89: =VLOOKUP(BN89,BR78:BV111,3,TRUE) -> 200 | BY89: =VLOOKUP(BN89,BR78:BV111,4,TRUE) -> 20601 | BZ89: =VLOOKUP(BN89,BR78:BV111,5,TRUE) -> 200
N90: S.P.P.-II | O90: 3 | P90: HMA-60 | Y90: 39 | Z90: =Z89+530 -> 19050 | AA90: =AA89+530 -> 19580 | AB90: 20110 | AC90: 39 | AD90: =AD89+490 -> 18520 | AF90: =AK102 -> 2010-08-01 | AH90: =E72 -> 2010-08-01 | AI90: =IF(AND(E41=O106,E42=O113,AH90>AH93),F68,AH90) -> 2010-08-01 | AJ90: =IF(AI90=AJ103," ",AI90) -> 2010-08-01 | AM90: =IF(AL90=AM103," ",AL90) ->  | BE90: 39 | BF90: THIRTY NINE | BH90: =BH89+530 -> 19050 | BI90: 39 | BJ90: 2011-09-01 | BK90: 2008-08-08 | BN90: 2011-01-01 | BO90: 2011-07-30T00:14:24 | BP90: 2011-01-01 | BQ90: =BILL!D16 -> 40544 | BR90: 40544 | BS90: =BILL!Z16 -> 20798 | BT90: =BILL!X16 -> 200 | BU90: =BILL!P16 -> 21386 | BV90: =BILL!N16 -> 200 | BW90: =VLOOKUP(BN90,BR78:BV111,2,TRUE) -> 20798 | BX90: =VLOOKUP(BN90,BR78:BV111,3,TRUE) -> 200 | BY90: =VLOOKUP(BN90,BR78:BV111,4,TRUE) -> 21386 | BZ90: =VLOOKUP(BN90,BR78:BV111,5,TRUE) -> 200
N91: S.A.P.P.-I | O91: 4 | P91: HMA-75 | Y91: 40 | Z91: =Z90+530 -> 19580 | AA91: =AA90+530 -> 20110 | AB91: 20680 | AC91: 40 | AD91: =AD90+530 -> 19050 | AF91: =AL102 -> 2011-08-01 | AH91: 2011-08-01 | AI91: =IF(AND(E41=O106,E42=O113,AH91>AH93),F68,AH91) -> 2011-08-01 | AJ91: 2011-08-01 | AK91: 2011-08-01 | BE91: 40 | BF91: FORTY | BH91: =BH90+530 -> 19580 | BI91: 40 | BJ91: 2011-09-02 | BK91: 2008-08-09 | BN91: 2011-02-01 | BO91: 2011-07-30T00:14:24 | BP91: 2011-02-01 | BQ91: =BILL!D17 -> 40575 | BR91: 40575 | BS91: =BILL!Z17 -> 20798 | BT91: =BILL!X17 -> 200 | BU91: =BILL!P17 -> 21386 | BV91: =BILL!N17 -> 200 | BW91: =VLOOKUP(BN91,BR78:BV111,2,TRUE) -> 20798 | BX91: =VLOOKUP(BN91,BR78:BV111,3,TRUE) -> 200 | BY91: =VLOOKUP(BN91,BR78:BV111,4,TRUE) -> 21386 | BZ91: =VLOOKUP(BN91,BR78:BV111,5,TRUE) -> 200
C92: date of first appointment | E92: =E134 -> 1997-08-06 | N92: S.A.P.P-II | O92: 5 | P92: CCA @HYD | Y92: 41 | Z92: =Z91+530 -> 20110 | AA92: =AA91+570 -> 20680 | AB92: 21250 | AC92: 41 | AD92: =AD91+530 -> 19580 | AF92: =AM102 -> 2012-08-01 | AH92: 2012-08-01 | AI92: =IF(AND(E41=O106,E42=O113,AH92>AH93),F68,AH92) -> 2012-08-01 | AJ92: 2012-08-01 | AK92: 2012-08-01 | AL92: 2012-08-01 | BE92: 41 | BF92: FORTY ONE | BH92: =BH91+530 -> 20110 | BI92: 41 | BJ92: 2011-09-03 | BK92: 2008-08-10 | BN92: 2011-03-01 | BO92: 2011-07-30T00:14:24 | BP92: 2011-03-01 | BQ92: =BILL!D18 -> 40603 | BR92: 40603 | BS92: =BILL!Z18 -> 20798 | BT92: =BILL!X18 -> 200 | BU92: =BILL!P18 -> 21386 | BV92: =BILL!N18 -> 200 | BW92: =VLOOKUP(BN92,BR78:BV111,2,TRUE) -> 20798 | BX92: =VLOOKUP(BN92,BR78:BV111,3,TRUE) -> 200 | BY92: =VLOOKUP(BN92,BR78:BV111,4,TRUE) -> 21386 | BZ92: =VLOOKUP(BN92,BR78:BV111,5,TRUE) -> 200
C93: date of regularigation | E93: =E92 -> 1997-08-06 | O93: 6 | P93: CCA @VIZ | Y93: 42 | Z93: =Z92+570 -> 20680 | AA93: =AA92+570 -> 21250 | AB93: 21820 | AC93: 42 | AD93: =AD92+530 -> 20110 | AF93: =AN102 -> 00:00:00 | AH93: 2010-08-01 | AI93: =AH93 -> 2010-08-01 | AJ93: 2010-08-01 | BE93: 42 | BF93: FORTY TWO | BH93: =BH92+570 -> 20680 | BI93: 42 | BJ93: 2011-09-04 | BK93: 2008-08-11 | BN93: 2011-04-01 | BO93: 2011-07-30T00:14:24 | BP93: 2011-04-01 | BQ93: =BILL!D19 -> 40634 | BR93: 40634 | BS93: =BILL!Z19 -> 21095 | BT93: =BILL!X19 -> 200 | BU93: =BILL!P19 -> 21692 | BV93: =BILL!N19 -> 200 | BW93: =VLOOKUP(BN93,BR78:BV111,2,TRUE) -> 21095 | BX93: =VLOOKUP(BN93,BR78:BV111,3,TRUE) -> 200 | BY93: =VLOOKUP(BN93,BR78:BV111,4,TRUE) -> 21692 | BZ93: =VLOOKUP(BN93,BR78:BV111,5,TRUE) -> 200
C94: daate of compleation of 6/12/18/24 years | E94: =E69 -> 2009-08-06 | F94: =F53 -> 12 | P94: CCA@ OTHERS | Y94: 43 | Z94: =Z93+570 -> 21250 | AA94: =AA93+570 -> 21820 | AB94: 22430 | AC94: 43 | AD94: =AD93+570 -> 20680 | AF94: =AO102 -> 00:00:00 | AH94: 2010-08-01 | AI94: =IF(AND(E41=O106,E42=O113),AH94,F68) -> 2010-02-01 | BE94: 43 | BF94: FORTY THREE | BH94: =BH93+570 -> 21250 | BI94: 43 | BJ94: 2011-09-05 | BK94: 2008-08-12 | BN94: 2011-05-01 | BO94: 2011-07-30T00:14:24 | BP94: 2011-05-01 | BQ94: =BILL!D20 -> 40664 | BR94: 40664 | BS94: =BILL!Z20 -> 21095 | BT94: =BILL!X20 -> 200 | BU94: =BILL!P20 -> 21692 | BV94: =BILL!N20 -> 200 | BW94: =VLOOKUP(BN94,BR78:BV111,2,TRUE) -> 21095 | BX94: =VLOOKUP(BN94,BR78:BV111,3,TRUE) -> 200 | BY94: =VLOOKUP(BN94,BR78:BV111,4,TRUE) -> 21692 | BZ94: =VLOOKUP(BN94,BR78:BV111,5,TRUE) -> 200
C95: perticulars of eol valied | E95: =IF(E64=0,"NIL",E64) -> NIL | N95: S.G./SPP-1/SPP-II | Y95: 44 | Z95: =Z94+570 -> 21820 | AA95: =AA94+610 -> 22430 | AB95: 23040 | AC95: 44 | AD95: =AD94+570 -> 21250 | AF95: =AP102 -> 00:00:00 | AH95: 2010-08-01 | AI95: =IF(AND(E41=O106,E42=O113),AH95,F68) -> 2010-02-01 | BE95: 44 | BF95: FORTY FOUR | BH95: =BH94+570 -> 21820 | BI95: 44 | BJ95: 2011-09-06 | BK95: 2008-08-13 | BN95: 2011-06-01 | BO95: 2011-07-30T00:14:24 | BP95: 2011-06-01 | BQ95: =BILL!D21 -> 0 | BR95: 40664.1 | BS95: =BILL!Z21 -> 0 | BT95: =BILL!X21 -> 0 | BU95: =BILL!P21 -> 0 | BV95: =BILL!N21 -> 0 | BW95: =VLOOKUP(BN95,BR78:BV111,2,TRUE) -> 21095 | BX95: =VLOOKUP(BN95,BR78:BV111,3,TRUE) -> 200 | BY95: =VLOOKUP(BN95,BR78:BV111,4,TRUE) -> 21692 | BZ95: =VLOOKUP(BN95,BR78:BV111,5,TRUE) -> 200
C96: pay and scale of pay as on 1/11/2010 | E96: =F244 -> 14440 | F96: =O63 -> 11530-330-12190-360-13270-390-14440-420-15700-450-17050-490-18520-530-20110-570-21820-610-23650-650-25600-700-27700-750-29950-800-32350-850-33200 | G96: =VLOOKUP(F96,U59:V68,2,TRUE) -> 11530-33200 | N96: S.G./S.P.P-I/S.A.PP.-II | Y96: 45 | Z96: =Z95+610 -> 22430 | AA96: =AA95+610 -> 23040 | AB96: 23650 | AC96: 45 | AD96: =AD95+570 -> 21820 | AF96: =AQ102 -> 00:00:00 | AH96: 2010-02-01 | AI96: =AH96 -> 2010-02-01 | BE96: 45 | BF96: FORTY FIVE | BH96: =BH95+610 -> 22430 | BI96: 45 | BJ96: 2011-09-07 | BK96: 2008-08-14 | BN96: 2011-07-01 | BO96: 2011-07-30T00:14:24 | BP96: 2011-07-01 | BQ96: =BILL!D22 -> 0 | BR96: 40664.2 | BS96: =BILL!Z22 -> 0 | BT96: =BILL!X22 -> 0 | BU96: =BILL!P22 -> 0 | BV96: =BILL!N22 -> 0 | BW96: =VLOOKUP(BN96,BR78:BV111,2,TRUE) -> 20416 | BX96: =VLOOKUP(BN96,BR78:BV111,3,TRUE) -> 200 | BY96: =VLOOKUP(BN96,BR78:BV111,4,TRUE) -> 21692 | BZ96: =VLOOKUP(BN96,BR78:BV111,5,TRUE) -> 200
C97: pay in spoecial grade fixation as per fr.22a(i) on 1/11/2010 | E97: =G244 -> 14860 | F97: =P73 -> 14860-420-15700-450-17050-490-18520-530-20110-570-21820-610-23650-650-25600-700-27700-750-29950-800-32350-850-34900-900-37600-970-39540 | G97: =VLOOKUP(F97,U59:V68,2,TRUE) -> 14860-39540 | N97: S.G./S.A.PP-I/SAPP-II | Y97: 46 | Z97: =Z96+610 -> 23040 | AA97: =AA96+610 -> 23650 | AB97: 24300 | AC97: 46 | AD97: =AD96+610 -> 22430 | BE97: 46 | BF97: FORTY SIX | BH97: =BH96+610 -> 23040 | BI97: 46 | BJ97: 2011-09-08 | BK97: 2008-08-15 | BN97: 2011-08-01 | BO97: 2011-07-30T00:14:24 | BP97: 00:00:00 | BQ97: =BILL!D23 -> 0 | BR97: 40664.3 | BS97: =BILL!Z23 -> 0 | BT97: =BILL!X23 -> 0 | BU97: =BILL!P23 -> 0 | BV97: =BILL!N23 -> 0 | BW97: =VLOOKUP(BN97,BR78:BV111,2,TRUE) -> 0 | BX97: =VLOOKUP(BN97,BR78:BV111,3,TRUE) -> 0 | BY97: =VLOOKUP(BN97,BR78:BV111,4,TRUE) -> 0 | BZ97: =VLOOKUP(BN97,BR78:BV111,5,TRUE) -> 0
C98: date of next increment | E98: =VLOOKUP(E135,F81:F88,1,TRUE) -> 2010-08-01 | F98: =VLOOKUP(E98,F81:I87,4,TRUE) -> 2011-08-01 | Y98: 47 | Z98: =Z97+610 -> 23650 | AA98: =AA97+650 -> 24300 | AB98: 24950 | AC98: 47 | AD98: =AD97+610 -> 23040 | BE98: 47 | BF98: FORTY SEVEN | BH98: =BH97+610 -> 23650 | BI98: 47 | BJ98: 2011-09-09 | BK98: 2008-08-16 | BN98: 2011-09-01 | BO98: 2011-07-30T00:14:24 | BP98: 00:00:00 | BQ98: =BILL!D24 -> 0 | BR98: 40664.4 | BS98: =BILL!Z24 -> 0 | BT98: =BILL!X24 -> 0 | BU98: =BILL!P24 -> 0 | BV98: =BILL!N24 -> 0 | BW98: =VLOOKUP(BN98,BR78:BV111,2,TRUE) -> 0 | BX98: =VLOOKUP(BN98,BR78:BV111,3,TRUE) -> 0 | BY98: =VLOOKUP(BN98,BR78:BV111,4,TRUE) -> 0 | BZ98: =VLOOKUP(BN98,BR78:BV111,5,TRUE) -> 0
N99: 0 | O99: =IF(H131=1,200,IF(H131=2,120,100)) ->  | Q99: 0 | Y99: 48 | Z99: =Z98+650 -> 24300 | AA99: =AA98+650 -> 24950 | AB99: 25600 | AC99: 48 | AD99: =AD98+610 -> 23650 | BE99: 48 | BF99: FORTY EIGHT | BH99: =BH98+650 -> 24300 | BI99: 48 | BJ99: 2011-09-10 | BK99: 2008-08-17 | BN99: 2011-10-01 | BO99: 2011-07-30T00:14:24 | BP99: 00:00:00 | BQ99: =BILL!D25 -> 0 | BR99: 40664.5 | BS99: =BILL!Z25 -> 0 | BT99: =BILL!X25 -> 0 | BU99: =BILL!P25 -> 0 | BV99: =BILL!N25 -> 0 | BW99: =VLOOKUP(BN99,BR78:BV111,2,TRUE) -> 0 | BX99: =VLOOKUP(BN99,BR78:BV111,3,TRUE) -> 0 | BY99: =VLOOKUP(BN99,BR78:BV111,4,TRUE) -> 0 | BZ99: =VLOOKUP(BN99,BR78:BV111,5,TRUE) -> 0
N100: 8201 | O100: =IF(H131=1,300,IF(H131=2,160,120)) ->  | Q100: 4825 | Y100: 49 | Z100: =Z99+650 -> 24950 | AA100: =AA99+650 -> 25600 | AB100: 26300 | AC100: 49 | AD100: =AD99+650 -> 24300 | BE100: 49 | BF100: FORTY NINE | BH100: =BH99+650 -> 24950 | BI100: 49 | BJ100: 2011-09-11 | BK100: 2008-08-18 | BN100: 2011-11-01 | BO100: 2011-07-30T00:14:24 | BP100: 00:00:00 | BQ100: =BILL!D26 -> 0 | BR100: 40664.6 | BS100: =BILL!Z26 -> 0 | BT100: =BILL!X26 -> 0 | BU100: =BILL!P26 -> 0 | BV100: =BILL!N26 -> 0 | BW100: =VLOOKUP(BN100,BR78:BV111,2,TRUE) -> 0 | BX100: =VLOOKUP(BN100,BR78:BV111,3,TRUE) -> 0 | BY100: =VLOOKUP(BN100,BR78:BV111,4,TRUE) -> 0 | BZ100: =VLOOKUP(BN100,BR78:BV111,5,TRUE) -> 0
E101: =VLOOKUP(F69,F81:J88,5,TRUE) -> 1900-01-01 | F101: =VLOOKUP(E101,D81:G88,3,TRUE) -> 2010-02-01 | H101: =VLOOKUP(E101,D81:H88,4,TRUE) -> 14860 | I101: =VLOOKUP(H101,Z52:AD135,5,TRUE) -> 14440 | N101: 13271 | O101: =IF(H131=1,350,IF(H131=2,220,130)) ->  | Q101: 7770 | Y101: 50 | Z101: =Z100+650 -> 25600 | AA101: =AA100+700 -> 26300 | AB101: 27000 | AC101: 50 | AD101: =AD100+650 -> 24950 | AJ101: 1 | AK101: 2 | AL101: 3 | AM101: 4 | AN101: 5 | AO101: 6 | AP101: 7 | AQ101: 8 | BE101: 50 | BF101: FIFTY | BH101: =BH100+650 -> 25600 | BI101: 50 | BJ101: 2011-09-12 | BK101: 2008-08-19 | BN101: 2011-12-01 | BO101: 2011-07-30T00:14:24 | BP101: 00:00:00 | BQ101: =BILL!D27 -> 0 | BR101: 40664.7 | BS101: =BILL!Z27 -> 0 | BT101: =BILL!X27 -> 0 | BU101: =BILL!P27 -> 0 | BV101: =BILL!N27 -> 0 | BW101: =VLOOKUP(BN101,BR78:BV111,2,TRUE) -> 0 | BX101: =VLOOKUP(BN101,BR78:BV111,3,TRUE) -> 0 | BY101: =VLOOKUP(BN101,BR78:BV111,4,TRUE) -> 0 | BZ101: =VLOOKUP(BN101,BR78:BV111,5,TRUE) -> 0
E102: =E101+1 -> 1900-01-02 | F102: =VLOOKUP(E102,D81:G88,3,TRUE) -> 2010-08-01 | H102: =VLOOKUP(E102,D81:H88,4,TRUE) -> 15280 | I102: =H101 -> 14860 | N102: 18031 | O102: =IF(H131=1,525,IF(H131=2,350,140)) ->  | Q102: 10565 | Y102: 51 | Z102: =Z101+700 -> 26300 | AA102: =AA101+700 -> 27000 | AB102: 27700 | AC102: 51 | AD102: =AD101+650 -> 25600 | AI102: 1 | AJ102: =MIN(AI89:AI96) -> 2010-02-01 | AK102: 2010-08-01 | AL102: 2011-08-01 | AM102: 2012-08-01 | AN102: 00:00:00 | AO102: 00:00:00 | AP102: 00:00:00 | AQ102: 00:00:00 | BE102: 51 | BF102: FIFTY ONE | BH102: =BH101+700 -> 26300 | BI102: 51 | BJ102: 2011-09-13 | BK102: 2008-08-20 | BN102: 2012-01-01 | BO102: 2011-07-30T00:14:24 | BP102: 00:00:00 | BQ102: =BILL!D28 -> 0 | BR102: 40664.8 | BS102: =BILL!Z28 -> 0 | BT102: =BILL!X28 -> 0 | BU102: =BILL!P28 -> 0 | BV102: =BILL!N28 -> 0 | BW102: =VLOOKUP(BN102,BR78:BV111,2,TRUE) -> 0 | BX102: =VLOOKUP(BN102,BR78:BV111,3,TRUE) -> 0 | BY102: =VLOOKUP(BN102,BR78:BV111,4,TRUE) -> 0 | BZ102: =VLOOKUP(BN102,BR78:BV111,5,TRUE) -> 0
E103: 1900-01-03 | F103: =VLOOKUP(E103,D81:G88,3,TRUE) -> 2011-08-01 | H103: =VLOOKUP(E103,D81:H88,4,TRUE) -> 15700 | I103: =H102 -> 15280 | Y103: 52 | Z103: =Z102+700 -> 27000 | AA103: =AA102+700 -> 27700 | AB103: 28450 | AC103: 52 | AD103: =AD102+700 -> 26300 | AI103: 2 | AJ103: =AJ102 -> 2010-02-01 | AK103: =AK102 -> 2010-08-01 | AL103: =AL102 -> 2011-08-01 | AM103: =AM102 -> 2012-08-01 | AN103: =AN102 -> 00:00:00 | AO103: 00:00:00 | AP103: 00:00:00 | AQ103: 00:00:00 | BE103: 52 | BF103: FIFTY TWO | BH103: =BH102+700 -> 27000 | BI103: 52 | BJ103: 2011-09-14 | BK103: 2008-08-21 | BN103: 2012-02-01 | BO103: 2011-07-30T00:14:24 | BP103: 00:00:00 | BQ103: 0 | BR103: 40664.9 | BS103: =BILL!Z29 -> 0 | BT103: =BILL!X29 -> 0 | BU103: =BILL!P29 -> 0 | BV103: =BILL!N29 -> 0 | BW103: =VLOOKUP(BN103,BR78:BV111,2,TRUE) -> 0 | BX103: =VLOOKUP(BN103,BR78:BV111,3,TRUE) -> 0 | BY103: =VLOOKUP(BN103,BR78:BV111,4,TRUE) -> 0 | BZ103: =VLOOKUP(BN103,BR78:BV111,5,TRUE) -> 0
E104: 1900-01-04 | F104: =VLOOKUP(E104,D81:G88,3,TRUE) -> 2012-08-01 | H104: =VLOOKUP(E104,D81:H88,4,TRUE) -> 16150 | I104: 15700 | Y104: 53 | Z104: =Z103+700 -> 27700 | AA104: =AA103+750 -> 28450 | AB104: 29200 | AC104: 53 | AD104: =AD103+700 -> 27000 | AI104: 3 | AJ104: =AJ103 -> 2010-02-01 | AK104: =AK103 -> 2010-08-01 | AL104: =AL103 -> 2011-08-01 | AM104: =AM103 -> 2012-08-01 | AN104: 00:00:00 | AO104: 00:00:00 | AP104: 00:00:00 | AQ104: 00:00:00 | BE104: 53 | BF104: FIFYT THREE | BH104: =BH103+700 -> 27700 | BI104: 53 | BJ104: 2011-09-15 | BK104: 2008-08-22 | BN104: 2012-03-01 | BO104: 2011-07-30T00:14:24 | BP104: 00:00:00 | BQ104: =BILL!D30 -> 40695 | BR104: 40695 | BS104: =BILL!Z30 -> 21095 | BT104: =BILL!X30 -> 200 | BU104: =BILL!P30 -> 21692 | BV104: =BILL!N30 -> 200 | BW104: =VLOOKUP(BN104,BR78:BV111,2,TRUE) -> 0 | BX104: =VLOOKUP(BN104,BR78:BV111,3,TRUE) -> 0 | BY104: =VLOOKUP(BN104,BR78:BV111,4,TRUE) -> 0 | BZ104: =VLOOKUP(BN104,BR78:BV111,5,TRUE) -> 0
E105: 1900-01-05 | F105: =VLOOKUP(E105,D81:G88,3,TRUE) -> 2012-08-01 | H105: =VLOOKUP(E105,D81:H88,4,TRUE) -> 16600 | I105: 16150 | Y105: 54 | Z105: =Z104+750 -> 28450 | AA105: =AA104+750 -> 29200 | AB105: 29950 | AC105: 54 | AD105: =AD104+700 -> 27700 | AI105: 4 | AJ105: 2010-02-01 | AK105: 2010-08-01 | AL105: 2011-08-01 | AM105: 2012-08-01 | AN105: 00:00:00 | AO105: 00:00:00 | AP105: 00:00:00 | AQ105: 00:00:00 | BE105: 54 | BF105: FIFTY FOUR | BH105: =BH104+750 -> 28450 | BI105: 54 | BJ105: 2011-09-16 | BK105: 2008-08-23 | BN105: 2012-04-01 | BO105: 2011-07-30T00:14:24 | BP105: 00:00:00 | BQ105: =BILL!D31 -> 40725 | BR105: 40725 | BS105: =BILL!Z31 -> 20416 | BT105: =BILL!X31 -> 200 | BU105: =BILL!P31 -> 21692 | BV105: =BILL!N31 -> 200 | BW105: =VLOOKUP(BN105,BR78:BV111,2,TRUE) -> 0 | BX105: =VLOOKUP(BN105,BR78:BV111,3,TRUE) -> 0 | BY105: =VLOOKUP(BN105,BR78:BV111,4,TRUE) -> 0 | BZ105: =VLOOKUP(BN105,BR78:BV111,5,TRUE) -> 0
E106: 1900-01-06 | F106: =VLOOKUP(E106,D81:G88,3,TRUE) -> 2012-08-01 | H106: =VLOOKUP(E106,D81:H88,4,TRUE) -> 17050 | I106: 16600 | N106: Z.P.P.F. | O106: YES | P106: SUBSTANTIVE | R106: FR.22B ON | Y106: 55 | Z106: =Z105+750 -> 29200 | AA106: =AA105+750 -> 29950 | AB106: 30750 | AC106: 55 | AD106: =AD105+750 -> 28450 | AI106: 5 | AJ106: 2010-02-01 | AK106: 2010-08-01 | AL106: 2011-08-01 | AM106: 2012-08-01 | AN106: 00:00:00 | AO106: 00:00:00 | AP106: 00:00:00 | AQ106: 00:00:00 | BE106: 55 | BF106: FIFTY FIVE | BH106: =BH105+750 -> 29200 | BI106: 55 | BJ106: 2011-09-17 | BK106: 2008-08-24 | BN106: 2012-04-02 | BO106: =BO105 -> 2011-07-30T00:14:24 | BP106: =IF(BN106<BO106,BN106,0) -> 00:00:00 | BQ106: =BILL!D32 -> 0 | BR106: 40725.1 | BS106: =BILL!Z32 -> 0 | BT106: =BILL!X32 -> 0 | BU106: =BILL!P32 -> 0 | BV106: =BILL!N32 -> 0 | BW106: =VLOOKUP(BN106,BR78:BV111,2,TRUE) -> 0 | BX106: =VLOOKUP(BN106,BR78:BV111,3,TRUE) -> 0 | BY106: =VLOOKUP(BN106,BR78:BV111,4,TRUE) -> 0 | BZ106: =VLOOKUP(BN106,BR78:BV111,5,TRUE) -> 0
E107: 1900-01-07 | F107: =VLOOKUP(E107,D81:G88,3,TRUE) -> 2012-08-01 | H107: =VLOOKUP(E107,D81:H88,4,TRUE) -> 17540 | I107: 17050 | N107: G.P.F. | O107: NO | P107: OFFICIATING | R107: FR.22a(i) ON | Y107: 56 | Z107: =Z106+750 -> 29950 | AA107: =AA106+800 -> 30750 | AB107: 31550 | AC107: 56 | AD107: =AD106+750 -> 29200 | AI107: 6 | AJ107: 2010-02-01 | AK107: 2010-08-01 | AL107: 2011-08-01 | AM107: 2012-08-01 | AN107: 00:00:00 | AO107: 00:00:00 | AP107: 00:00:00 | AQ107: 00:00:00 | BE107: 56 | BF107: FIFTY SIX | BH107: =BH106+750 -> 29950 | BI107: 56 | BJ107: 2011-09-18 | BK107: 2008-08-25 | BN107: 2012-04-03 | BO107: 2011-07-30T00:14:24 | BP107: 00:00:00 | BQ107: =BILL!D33 -> 0 | BR107: 40725.2 | BS107: =BILL!Z33 -> 0 | BT107: =BILL!X33 -> 0 | BU107: =BILL!P33 -> 0 | BV107: =BILL!N33 -> 0 | BW107: =VLOOKUP(BN107,BR78:BV111,2,TRUE) -> 0 | BX107: =VLOOKUP(BN107,BR78:BV111,3,TRUE) -> 0 | BY107: =VLOOKUP(BN107,BR78:BV111,4,TRUE) -> 0 | BZ107: =VLOOKUP(BN107,BR78:BV111,5,TRUE) -> 0
F108: =F101 -> 2010-02-01 | H108: =IF(F108<>0,H101,0) -> 14860 | I108: =IF(F108<>0,I101,0) -> 14440 | J108: =G97 -> 14860-39540 | K108: =J108 -> 14860-39540 | L108: =IF(O113=E42,J108,K108) -> 14860-39540 | N108: M.P.P.School | Q108: JANUARY | R108: =IF(E42=O112,R106,R107) -> FR.22a(i) ON | Y108: 57 | Z108: =Z107+800 -> 30750 | AA108: =AA107+800 -> 31550 | AB108: 32350 | AC108: 57 | AD108: =AD107+750 -> 29950 | AI108: 7 | AJ108: 2010-02-01 | AK108: 2010-08-01 | AL108: 2011-08-01 | AM108: 2012-08-01 | AN108: 00:00:00 | AO108: 00:00:00 | AP108: 00:00:00 | AQ108: 00:00:00 | BE108: 57 | BF108: FIFTY SEVEN | BH108: =BH107+800 -> 30750 | BI108: 57 | BJ108: 2011-09-19 | BK108: 2008-08-26 | BN108: 2012-04-04 | BO108: 2011-07-30T00:14:24 | BP108: 00:00:00 | BQ108: =BILL!D34 -> 0 | BR108: 40725.3 | BS108: =BILL!Z34 -> 0 | BT108: =BILL!X34 -> 0 | BU108: =BILL!P34 -> 0 | BV108: =BILL!N34 -> 0 | BW108: =VLOOKUP(BN108,BR78:BV111,2,TRUE) -> 0 | BX108: =VLOOKUP(BN108,BR78:BV111,3,TRUE) -> 0 | BY108: =VLOOKUP(BN108,BR78:BV111,4,TRUE) -> 0 | BZ108: =VLOOKUP(BN108,BR78:BV111,5,TRUE) -> 0
F109: =IF(OR(F101=F102,F102>E135),0,F102) -> 2010-08-01 | H109: =IF(F109<>0,H102,0) -> 15280 | I109: =IF(F109<>0,I102,0) -> 14860 | J109: =IF(F109=E138,O78,J108) -> 14860-39540 | K109: =IF(F108=E138,O78,J108) -> 14860-39540 | L109: =IF(O113=E42,J109,K109) -> 14860-39540 | N109: M.P.U.P.School | Q109: FEBRUARY | Y109: 58 | Z109: =Z108+800 -> 31550 | AA109: =AA108+800 -> 32350 | AB109: 33200 | AC109: 58 | AD109: =AD108+800 -> 30750 | AI109: 8 | AJ109: 2010-02-01 | AK109: 2010-08-01 | AL109: 2011-08-01 | AM109: 2012-08-01 | AN109: 00:00:00 | AO109: 00:00:00 | AP109: 00:00:00 | AQ109: 00:00:00 | BE109: 58 | BF109: FIFTY EIGHT | BH109: =BH108+800 -> 31550 | BI109: 58 | BJ109: 2011-09-20 | BK109: 2008-08-27 | BN109: 2012-04-05 | BO109: 2011-07-30T00:14:24 | BP109: 00:00:00 | BQ109: =BILL!D35 -> 0 | BR109: 40725.4 | BS109: =BILL!Z35 -> 0 | BT109: =BILL!X35 -> 0 | BU109: =BILL!P35 -> 0 | BV109: =BILL!N35 -> 0 | BW109: =VLOOKUP(BN109,BR78:BV111,2,TRUE) -> 0 | BX109: =VLOOKUP(BN109,BR78:BV111,3,TRUE) -> 0 | BY109: =VLOOKUP(BN109,BR78:BV111,4,TRUE) -> 0 | BZ109: =VLOOKUP(BN109,BR78:BV111,5,TRUE) -> 0
F110: =IF(OR(F102=F103,F103>E135),0,F103) -> 00:00:00 | H110: 0 | I110: 0 | J110: =IF(F110=E138,O78,J109) -> 14860-39540 | K110: =IF(F109=E138,O78,J109) -> 14860-39540 | L110: =IF(O113=E42,J110,K110) -> 14860-39540 | N110: Z.P.H.School | Q110: MARCH | Y110: 59 | Z110: =Z109+800 -> 32350 | AA110: =AA109+850 -> 33200 | AB110: 34050 | AC110: 59 | AD110: =AD109+800 -> 31550 | AI110: 9 | AJ110: 2010-02-01 | AK110: 2010-08-01 | AL110: 2011-08-01 | AM110: 2012-08-01 | AN110: 00:00:00 | AO110: 00:00:00 | AP110: 00:00:00 | AQ110: 00:00:00 | BE110: 59 | BF110: FIFTY NINE | BH110: =BH109+800 -> 32350 | BI110: 59 | BJ110: 2011-09-21 | BK110: 2008-08-28 | BN110: 2012-04-06 | BO110: 2011-07-30T00:14:24 | BP110: 00:00:00 | BQ110: =BILL!D36 -> 0 | BR110: 40725.5 | BS110: =BILL!Z36 -> 0 | BT110: =BILL!X36 -> 0 | BU110: =BILL!P36 -> 0 | BV110: =BILL!N36 -> 0 | BW110: =VLOOKUP(BN110,BR78:BV111,2,TRUE) -> 0 | BX110: =VLOOKUP(BN110,BR78:BV111,3,TRUE) -> 0 | BY110: =VLOOKUP(BN110,BR78:BV111,4,TRUE) -> 0 | BZ110: =VLOOKUP(BN110,BR78:BV111,5,TRUE) -> 0
F111: =IF(OR(F103=F104,F104>E135),0,F104) -> 00:00:00 | H111: 0 | I111: 0 | J111: =IF(F111=E138,O78,J110) -> 14860-39540 | K111: =IF(F110=E138,O78,J110) -> 14860-39540 | L111: =IF(O113=E42,J111,K111) -> 14860-39540 | N111: G.PRIMARY.School | Q111: APRIL | Y111: 60 | Z111: =Z110+850 -> 33200 | AA111: =AA110+850 -> 34050 | AB111: 34900 | AC111: 60 | AD111: =AD110+800 -> 32350 | AI111: 10 | AJ111: 2010-02-01 | AK111: 2010-08-01 | AL111: 2011-08-01 | AM111: 2012-08-01 | AN111: 00:00:00 | AO111: 00:00:00 | AP111: 00:00:00 | AQ111: 00:00:00 | BE111: 60 | BF111: SIXTY | BH111: =BH110+850 -> 33200 | BI111: 60 | BJ111: 2011-09-22 | BK111: 2008-08-29 | BN111: 2012-04-07 | BO111: 2011-07-30T00:14:24 | BP111: 00:00:00 | BQ111: =BILL!D37 -> 0 | BR111: 40725.6 | BS111: =BILL!Z37 -> 0 | BT111: =BILL!X37 -> 0 | BU111: =BILL!P37 -> 0 | BV111: =BILL!N37 -> 0 | BW111: =VLOOKUP(BN111,BR78:BV111,2,TRUE) -> 0 | BX111: =VLOOKUP(BN111,BR78:BV111,3,TRUE) -> 0 | BY111: =VLOOKUP(BN111,BR78:BV111,4,TRUE) -> 0 | BZ111: =VLOOKUP(BN111,BR78:BV111,5,TRUE) -> 0
F112: =IF(OR(F104=F105,F105>E135),0,F105) -> 00:00:00 | H112: 0 | I112: 0 | J112: =IF(F112=E138,O78,J111) -> 14860-39540 | K112: =IF(F111=E138,O78,J111) -> 14860-39540 | L112: =IF(O113=E42,J112,K112) -> 14860-39540 | N112: G.H.School | O112: NEXT INCREMENT DATE | Q112: MAY | Y112: 61 | Z112: =Z111+850 -> 34050 | AA112: =AA111+850 -> 34900 | AB112: 35800 | AC112: 61 | AD112: =AD111+850 -> 33200 | BE112: 61 | BF112: SIXTY ONE | BH112: =BH111+850 -> 34050 | BI112: 61 | BJ112: 2011-09-23 | BK112: 2008-08-30
F113: =IF(OR(F105=F106,F106>E135),0,F106) -> 00:00:00 | H113: 0 | I113: 0 | J113: =IF(F113=E138,O78,J112) -> 14860-39540 | K113: =IF(F112=E138,O78,J112) -> 14860-39540 | L113: =IF(O113=E42,J113,K113) -> 14860-39540 | N113: 10 &12 | O113: DATE OF PROMOTION | Q113: JUNE | Y113: 62 | Z113: =Z112+850 -> 34900 | AA113: =AA112+900 -> 35800 | AB113: 36700 | AC113: 62 | AD113: =AD112+850 -> 34050 | BE113: 62 | BF113: SIXTY TWO | BH113: =BH112+850 -> 34900 | BI113: 62 | BJ113: 2011-09-24 | BK113: 2008-08-31
F114: =IF(OR(F106=F107,F107>E135),0,F107) -> 00:00:00 | H114: 0 | I114: 0 | J114: =IF(F114=E138,O78,J113) -> 14860-39540 | K114: =IF(F113=E138,O78,J113) -> 14860-39540 | L114: =IF(O113=E42,J114,K114) -> 14860-39540 | N114: 12.5&14.5 | Q114: JULY | Y114: 63 | Z114: =Z113+900 -> 35800 | AA114: =AA113+900 -> 36700 | AB114: 37600 | AC114: 63 | AD114: =AD113+850 -> 34900 | BE114: 63 | BF114: SIXTY THREE | BH114: =BH113+900 -> 35800 | BI114: 63 | BJ114: 2011-09-25 | BK114: 2008-09-01
N115: 20 | Q115: AUGUST | Y115: 64 | Z115: =Z114+900 -> 36700 | AA115: =AA114+900 -> 37600 | AB115: 38570 | AC115: 64 | AD115: =AD114+900 -> 35800 | BE115: 64 | BF115: SIXTY FOUR | BH115: =BH114+900 -> 36700 | BI115: 64 | BJ115: 2011-09-26 | BK115: 2008-09-02
N116: 30 | Q116: SEPTEMBER | Y116: 65 | Z116: =Z115+900 -> 37600 | AA116: =AA115+970 -> 38570 | AB116: 39540 | AC116: 65 | AD116: =AD115+900 -> 36700 | BE116: 65 | BF116: SIXTY FIVE | BH116: =BH115+900 -> 37600 | BI116: 65 | BJ116: 2011-09-27 | BK116: 2008-09-03
Q117: OCTOBER | Y117: 66 | Z117: =Z116+970 -> 38570 | AA117: =AA116+970 -> 39540 | AB117: 40510 | AC117: 66 | AD117: =AD116+900 -> 37600 | BE117: 66 | BF117: SIXTY SIX | BH117: =BH116+970 -> 38570 | BI117: 66 | BJ117: 2011-09-28 | BK117: 2008-09-04
Q118: NOVEMBER | Y118: 67 | Z118: =Z117+970 -> 39540 | AA118: =AA117+970 -> 40510 | AB118: 41550 | AC118: 67 | AD118: =AD117+970 -> 38570 | BE118: 67 | BF118: SIXTY SEVEN | BH118: =BH117+970 -> 39540 | BI118: 67 | BJ118: 2011-09-29 | BK118: 2008-09-05
Q119: DECEMBER | Y119: 68 | Z119: =Z118+970 -> 40510 | AA119: =AA118+1040 -> 41550 | AB119: 42590 | AC119: 68 | AD119: =AD118+970 -> 39540 | BE119: 68 | BF119: SIXTY EIGHT | BH119: =BH118+970 -> 40510 | BI119: 68 | BJ119: 2011-09-30 | BK119: 2008-09-06
C120: zppf/g.p.f | E120: =IF(E9="Z.P.P.F.",2,1) -> 2 | Y120: 69 | Z120: =Z119+1040 -> 41550 | AA120: =AA119+1040 -> 42590 | AB120: 43630 | AC120: 69 | AD120: =AD119+970 -> 40510 | BE120: 69 | BF120: SIXTY NINE | BH120: =BH119+1040 -> 41550 | BI120: 69 | BJ120: 2011-10-01 | BK120: 2008-09-07
C121: AGE EXEMPTION | E121: =IF(E13="YES",1,0) -> 0 | Q121: H.M. | Y121: 70 | Z121: =Z120+1040 -> 42590 | AA121: =AA120+1040 -> 43630 | AB121: 44740 | AC121: 70 | AD121: =AD120+1040 -> 41550 | BE121: 70 | BF121: SEVENTY | BH121: =BH120+1040 -> 42590 | BI121: 70 | BJ121: 2011-10-02 | BK121: 2008-09-08
E122: =ROUNDDOWN(E17/10000000000,0) -> 0 | F122: =ROUNDDOWN((E17-E122*10000000000)/1000000000,0) -> 7 | G122: =ROUNDDOWN((E17-E122*10000000000-F122*1000000000)/100000000,0) -> 0 | H122: =ROUNDDOWN((E17-E122*10000000000-F122*1000000000-G122*100000000)/10000000,0) -> 5 | I122: =ROUNDDOWN((E17-E122*10000000000-F122*1000000000-G122*100000000-H122*10000000)/1000000,0) -> 0 | J122: =ROUNDDOWN((E17-E122*10000000000-F122*1000000000-G122*100000000-H122*10000000-I122*1000000)/100000,0) -> 3 | K122: =ROUNDDOWN((E17-E122*10000000000-F122*1000000000-G122*100000000-H122*10000000-I122*1000000-J122*100000)/10000,0) -> 0 | L122: =ROUNDDOWN((E17-E122*10000000000-F122*1000000000-G122*100000000-H122*10000000-I122*1000000-J122*100000-K122*10000)/1000,0) -> 8 | M122: =ROUNDDOWN((E17-E122*10000000000-F122*1000000000-G122*100000000-H122*10000000-I122*1000000-J122*100000-K122*10000-L122*1000)/100,0) -> 0 | N122: =ROUNDDOWN((E17-E122*10000000000-F122*1000000000-G122*100000000-H122*10000000-I122*1000000-J122*100000-K122*10000-L122*1000-M122*100)/10,0) -> 2 | O122: =ROUNDDOWN((E17-E122*10000000000-F122*1000000000-G122*100000000-H122*10000000-I122*1000000-J122*100000-K122*10000-L122*1000-M122*100-N122*10),0) -> 6 | Q122: S.A.(M) | Y122: 71 | Z122: =Z121+1040 -> 43630 | AA122: =AA121+1110 -> 44740 | AB122: 45850 | AC122: 71 | AD122: =AD121+1040 -> 42590 | BE122: 71 | BF122: SEVENTY ONE | BH122: =BH121+1040 -> 43630 | BI122: 71 | BJ122: 2011-10-03 | BK122: 2008-09-09
E123: =IF(E23=O106,1,2) -> 2 | Q123: S.A.(P.S.) | Y123: 72 | Z123: =Z122+1110 -> 44740 | AA123: =AA122+1110 -> 45850 | AB123: 46960 | AC123: 72 | AD123: =AD122+1040 -> 43630 | BE123: 72 | BF123: SEVENTY TWO | BH123: =BH122+1110 -> 44740 | BI123: 72 | BJ123: 2011-10-04 | BK123: 2008-09-10
C124: TYPE SCHOOL | E124: =IF(OR(E30=N108,E30=N109),1,IF(E30=N110,2,IF(E30=N112,4,3))) -> 1 | Q124: S.A.(B.S.) | Y124: 73 | Z124: =Z123+1110 -> 45850 | AA124: =AA123+1110 -> 46960 | AB124: 48160 | AC124: 73 | AD124: =AD123+1110 -> 44740 | BE124: 73 | BF124: SEVENTY THREE | BH124: =BH123+1110 -> 45850 | BI124: 73 | BJ124: 2011-10-05 | BK124: 2008-09-11
E125: =IF(E32=P106,1,2) -> 1 | M125: 1 | N125: 31 | Q125: S.A.(S.S.) | Y125: 74 | Z125: =Z124+1110 -> 46960 | AA125: =AA124+1200 -> 48160 | AB125: 49360 | AC125: 74 | AD125: =AD124+1110 -> 45850 | BE125: 74 | BF125: SEVENTY FOUR | BH125: =BH124+1110 -> 46960 | BI125: 74 | BJ125: 2011-10-06 | BK125: 2008-09-12
E126: =IF(OR(E39=Q108,E39=Q109,E39=Q110,E39=Q111,E39=Q112,E39=Q113),IF(OR(E39=Q108,E39=Q109,E39=Q110),IF(E39=Q108,1,IF(E39=Q109,2,3)),IF(E39=Q111,4,IF(E39=Q112,5,6))),IF(OR(E39=Q114,E39=Q115,E39=Q116),IF(E39=Q114,7,IF(E39=Q115,8,9)),IF(E39=Q117,10,IF(E39=Q118,11,12)))) -> 8 | M126: 2 | N126: 28 | Q126: S.A.(ENG) | Y126: 75 | Z126: =Z125+1200 -> 48160 | AA126: =AA125+1200 -> 49360 | AB126: 50560 | AC126: 75 | AD126: =AD125+1110 -> 46960 | BE126: 75 | BF126: SEVENTY FIVE | BH126: =BH125+1200 -> 48160 | BI126: 75 | BJ126: 2011-10-07 | BK126: 2008-09-13
E127: =IF(E41=O106,1,2) -> 2 | M127: 3 | N127: 31 | Q127: S.A.(TEL) | Y127: 76 | Z127: =Z126+1200 -> 49360 | AA127: =AA126+1200 -> 50560 | AB127: 51760 | AC127: 76 | AD127: =AD126+1200 -> 48160 | BE127: 76 | BF127: SEVENTY SIX | BH127: =BH126+1200 -> 49360 | BI127: 76 | BJ127: 2011-10-08 | BK127: 2008-09-14
E128: =IF(E42=O112,1,2) -> 2 | M128: 4 | N128: 30 | Q128: S.A.(HIN) | Y128: 77 | Z128: =Z127+1200 -> 50560 | AA128: =AA127+1200 -> 51760 | AB128: 53060 | AC128: 77 | AD128: =AD127+1200 -> 49360 | BE128: 77 | BF128: SEVENTY SEVEN | BH128: =BH127+1200 -> 50560 | BI128: 77 | BJ128: 2011-10-09 | BK128: 2008-09-15
E129: =IF(#REF!=O106,1,2) ->  | M129: 5 | N129: 31 | Q129: S.A.( ) | Y129: 78 | Z129: =Z128+1200 -> 51760 | AA129: =AA128+1300 -> 53060 | AB129: 54360 | AC129: 78 | AD129: =AD128+1200 -> 50560 | BE129: 78 | BF129: SEVENTY EIGHT | BH129: =BH128+1200 -> 51760 | BI129: 78 | BJ129: 2011-10-10 | BK129: 2008-09-16
E130: =ROUNDDOWN(E19/1000,0) -> 3 | F130: =ROUNDDOWN((E19-E130*1000)/100,0) -> 6 | G130: =ROUNDDOWN((E19-(E130*1000+F130*100))/10,0) -> 4 | H130: =(E19-E130*1000-F130*100-G130*10) -> 1 | M130: 6 | N130: 30 | Q130: S.G.T. | Y130: 79 | Z130: =Z129+1300 -> 53060 | AA130: 54360 | AB130: 55660 | AC130: 79 | AD130: =AD129+1200 -> 51760 | AJ130: ='47-FRONT'!A65 -> 1195 | AM130: UNDER RUPEES : | AO130: ONLY | BE130: 79 | BF130: SEVENTY NINE | BH130: =BH129+1300 -> 53060 | BI130: 79 | BJ130: 2011-10-11 | BK130: 2008-09-17
C131: ALWANCES | E131: =IF(#REF!=P87,0,IF(#REF!=P88,1,IF(#REF!=P89,2,IF(#REF!=P90,3,IF(#REF!=P91,4,5))))) ->  | F131: =IF(#REF!=P87,0,IF(#REF!=P88,1,IF(#REF!=P89,2,IF(#REF!=P90,3,IF(#REF!=P91,4,5))))) ->  | G131: =IF(#REF!=P87,0,IF(#REF!=P88,1,IF(#REF!=P89,2,IF(#REF!=P90,3,IF(#REF!=P91,4,5))))) ->  | H131: =IF(OR(#REF!=P92,#REF!=P92,#REF!=P92),1,IF(OR(#REF!=P93,#REF!=P93,#REF!=P93),2,3)) ->  | M131: 7 | N131: 31 | Q131: Gr.II(TEL) | Y131: 80 | Z131: 54360 | AA131: 55660 | AB131: 56960 | AC131: 80 | AD131: =AD130+1300 -> 53060 | AJ131: =ROUNDDOWN(AJ130/100000,0) -> 0 | AK131: =IF(AJ131=0,T(AJ131),VLOOKUP(AJ131,BE52:BF150,2,TRUE)) ->  | AN131: =IF(AJ131=0,T(AJ131),IF(AND(AJ132=0,AJ133=0,AJ134=0,AJ131<>1)," LAKHS"," LAKH")) ->  | BE131: 80 | BF131: EIGHTY | BH131: 54360 | BI131: 80 | BJ131: 2011-10-12 | BK131: 2008-09-18
E132: =IF(#REF!=AH52,AG52,IF(#REF!=AH53,AG53,IF(#REF!=AH54,AG54,IF(#REF!=AH55,AG55,IF(#REF!=AH56,AG56,IF(#REF!=AH57,AG57,AG58)))))) ->  | F132: =VLOOKUP(E132,AG52:AM58,7,TRUE) ->  | M132: 8 | N132: 31 | Q132: Gr.II(HIN) | Y132: 81 | Z132: 55660 | AA132: 56960 | AB132: 58260 | AC132: 81 | AD132: 54360 | AJ132: =ROUNDDOWN((AJ130-AJ131*100000)/1000,0) -> 1 | AK132: =IF(AJ132=0,T(AJ132),VLOOKUP(AJ132,BE49:BF143,2,TRUE)) -> ONE | AN132: =IF(AJ132=0,T(AJ132),IF(AND(AJ133=0,AJ134=0,AJ132<>1)," THOUSANDS"," THOUSAND")) -> THOUSAND | BE132: 81 | BF132: EIGHTY ONE | BH132: 55660 | BI132: 81 | BJ132: 2011-10-13 | BK132: 2008-09-19
E133: =IF(E45=AH52,AG52,IF(E45=AH53,AG53,IF(E45=AH54,AG54,IF(E45=AH55,AG55,IF(E45=AH56,AG56,IF(E45=AH57,AG57,AG58)))))) -> 10845 | M133: 9 | N133: 30 | Q133: P.E.T.( ) | Y133: 82 | Z133: 56960 | AA133: 58260 | AB133: 59560 | AC133: 82 | AD133: 55660 | AJ133: =ROUNDDOWN((AJ130-AJ131*100000-AJ132*1000)/100,0) -> 1 | AK133: =IF(AJ133=0,T(AJ133),VLOOKUP(AJ133,BE49:BF143,2,TRUE)) -> ONE | AN133: =IF(AJ133=0,T(AJ133),IF(AND(AJ134=0,AJ133<>1)," HUNDREDS"," HUNDRED")) -> HUNDRED | BE133: 82 | BF133: EIGHTY TWO | BH133: 56960 | BI133: 82 | BJ133: 2011-10-14 | BK133: 2008-09-20
E134: =DATE(G28,F134,E28) -> 1997-08-06 | F134: =IF(OR(F28=Q108,F28=Q109,F28=Q110,F28=Q111,F28=Q112,F28=Q113),IF(OR(F28=Q108,F28=Q109,F28=Q110),IF(F28=Q108,1,IF(F28=Q109,2,3)),IF(F28=Q111,4,IF(F28=Q112,5,6))),IF(OR(F28=Q114,F28=Q115,F28=Q116),IF(F28=Q114,7,IF(F28=Q115,8,9)),IF(F28=Q117,10,IF(F28=Q118,11,12)))) -> 8 | M134: 10 | N134: 31 | Q134: Gr.II(CRAFT) | Y134: 83 | Z134: 58260 | AA134: 59560 | AB134: 60860 | AC134: 83 | AD134: 56960 | AJ134: =AJ130-AJ131*100000-AJ132*1000-AJ133*100 -> 95 | AK134: =IF(AJ134=0,T(AJ134),VLOOKUP(AJ134,BE49:BF143,2,TRUE)) -> NINETY TWO | AN134: =IF(OR(AJ134=0,AND(AJ131=0,AJ132=0,AJ133=0)),T(AJ134)," AND") -> AND | BE134: 83 | BF134: EIGHTY THREE | BH134: 58260 | BI134: 83 | BJ134: 2011-10-15 | BK134: 2008-09-21
E135: =DATE(G29,F135,E29)+0.01 -> 2011-07-30T00:14:24 | F135: =IF(OR(F29=Q108,F29=Q109,F29=Q110,F29=Q111,F29=Q112,F29=Q113),IF(OR(F29=Q108,F29=Q109,F29=Q110),IF(F29=Q108,1,IF(F29=Q109,2,3)),IF(F29=Q111,4,IF(F29=Q112,5,6))),IF(OR(F29=Q114,F29=Q115,F29=Q116),IF(F29=Q114,7,IF(F29=Q115,8,9)),IF(F29=Q117,10,IF(F29=Q118,11,12)))) -> 7 | M135: 11 | N135: 30 | Q135: P.D | Y135: 84 | Z135: 59560 | AA135: 60860 | AB135: 60860 | AC135: 84 | AD135: 58260 | AJ135: =IF(AJ130=0,"RUPEES ZERO ONLY",CONCATENATE(AM130,AK131,AN131,AK132,AN132,AK133,AN133,AN134,AK134,AO130)) -> UNDER RUPEES : ONE THOUSAND ONE HUNDRED AND NINETY TWO ONLY | AX135: 2010-02-01 | BE135: 84 | BF135: EIGHTY FOUR | BH135: 59560 | BI135: 84 | BJ135: 2011-10-16 | BK135: 2008-09-22
E136: =DATE(G38,F136,E38)+0.001 -> 2010-04-01T00:01:26.400 | F136: =IF(OR(F38=Q108,F38=Q109,F38=Q110,F38=Q111,F38=Q112,F38=Q113),IF(OR(F38=Q108,F38=Q109,F38=Q110),IF(F38=Q108,1,IF(F38=Q109,2,3)),IF(F38=Q111,4,IF(F38=Q112,5,6))),IF(OR(F38=Q114,F38=Q115,F38=Q116),IF(F38=Q114,7,IF(F38=Q115,8,9)),IF(F38=Q117,10,IF(F38=Q118,11,12)))) -> 4 | M136: 12 | N136: 31 | Q136: L.F.L.(H.M.) | AD136: 59560 | BE136: 85 | BF136: EIGHTY FIVE | BJ136: 2011-10-17 | BK136: 2008-09-23
E137: =DATE(#REF!,F137,#REF!)+0.01 ->  | F137: =IF(OR(#REF!=Q108,#REF!=Q109,#REF!=Q110,#REF!=Q111,#REF!=Q112,#REF!=Q113),IF(OR(#REF!=Q108,#REF!=Q109,#REF!=Q110),IF(#REF!=Q108,1,IF(#REF!=Q109,2,3)),IF(#REF!=Q111,4,IF(#REF!=Q112,5,6))),IF(OR(#REF!=Q114,#REF!=Q115,#REF!=Q116),IF(#REF!=Q114,7,IF(#REF!=Q115,8,9)),IF(#REF!=Q117,10,IF(#REF!=Q118,11,12)))) ->  | Q137: Gr.II(DRAW) | AJ137: ='47-FRONT'!H57 -> 1194 | AM137: RUPEES : | AO137: ONLY | BE137: 86 | BF137: EIGHTY SIX | BJ137: 2011-10-18 | BK137: 2008-09-24
E138: =DATE(G43,F138,E43)+0.01 -> 1900-11-30T00:14:24 | F138: =IF(OR(F43=Q108,F43=Q109,F43=Q110,F43=Q111,F43=Q112,F43=Q113),IF(OR(F43=Q108,F43=Q109,F43=Q110),IF(F43=Q108,1,IF(F43=Q109,2,3)),IF(F43=Q111,4,IF(F43=Q112,5,6))),IF(OR(F43=Q114,F43=Q115,F43=Q116),IF(F43=Q114,7,IF(F43=Q115,8,9)),IF(F43=Q117,10,IF(F43=Q118,11,12)))) -> 12 | AJ138: =ROUNDDOWN(AJ137/100000,0) -> 0 | AK138: =IF(AJ138=0,T(AJ138),VLOOKUP(AJ138,BE52:BF150,2,TRUE)) ->  | AN138: =IF(AJ138=0,T(AJ138),IF(AND(AJ139=0,AJ140=0,AJ141=0,AJ138<>1)," LAKHS"," LAKH")) ->  | BE138: 87 | BF138: EIGHTY SEVEN | BJ138: 2011-10-19 | BK138: 2008-09-25
AJ139: =ROUNDDOWN((AJ137-AJ138*100000)/1000,0) -> 1 | AK139: =IF(AJ139=0,T(AJ139),VLOOKUP(AJ139,BE52:BF150,2,TRUE)) -> ONE | AN139: =IF(AJ139=0,T(AJ139),IF(AND(AJ140=0,AJ141=0,AJ139<>1)," THOUSANDS"," THOUSAND")) -> THOUSAND | BE139: 88 | BF139: EIGHTY EIGHT | BJ139: 2011-10-20 | BK139: 2008-09-26
AJ140: =ROUNDDOWN((AJ137-AJ138*100000-AJ139*1000)/100,0) -> 1 | AK140: =IF(AJ140=0,T(AJ140),VLOOKUP(AJ140,BE52:BF150,2,TRUE)) -> ONE | AN140: =IF(AJ140=0,T(AJ140),IF(AND(AJ141=0,AJ140<>1)," HUNDREDS"," HUNDRED")) -> HUNDRED | BE140: 89 | BF140: EIGHTY NINE | BJ140: 2011-10-21 | BK140: 2008-09-27
AJ141: =AJ137-AJ138*100000-AJ139*1000-AJ140*100 -> 94 | AK141: =IF(AJ141=0,T(AJ141),VLOOKUP(AJ141,BE52:BF150,2,TRUE)) -> NINETY FOUR | AN141: =IF(OR(AJ141=0,AND(AJ138=0,AJ139=0,AJ140=0)),T(AJ141)," AND") -> AND | BE141: 90 | BF141: NINETY | BJ141: 2011-10-22 | BK141: 2008-09-28
E142: =DATE(YEAR(BILL!D5),MONTH(BILL!D5),1) -> 2010-02-01 | S142: 0 | T142: =E64 -> 00:00:00 | U142: =E65 -> 2011-07-31T00:14:24 | V142: =E66 -> 2011-07-31T00:14:24 | W142: =G64 -> 41492 | AJ142: =IF(AJ137=0,"RUPEES ZERO ONLY",CONCATENATE(AM137,AK138,AN138,AK139,AN139,AK140,AN140,AN141,AK141,AO137)) -> RUPEES : ONE THOUSAND ONE HUNDRED AND NINETY FOUR ONLY | BE142: 91 | BF142: NINETY ONE | BJ142: 2011-10-23 | BK142: 2008-09-29
E143: =DATE(IF(MONTH(E142=12),YEAR(E142)+1,YEAR(E142)),MONTH(E142)+1,1) -> 2011-03-01 | S143: 1 | T143: =E72 -> 2010-08-01 | U143: =E73 -> 2011-08-01 | V143: =E74 -> 2012-08-01 | W143: =H72 -> 14860 | BE143: 92 | BF143: NINETY TWO | BJ143: 2011-10-24 | BK143: 2008-09-30
E144: =DATE(IF(MONTH(E143=12),YEAR(E143)=1,YEAR(E143)),MONTH(E143)+1,1) -> 1900-04-01 | S144: 9 | T144: =E77 -> 2010-08-01 | U144: =E78 -> 2010-02-01 | V144: =E79 -> 00:00:00 | W144: =K76 -> 0 | AJ144: ='47-FRONT'!T48 -> 9004 | AM144: RUPEES : | AO144: ONLY | BE144: 93 | BF144: NINETY THREE | BJ144: 2011-10-25 | BK144: 2008-10-01
E145: 1900-05-01 | AJ145: =ROUNDDOWN(AJ144/100000,0) -> 0 | AK145: =IF(AJ145=0,T(AJ145),VLOOKUP(AJ145,BE52:BF150,2,TRUE)) ->  | AN145: =IF(AJ145=0,T(AJ145),IF(AND(AJ146=0,AJ147=0,AJ148=0,AJ145<>1)," LAKHS"," LAKH")) ->  | BE145: 94 | BF145: NINETY FOUR | BJ145: 2011-10-26 | BK145: 2008-10-02
E146: 1900-06-01 | AB146: =MAX(D72,D76*(N81)) -> 0 | AJ146: =ROUNDDOWN((AJ144-AJ145*100000)/1000,0) -> 9 | AK146: =IF(AJ146=0,T(AJ146),VLOOKUP(AJ146,BE52:BF150,2,TRUE)) -> NINE | AN146: =IF(AJ146=0,T(AJ146),IF(AND(AJ147=0,AJ148=0,AJ146<>1)," THOUSANDS"," THOUSAND")) -> THOUSAND | BE146: 95 | BF146: NINETY FIVE | BJ146: 2011-10-27 | BK146: 2008-10-03
E147: 1900-07-01 | AB147: 0 | AJ147: =ROUNDDOWN((AJ144-AJ145*100000-AJ146*1000)/100,0) -> 0 | AK147: =IF(AJ147=0,T(AJ147),VLOOKUP(AJ147,BE52:BF150,2,TRUE)) ->  | AN147: =IF(AJ147=0,T(AJ147),IF(AND(AJ148=0,AJ147<>1)," HUNDREDS"," HUNDRED")) ->  | BE147: 96 | BF147: NINETY SIX | BJ147: 2011-10-28 | BK147: 2008-10-04
E148: 1900-08-01 | M148: 0 | N148: Monitory benefit from | O148: 2010-02-01 | S148: 0 | T148: =E64 -> 00:00:00 | U148: =E65 -> 2011-07-31T00:14:24 | V148: =E66 -> 2011-07-31T00:14:24 | W148: =K64 -> 0 | X148: =K65 -> 0 | Y148: =K66 -> 0 | AB148: 1 | AC148: =IF(AND(E137+1461*2>Q68,E137+1461*2<=Q69),"S.G",IF(AND(E137+1461*4>Q68,E137+1461*4<=Q69),"S.P.P - I / S.A.P.P - I","S.P.P - II / S.A.P.P - II")) ->  | AE148: =C72 -> increment date | AG148: =VLOOKUP(AE148,E71:I73,4,TRUE) ->  | AJ148: =AJ144-AJ145*100000-AJ146*1000-AJ147*100 -> 4 | AK148: =IF(AJ148=0,T(AJ148),VLOOKUP(AJ148,BE52:BF150,2,TRUE)) -> FOUR | AN148: =IF(OR(AJ148=0,AND(AJ145=0,AJ146=0,AJ147=0)),T(AJ148)," AND") -> AND | BE148: 97 | BF148: NINETY SEVEN | BJ148: 2011-10-29 | BK148: 2008-10-05
E149: 1900-09-01 | M149: 1 | N149: Automatic Advancement increments on | O149: =C72 -> increment date | P149: He/She has S.G./S.PP-1/S.P.P-II/S.A.PP.-1/S.A.P.P.-II increments on | S149: 1 | T149: =E72 -> 2010-08-01 | U149: =E73 -> 2011-08-01 | V149: =E74 -> 2012-08-01 | W149: =K71 -> 0 | X149: =K72 -> AAS GRADE | Y149: =K73 -> 0 | AB149: 9 | AC149: =IF(O141<E138,"F.R.31(II)","F.R.22 a (1)") -> F.R.31(II) | AD149: =IF(O141<E138," ","F.R.22 B") ->  | AE149: =C77 -> 00:00:00 | AF149: =VLOOKUP(AE149+366,E65:E68,1,TRUE) ->  | AG149: =VLOOKUP(AE149,E76:M78,7,TRUE) ->  | AH149: =VLOOKUP(AG149,Z52:AB135,3,TRUE) ->  | AJ149: =IF(AJ144=0,"RUPEES ZERO ONLY",CONCATENATE(AM144,AK145,AN145,AK146,AN146,AK147,AN147,AN148,AK148,AO144)) -> RUPEES : NINE THOUSAND AND FOUR ONLY | BE149: 98 | BF149: NINETY EIGHT | BJ149: 2011-10-30 | BK149: 2008-10-06
E150: 1900-10-01 | M150: 9 | N150: =CONCATENATE("He/She has got promotion to ",E44," post on") -> He/She has got promotion to post on | O150: =C77 -> 00:00:00 | P150: =N150 -> He/She has got promotion to post on | S150: 9 | T150: =E83 -> 2011-08-01 | U150: =E84 -> 2012-08-01 | V150: =E85 -> 2010-08-01 | W150: =K82 -> 0 | X150: =K83 -> 0 | Y150: =K84 -> 0 | AB150: 18 | AC150: F.R.22 B | AE150: =AE149 -> 00:00:00 | AG150: =VLOOKUP(AE150,E76:M78,7,TRUE) ->  | AJ150: ='PT SCHEDULE'!I30 -> -50 | AM150: RUPEES : | AO150: ONLY | BE150: 99 | BF150: NINETY NINE | BJ150: 2011-10-31 | BK150: 2008-10-07
E151: 1900-11-01 | AJ151: =ROUNDDOWN(AJ150/100000,0) -> 0 | AK151: =IF(AJ151=0,T(AJ151),VLOOKUP(AJ151,BE52:BF150,2,TRUE)) ->  | AN151: =IF(AJ151=0,T(AJ151),IF(AND(AJ152=0,AJ153=0,AJ154=0,AJ151<>1)," LAKHS"," LAKH")) ->  | BJ151: 2011-11-01 | BK151: 2008-10-08
E152: 1900-12-01 | AJ152: =ROUNDDOWN((AJ150-AJ151*100000)/1000,0) -> 0 | AK152: =IF(AJ152=0,T(AJ152),VLOOKUP(AJ152,BE52:BF150,2,TRUE)) ->  | AN152: =IF(AJ152=0,T(AJ152),IF(AND(AJ153=0,AJ154=0,AJ152<>1)," THOUSANDS"," THOUSAND")) ->  | BJ152: 2011-11-02 | BK152: 2008-10-09
E153: 1901-01-01 | AJ153: =ROUNDDOWN((AJ150-AJ151*100000-AJ152*1000)/100,0) -> 0 | AK153: =IF(AJ153=0,T(AJ153),VLOOKUP(AJ153,BE52:BF150,2,TRUE)) ->  | AN153: =IF(AJ153=0,T(AJ153),IF(AND(AJ154=0,AJ153<>1)," HUNDREDS"," HUNDRED")) ->  | BJ153: 2011-11-03 | BK153: 2008-10-10
E154: 1900-02-01 | AJ154: =AJ150-AJ151*100000-AJ152*1000-AJ153*100 -> -50 | AK154: =IF(AJ154=0,T(AJ154),VLOOKUP(AJ154,BE52:BF150,2,TRUE)) ->  | AN154: =IF(OR(AJ154=0,AND(AJ151=0,AJ152=0,AJ153=0)),T(AJ154)," AND") ->  | BJ154: 2011-11-04 | BK154: 2008-10-11
E155: 1900-03-01 | AJ155: =IF(AJ150=0,"RUPEES ZERO ONLY",CONCATENATE(AM150,AK151,AN151,AK152,AN152,AK153,AN153,AN154,AK154,AO150)) ->  | BJ155: 2011-11-05 | BK155: 2008-10-12
E156: 1900-04-01 | T156: =IF(U156<=AM156,U156,AM156) -> 2010-02-01 | U156: 2010-02-01 | V156: =IF(T156=C173," ",T156) -> 2010-02-01 | W156: =IF(V156=C172," ",V156) -> 2010-02-01 | X156: =IF(W156=C171," ",W156) -> 2010-02-01 | Y156: =IF(X156=C170," ",X156) -> 2010-02-01 | Z156: =IF(Y156=C169," ",Y156) -> 2010-02-01 | AA156: =IF(Z156=C168," ",Z156) -> 2010-02-01 | AB156: =IF(AA156=C167," ",AA156) -> 2010-02-01 | AC156: =IF(AB156=C166," ",AB156) -> 2010-02-01 | AD156: =IF(AC156=C165," ",AC156) -> 2010-02-01 | AE156: =IF(AD156=C164," ",AD156) -> 2010-02-01 | AF156: =IF(C163=AE156," ",AE156) -> 2010-02-01 | AG156: =IF(C162=AF156," ",AF156) -> 2010-02-01 | AH156: =IF(C161=AG156," ",AG156) -> 2010-02-01 | AI156: =IF(AH156=C160," ",AH156) -> 2010-02-01 | AJ156: =IF(AI156=C159," ",AI156) -> 2010-02-01 | AK156: =IF(AJ156=C158," ",AJ156) -> 2010-02-01 | AL156: =IF(AK156=C157," ",AK156) -> 2010-02-01 | AM156: =E135+1 -> 2011-07-31T00:14:24 | AN156: 1 | AO156: JANUARY | AP156: 1972 | BJ156: 2011-11-06 | BK156: 2008-10-13
E157: 1900-05-01 | T157: =IF(U157<=AM157,U157,AM157) -> 2010-07-01 | U157: 2010-07-01 | V157: =IF(T157=C173," ",T157) -> 2010-07-01 | W157: =IF(V157=C172," ",V157) -> 2010-07-01 | X157: =IF(W157=C171," ",W157) -> 2010-07-01 | Y157: =IF(X157=C170," ",X157) -> 2010-07-01 | Z157: =IF(Y157=C169," ",Y157) -> 2010-07-01 | AA157: =IF(Z157=C168," ",Z157) -> 2010-07-01 | AB157: =IF(AA157=C167," ",AA157) -> 2010-07-01 | AC157: =IF(AB157=C166," ",AB157) -> 2010-07-01 | AD157: =IF(AC157=C165," ",AC157) -> 2010-07-01 | AE157: =IF(AD157=C164," ",AD157) -> 2010-07-01 | AF157: =IF(C163=AE157," ",AE157) -> 2010-07-01 | AG157: =IF(C162=AF157," ",AF157) -> 2010-07-01 | AH157: =IF(C161=AG157," ",AG157) -> 2010-07-01 | AI157: =IF(AH157=C160," ",AH157) -> 2010-07-01 | AJ157: =IF(AI157=C159," ",AI157) -> 2010-07-01 | AK157: =IF(AJ157=C158," ",AJ157) -> 2010-07-01 | AL157: =IF(AK157=C157," ",AK157) -> 2010-07-01 | AM157: =AM156 -> 2011-07-31T00:14:24 | AN157: 2 | AO157: FEBRUARY | AP157: 1973 | BJ157: 2011-11-07 | BK157: 2008-10-14
E158: 1900-06-01 | T158: 2011-01-01 | U158: 2011-01-01 | V158: =IF(T158=C173," ",T158) -> 2011-01-01 | W158: =IF(V158=C172," ",V158) -> 2011-01-01 | X158: =IF(W158=C171," ",W158) -> 2011-01-01 | Y158: =IF(X158=C170," ",X158) -> 2011-01-01 | Z158: =IF(Y158=C169," ",Y158) -> 2011-01-01 | AA158: =IF(Z158=C168," ",Z158) -> 2011-01-01 | AB158: =IF(AA158=C167," ",AA158) -> 2011-01-01 | AC158: =IF(AB158=C166," ",AB158) -> 2011-01-01 | AD158: =IF(AC158=C165," ",AC158) -> 2011-01-01 | AE158: =IF(AD158=C164," ",AD158) -> 2011-01-01 | AF158: =IF(C163=AE158," ",AE158) -> 2011-01-01 | AG158: =IF(C162=AF158," ",AF158) -> 2011-01-01 | AH158: =IF(C161=AG158," ",AG158) -> 2011-01-01 | AI158: =IF(AH158=C160," ",AH158) -> 2011-01-01 | AJ158: =IF(AI158=C159," ",AI158) -> 2011-01-01 | AK158: =IF(AJ158=C158," ",AJ158) -> 2011-01-01 | AL158: =IF(AK158=C157," ",AK158) -> 2011-01-01 | AM158: =AM157 -> 2011-07-31T00:14:24 | AN158: 3 | AO158: MARCH | AP158: 1974 | BJ158: 2011-11-08 | BK158: 2008-10-15
E159: 1900-07-01 | T159: 2011-07-31T00:14:24 | U159: =E65 -> 2011-07-31T00:14:24 | V159: =IF(T159=C173," ",T159) -> 2011-07-31T00:14:24 | W159: =IF(V159=C172," ",V159) -> 2011-07-31T00:14:24 | X159: =IF(W159=C171," ",W159) -> 2011-07-31T00:14:24 | Y159: =IF(X159=C170," ",X159) -> 2011-07-31T00:14:24 | Z159: =IF(Y159=C169," ",Y159) -> 2011-07-31T00:14:24 | AA159: =IF(Z159=C168," ",Z159) -> 2011-07-31T00:14:24 | AB159: =IF(AA159=C167," ",AA159) -> 2011-07-31T00:14:24 | AC159: =IF(AB159=C166," ",AB159) -> 2011-07-31T00:14:24 | AD159: =IF(AC159=C165," ",AC159) -> 2011-07-31T00:14:24 | AE159: =IF(AD159=C164," ",AD159) -> 2011-07-31T00:14:24 | AF159: =IF(C163=AE159," ",AE159) -> 2011-07-31T00:14:24 | AG159: =IF(C162=AF159," ",AF159) -> 2011-07-31T00:14:24 | AH159: =IF(C161=AG159," ",AG159) -> 2011-07-31T00:14:24 | AI159: =IF(AH159=C160," ",AH159) -> 2011-07-31T00:14:24 | AJ159: =IF(AI159=C159," ",AI159) -> 2011-07-31T00:14:24 | AK159: =IF(AJ159=C158," ",AJ159) -> 2011-07-31T00:14:24 | AL159: =IF(AK159=C157," ",AK159) -> 2011-07-31T00:14:24 | AM159: 2011-07-31T00:14:24 | AN159: 4 | AO159: APRIL | AP159: 1975 | BJ159: 2011-11-09 | BK159: 2008-10-16
E160: 1900-08-01 | T160: 2011-07-31T00:14:24 | U160: =E135+1 -> 2011-07-31T00:14:24 | V160: =IF(T160=C173," ",T160) -> 2011-07-31T00:14:24 | W160: =IF(V160=C172," ",V160) -> 2011-07-31T00:14:24 | X160: =IF(W160=C171," ",W160) -> 2011-07-31T00:14:24 | Y160: =IF(X160=C170," ",X160) -> 2011-07-31T00:14:24 | Z160: =IF(Y160=C169," ",Y160) -> 2011-07-31T00:14:24 | AA160: =IF(Z160=C168," ",Z160) -> 2011-07-31T00:14:24 | AB160: =IF(AA160=C167," ",AA160) -> 2011-07-31T00:14:24 | AC160: =IF(AB160=C166," ",AB160) -> 2011-07-31T00:14:24 | AD160: =IF(AC160=C165," ",AC160) -> 2011-07-31T00:14:24 | AE160: =IF(AD160=C164," ",AD160) -> 2011-07-31T00:14:24 | AF160: =IF(C163=AE160," ",AE160) -> 2011-07-31T00:14:24 | AG160: =IF(C162=AF160," ",AF160) -> 2011-07-31T00:14:24 | AH160: =IF(C161=AG160," ",AG160) -> 2011-07-31T00:14:24 | AI160: =IF(AH160=C160," ",AH160) -> 2011-07-31T00:14:24 | AJ160: =IF(AI160=C159," ",AI160) -> 2011-07-31T00:14:24 | AK160: =IF(AJ160=C158," ",AJ160) -> 2011-07-31T00:14:24 | AL160: =IF(AK160=C157," ",AK160) -> 2011-07-31T00:14:24 | AM160: 2011-07-31T00:14:24 | AN160: 5 | AO160: MAY | AP160: 1976 | BJ160: 2011-11-10 | BK160: 2008-10-17
E161: 1900-09-01 | T161: 2009-08-06 | U161: =E62 -> 2009-08-06 | V161: =IF(T161=C173," ",T161) -> 2009-08-06 | W161: =IF(V161=C172," ",V161) -> 2009-08-06 | X161: =IF(W161=C171," ",W161) -> 2009-08-06 | Y161: =IF(X161=C170," ",X161) -> 2009-08-06 | Z161: =IF(Y161=C169," ",Y161) -> 2009-08-06 | AA161: =IF(Z161=C168," ",Z161) -> 2009-08-06 | AB161: =IF(AA161=C167," ",AA161) -> 2009-08-06 | AC161: =IF(AB161=C166," ",AB161) -> 2009-08-06 | AD161: =IF(AC161=C165," ",AC161) -> 2009-08-06 | AE161: =IF(AD161=C164," ",AD161) -> 2009-08-06 | AF161: =IF(C163=AE161," ",AE161) -> 2009-08-06 | AG161: =IF(C162=AF161," ",AF161) -> 2009-08-06 | AH161: =IF(C161=AG161," ",AG161) -> 2009-08-06 | AI161: =IF(AH161=C160," ",AH161) -> 2009-08-06 | AJ161: =IF(AI161=C159," ",AI161) -> 2009-08-06 | AK161: =IF(AJ161=C158," ",AJ161) -> 2009-08-06 | AL161: =IF(AK161=C157," ",AK161) -> 2009-08-06 | AM161: 2011-07-31T00:14:24 | AN161: 6 | AO161: JUNE | AP161: 1977 | BJ161: 2011-11-11 | BK161: 2008-10-18
T162: 2011-07-01 | U162: 2011-07-01 | V162: =IF(T162=C173," ",T162) -> 2011-07-01 | W162: =IF(V162=C172," ",V162) -> 2011-07-01 | X162: =IF(W162=C171," ",W162) -> 2011-07-01 | Y162: =IF(X162=C170," ",X162) -> 2011-07-01 | Z162: =IF(Y162=C169," ",Y162) -> 2011-07-01 | AA162: =IF(Z162=C168," ",Z162) -> 2011-07-01 | AB162: =IF(AA162=C167," ",AA162) -> 2011-07-01 | AC162: =IF(AB162=C166," ",AB162) -> 2011-07-01 | AD162: =IF(AC162=C165," ",AC162) -> 2011-07-01 | AE162: =IF(AD162=C164," ",AD162) -> 2011-07-01 | AF162: =IF(C163=AE162," ",AE162) -> 2011-07-01 | AG162: =IF(C162=AF162," ",AF162) -> 2011-07-01 | AH162: =IF(C161=AG162," ",AG162) -> 2011-07-01 | AI162: =IF(AH162=C160," ",AH162) -> 2011-07-01 | AJ162: =IF(AI162=C159," ",AI162) -> 2011-07-01 | AK162: =IF(AJ162=C158," ",AJ162) -> 2011-07-01 | AL162: =IF(AK162=C157," ",AK162) -> 2011-07-01 | AM162: 2011-07-31T00:14:24 | AN162: 7 | AO162: JULY | AP162: 1978 | BJ162: 2011-11-12 | BK162: 2008-10-19
T163: 2011-07-31T00:14:24 | U163: 2012-01-01 | V163: =IF(T163=C173," ",T163) -> 2011-07-31T00:14:24 | W163: =IF(V163=C172," ",V163) -> 2011-07-31T00:14:24 | X163: =IF(W163=C171," ",W163) -> 2011-07-31T00:14:24 | Y163: =IF(X163=C170," ",X163) -> 2011-07-31T00:14:24 | Z163: =IF(Y163=C169," ",Y163) -> 2011-07-31T00:14:24 | AA163: =IF(Z163=C168," ",Z163) -> 2011-07-31T00:14:24 | AB163: =IF(AA163=C167," ",AA163) -> 2011-07-31T00:14:24 | AC163: =IF(AB163=C166," ",AB163) -> 2011-07-31T00:14:24 | AD163: =IF(AC163=C165," ",AC163) -> 2011-07-31T00:14:24 | AE163: =IF(AD163=C164," ",AD163) -> 2011-07-31T00:14:24 | AF163: =IF(C163=AE163," ",AE163) -> 2011-07-31T00:14:24 | AG163: =IF(C162=AF163," ",AF163) -> 2011-07-31T00:14:24 | AH163: =IF(C161=AG163," ",AG163) -> 2011-07-31T00:14:24 | AI163: =IF(AH163=C160," ",AH163) -> 2011-07-31T00:14:24 | AJ163: =IF(AI163=C159," ",AI163) -> 2011-07-31T00:14:24 | AK163: =IF(AJ163=C158," ",AJ163) -> 2011-07-31T00:14:24 | AL163: =IF(AK163=C157," ",AK163) -> 2011-07-31T00:14:24 | AM163: 2011-07-31T00:14:24 | AN163: 8 | AO163: AUGUST | AP163: 1979 | BE163: 1900-06-18 | BF163: 1900-06-19 | BG163: 1900-06-20 | BH163: 1900-06-21 | BJ163: 2011-11-13 | BK163: 2008-10-20 | BL163: 1900-06-25 | BM163: 1900-06-26 | BN163: 1900-06-27 | BO163: 1900-06-28 | BP163: 1900-06-29 | BQ163: 2000-06-22 | BR163: 2000-06-23 | BS163: 2000-06-24 | BT163: 2000-06-25 | BU163: 2000-06-26 | BV163: 2000-06-27 | BW163: 2000-06-28 | BX163: 2000-06-29 | BY163: 2000-06-30 | BZ163: 2000-07-01 | CA163: 2000-07-02 | CB163: 2000-07-03 | CC163: 2000-07-04 | CD163: 2000-07-05 | CE163: 2000-07-06 | CF163: 2000-07-07 | CG163: 2000-07-08 | CH163: 2000-07-09 | CI163: 2000-07-10 | CJ163: 2000-07-11 | CK163: 2000-07-12 | CL163: 2000-07-13 | CM163: 2000-07-14 | CN163: 2000-07-15 | CO163: 2000-07-16 | CP163: 2000-07-17 | CQ163: 2000-07-18 | CR163: 1900-06-18 | CS163: 1900-06-19 | CT163: 1900-06-20 | CU163: 1900-06-21 | CV163: 1900-06-22 | CW163: 1900-06-23 | CX163: 1900-06-24 | CY163: 1900-06-25 | CZ163: 1900-06-26 | DA163: 1900-06-27 | DB163: 1900-06-28 | DC163: 1900-06-29 | DD163: 1900-06-30 | DE163: 1900-07-01 | DF163: 1900-07-02 | DG163: 1900-07-03 | DH163: 1900-07-04 | DI163: 1900-07-05 | DJ163: 1900-07-06 | DK163: 1900-07-07 | DL163: 1900-07-08 | DM163: 1900-07-09 | DN163: 1900-07-10 | DO163: 1900-07-11 | DP163: 1900-07-12 | DQ163: 1900-07-13 | DR163: 1900-07-14 | DS163: 1900-07-15 | DT163: 1900-07-16 | DU163: 1900-07-17 | DV163: 1900-07-18
T164: 2011-07-31T00:14:24 | U164: 2012-07-01 | V164: =IF(T164=C173," ",T164) -> 2011-07-31T00:14:24 | W164: =IF(V164=C172," ",V164) -> 2011-07-31T00:14:24 | X164: =IF(W164=C171," ",W164) -> 2011-07-31T00:14:24 | Y164: =IF(X164=C170," ",X164) -> 2011-07-31T00:14:24 | Z164: =IF(Y164=C169," ",Y164) -> 2011-07-31T00:14:24 | AA164: =IF(Z164=C168," ",Z164) -> 2011-07-31T00:14:24 | AB164: =IF(AA164=C167," ",AA164) -> 2011-07-31T00:14:24 | AC164: =IF(AB164=C166," ",AB164) -> 2011-07-31T00:14:24 | AD164: =IF(AC164=C165," ",AC164) -> 2011-07-31T00:14:24 | AE164: =IF(AD164=C164," ",AD164) -> 2011-07-31T00:14:24 | AF164: =IF(C163=AE164," ",AE164) -> 2011-07-31T00:14:24 | AG164: =IF(C162=AF164," ",AF164) -> 2011-07-31T00:14:24 | AH164: =IF(C161=AG164," ",AG164) -> 2011-07-31T00:14:24 | AI164: =IF(AH164=C160," ",AH164) -> 2011-07-31T00:14:24 | AJ164: =IF(AI164=C159," ",AI164) -> 2011-07-31T00:14:24 | AK164: =IF(AJ164=C158," ",AJ164) -> 2011-07-31T00:14:24 | AL164: =IF(AK164=C157," ",AK164) -> 2011-07-31T00:14:24 | AM164: 2011-07-31T00:14:24 | AN164: 9 | AO164: SEPTEMBER | AP164: 1980 | AX164: =MAX(AY164:AZ164) -> 2010-02-01 | AY164: =G69 -> 2009-08-01 | AZ164: =F67 -> 2010-02-01 | BA164: =E135 -> 2011-07-30T00:14:24 | BB164: 2010-02-01 | BC164: =IF(BB164<=AX164,AX164,BB164) -> 2010-02-01 | BD164: =IF(BC164>BA164,AX164,BC164) -> 2010-02-01 | BE164: =MIN(BD164:BD194) -> 2010-02-01 | BF164: =MIN(CR164:CR194) -> 2010-03-01 | BG164: =MIN(CS164:CS194) -> 2010-04-01 | BH164: =MIN(CT164:CT194) -> 2010-05-01 | BJ164: 2011-11-14 | BK164: 2008-10-21 | BQ164: =MIN(CU164:CU194) -> 2010-06-01 | BR164: 2010-07-01 | BS164: 2010-08-01 | BT164: 2010-09-01 | BU164: 2010-10-01 | BV164: 2010-11-01 | BW164: 2010-12-01 | BX164: 2011-01-01 | BY164: 2011-02-01 | BZ164: 2011-03-01 | CA164: 2011-04-01 | CB164: 2011-05-01 | CC164: 2011-06-01 | CD164: 2011-07-01 | CE164: 00:00:00 | CF164: 00:00:00 | CG164: 00:00:00 | CH164: 00:00:00 | CI164: 00:00:00 | CJ164: =MIN(DN164:DN194) -> 00:00:00 | CK164: 00:00:00 | CL164: 00:00:00 | CM164: 00:00:00 | CN164: 00:00:00 | CO164: 00:00:00 | CP164: =MIN(DT164:DT194) -> 00:00:00 | CQ164: =MIN(DU164:DU194) -> 00:00:00 | CR164: =IF(BD164=BE164," ",BD164) ->  | CS164: =IF(CR164=BF164," ",CR164) ->  | CT164: =IF(CS164=BG164," ",CS164) ->  | CU164: =IF(CT164=BH164," ",CT164) ->  | CV164: =IF(CU164=BQ164," ",CU164) ->  | DP164: =IF(DO164=CK164," ",DO164) -> 
T165: 2011-07-31T00:14:24 | U165: =U159 -> 2011-07-31T00:14:24 | V165: =IF(T165=C173," ",T165) -> 2011-07-31T00:14:24 | W165: =IF(V165=C172," ",V165) -> 2011-07-31T00:14:24 | X165: =IF(W165=C171," ",W165) -> 2011-07-31T00:14:24 | Y165: =IF(X165=C170," ",X165) -> 2011-07-31T00:14:24 | Z165: =IF(Y165=C169," ",Y165) -> 2011-07-31T00:14:24 | AA165: =IF(Z165=C168," ",Z165) -> 2011-07-31T00:14:24 | AB165: =IF(AA165=C167," ",AA165) -> 2011-07-31T00:14:24 | AC165: =IF(AB165=C166," ",AB165) -> 2011-07-31T00:14:24 | AD165: =IF(AC165=C165," ",AC165) -> 2011-07-31T00:14:24 | AE165: =IF(AD165=C164," ",AD165) -> 2011-07-31T00:14:24 | AF165: =IF(C163=AE165," ",AE165) -> 2011-07-31T00:14:24 | AG165: =IF(C162=AF165," ",AF165) -> 2011-07-31T00:14:24 | AH165: =IF(C161=AG165," ",AG165) -> 2011-07-31T00:14:24 | AI165: =IF(AH165=C160," ",AH165) -> 2011-07-31T00:14:24 | AJ165: =IF(AI165=C159," ",AI165) -> 2011-07-31T00:14:24 | AK165: =IF(AJ165=C158," ",AJ165) -> 2011-07-31T00:14:24 | AL165: =IF(AK165=C157," ",AK165) -> 2011-07-31T00:14:24 | AM165: 2011-07-31T00:14:24 | AN165: 10 | AO165: OCTOBER | AP165: 1981 | AX165: =MAX(AY165:AZ165) -> 2010-02-01 | AY165: =AY164 -> 2009-08-01 | AZ165: =AZ164 -> 2010-02-01 | BA165: =BA164+0 -> 2011-07-30T00:14:24 | BB165: 2010-03-01 | BC165: =IF(BB165<=AX165,AX165,BB165) -> 2010-03-01 | BD165: =IF(BC165>BA165,AX164,BC165) -> 2010-03-01 | BE165: =BE164+0 -> 2010-02-01 | BF165: =BF164+0 -> 2010-03-01 | BG165: =BG164+0 -> 2010-04-01 | BH165: =BH164+0 -> 2010-05-01 | BJ165: 2011-11-15 | BK165: 2008-10-22 | BQ165: =BQ164+0 -> 2010-06-01 | BR165: =BR164+0 -> 2010-07-01 | BS165: =BS164+0 -> 2010-08-01 | BT165: =BT164+0 -> 2010-09-01 | BU165: 2010-10-01 | BV165: 2010-11-01 | BW165: 2010-12-01 | BX165: 2011-01-01 | BY165: 2011-02-01 | BZ165: 2011-03-01 | CA165: 2011-04-01 | CB165: 2011-05-01 | CC165: 2011-06-01 | CD165: 2011-07-01 | CE165: 00:00:00 | CF165: 00:00:00 | CG165: 00:00:00 | CH165: 00:00:00 | CI165: 00:00:00 | CJ165: =CJ164+0 -> 00:00:00 | CK165: 00:00:00 | CL165: 00:00:00 | CM165: 00:00:00 | CN165: 00:00:00 | CO165: 00:00:00 | CP165: 00:00:00 | CQ165: 00:00:00 | CR165: =IF(BD165=BE165," ",BD165) -> 2010-03-01 | CS165: =IF(CR165=BF165," ",CR165) ->  | CT165: =IF(CS165=BG165," ",CS165) ->  | CU165: =IF(CT165=BH165," ",CT165) ->  | CV165: =IF(CU165=BQ165," ",CU165) ->  | CW165: =IF(CV165=BR165," ",CV165) ->  | CX165: =IF(CW165=BS165," ",CW165) ->  | CY165: =IF(CX165=BT165," ",CX165) ->  | CZ165: =IF(CY165=BU165," ",CY165) ->  | DA165: =IF(CZ165=BV165," ",CZ165) ->  | DB165: =IF(DA165=BW165," ",DA165) ->  | DC165: =IF(DB165=BX165," ",DB165) ->  | DD165: =IF(DC165=BY165," ",DC165) ->  | DE165: =IF(DD165=BZ165," ",DD165) ->  | DF165: =IF(DE165=CA165," ",DE165) ->  | DG165: =IF(DF165=CB165," ",DF165) ->  | DH165: =IF(DG165=CC165," ",DG165) ->  | DI165: =IF(DH165=CD165," ",DH165) ->  | DJ165: =IF(DI165=CE165," ",DI165) ->  | DK165: =IF(DJ165=CF165," ",DJ165) ->  | DL165: =IF(DK165=CG165," ",DK165) ->  | DM165: =IF(DL165=CH165," ",DL165) ->  | DN165: =IF(DM165=CI165," ",DM165) ->  | DO165: =IF(DN165=CJ165," ",DN165) ->  | DP165: =IF(DO165=CK165," ",DO165) ->  | DQ165: =IF(DP165=CL165," ",DP165) ->  | DR165: =IF(DQ165=CM165," ",DQ165) ->  | DS165: =IF(DR165=CN165," ",DR165) ->  | DT165: =IF(DS165=CO165," ",DS165) ->  | DU165: =IF(DT165=CR165," ",DT165) ->  | DV165: =IF(DU165=CS165," ",DU165) -> 
T166: 2011-07-31T00:14:24 | U166: =U165 -> 2011-07-31T00:14:24 | V166: =IF(T166=C173," ",T166) -> 2011-07-31T00:14:24 | W166: =IF(V166=C172," ",V166) -> 2011-07-31T00:14:24 | X166: =IF(W166=C171," ",W166) -> 2011-07-31T00:14:24 | Y166: =IF(X166=C170," ",X166) -> 2011-07-31T00:14:24 | Z166: =IF(Y166=C169," ",Y166) -> 2011-07-31T00:14:24 | AA166: =IF(Z166=C168," ",Z166) -> 2011-07-31T00:14:24 | AB166: =IF(AA166=C167," ",AA166) -> 2011-07-31T00:14:24 | AC166: =IF(AB166=C166," ",AB166) -> 2011-07-31T00:14:24 | AD166: =IF(AC166=C165," ",AC166) -> 2011-07-31T00:14:24 | AE166: =IF(AD166=C164," ",AD166) -> 2011-07-31T00:14:24 | AF166: =IF(C163=AE166," ",AE166) -> 2011-07-31T00:14:24 | AG166: =IF(C162=AF166," ",AF166) -> 2011-07-31T00:14:24 | AH166: =IF(C161=AG166," ",AG166) -> 2011-07-31T00:14:24 | AI166: =IF(AH166=C160," ",AH166) -> 2011-07-31T00:14:24 | AJ166: =IF(AI166=C159," ",AI166) -> 2011-07-31T00:14:24 | AK166: =IF(AJ166=C158," ",AJ166) -> 2011-07-31T00:14:24 | AL166: =IF(AK166=C157," ",AK166) -> 2011-07-31T00:14:24 | AM166: 2011-07-31T00:14:24 | AN166: 11 | AO166: NOVEMBER | AP166: 1982 | AX166: 2010-02-01 | AY166: =AY165 -> 2009-08-01 | AZ166: =AZ165 -> 2010-02-01 | BA166: =BA165+0 -> 2011-07-30T00:14:24 | BB166: 2010-04-01 | BC166: 2010-04-01 | BD166: =IF(BC166>BA166,AX164,BC166) -> 2010-04-01 | BE166: =BE165+0 -> 2010-02-01 | BF166: =BF165+0 -> 2010-03-01 | BG166: =BG165+0 -> 2010-04-01 | BH166: =BH165+0 -> 2010-05-01 | BJ166: 2011-11-16 | BK166: 2008-10-23 | BQ166: =BQ165+0 -> 2010-06-01 | BR166: =BR165+0 -> 2010-07-01 | BS166: =BS165+0 -> 2010-08-01 | BT166: =BT165+0 -> 2010-09-01 | BU166: =BU165+0 -> 2010-10-01 | BV166: =BV165+0 -> 2010-11-01 | BW166: =BW165+0 -> 2010-12-01 | BX166: =BX165+0 -> 2011-01-01 | BY166: =BY165+0 -> 2011-02-01 | BZ166: =BZ165+0 -> 2011-03-01 | CA166: =CA165+0 -> 2011-04-01 | CB166: =CB165+0 -> 2011-05-01 | CC166: =CC165+0 -> 2011-06-01 | CD166: =CD165+0 -> 2011-07-01 | CE166: =CE165+0 -> 00:00:00 | CF166: =CF165+0 -> 00:00:00 | CG166: =CG165+0 -> 00:00:00 | CH166: =CH165+0 -> 00:00:00 | CI166: =CI165+0 -> 00:00:00 | CJ166: =CJ165+0 -> 00:00:00 | CK166: =CK165+0 -> 00:00:00 | CL166: =CL165+0 -> 00:00:00 | CM166: =CM165+0 -> 00:00:00 | CN166: =CN165+0 -> 00:00:00 | CO166: =CO165+0 -> 00:00:00 | CP166: =CP165+0 -> 00:00:00 | CQ166: =CQ165+0 -> 00:00:00 | CR166: 2010-04-01 | CS166: 2010-04-01
T167: 2011-07-31T00:14:24 | U167: =U166 -> 2011-07-31T00:14:24 | V167: =IF(T167=C173," ",T167) -> 2011-07-31T00:14:24 | W167: =IF(V167=C172," ",V167) -> 2011-07-31T00:14:24 | X167: =IF(W167=C171," ",W167) -> 2011-07-31T00:14:24 | Y167: =IF(X167=C170," ",X167) -> 2011-07-31T00:14:24 | Z167: =IF(Y167=C169," ",Y167) -> 2011-07-31T00:14:24 | AA167: =IF(Z167=C168," ",Z167) -> 2011-07-31T00:14:24 | AB167: =IF(AA167=C167," ",AA167) -> 2011-07-31T00:14:24 | AC167: =IF(AB167=C166," ",AB167) -> 2011-07-31T00:14:24 | AD167: =IF(AC167=C165," ",AC167) -> 2011-07-31T00:14:24 | AE167: =IF(AD167=C164," ",AD167) -> 2011-07-31T00:14:24 | AF167: =IF(C163=AE167," ",AE167) -> 2011-07-31T00:14:24 | AG167: =IF(C162=AF167," ",AF167) -> 2011-07-31T00:14:24 | AH167: =IF(C161=AG167," ",AG167) -> 2011-07-31T00:14:24 | AI167: =IF(AH167=C160," ",AH167) -> 2011-07-31T00:14:24 | AJ167: =IF(AI167=C159," ",AI167) -> 2011-07-31T00:14:24 | AK167: =IF(AJ167=C158," ",AJ167) -> 2011-07-31T00:14:24 | AL167: =IF(AK167=C157," ",AK167) -> 2011-07-31T00:14:24 | AM167: 2011-07-31T00:14:24 | AN167: 12 | AO167: DECEMBER | AP167: 1983 | AX167: 2010-02-01 | AY167: 2009-08-01 | AZ167: 2010-02-01 | BA167: 2011-07-30T00:14:24 | BB167: 2010-05-01 | BC167: 2010-05-01 | BD167: =IF(BC167>BA167,AX164,BC167) -> 2010-05-01 | BE167: 2010-02-01 | BF167: 2010-03-01 | BG167: 2010-04-01 | BH167: 2010-05-01 | BJ167: 2011-11-17 | BK167: 2008-10-24 | BQ167: 2010-06-01 | BR167: 2010-07-01 | BS167: 2010-08-01 | BT167: 2010-09-01 | BU167: 2010-10-01 | BV167: 2010-11-01 | BW167: 2010-12-01 | BX167: 2011-01-01 | BY167: 2011-02-01 | BZ167: 2011-03-01 | CA167: 2011-04-01 | CB167: 2011-05-01 | CC167: 2011-06-01 | CD167: 2011-07-01 | CE167: 00:00:00 | CF167: 00:00:00 | CG167: 00:00:00 | CH167: 00:00:00 | CI167: 00:00:00 | CJ167: 00:00:00 | CK167: 00:00:00 | CL167: 00:00:00 | CM167: 00:00:00 | CN167: 00:00:00 | CO167: 00:00:00 | CP167: 00:00:00 | CQ167: 00:00:00 | CR167: 2010-05-01 | CS167: 2010-05-01 | CT167: 2010-05-01
T168: 2011-07-31T00:14:24 | U168: 2011-07-31T00:14:24 | V168: =IF(T168=C173," ",T168) -> 2011-07-31T00:14:24 | W168: =IF(V168=C172," ",V168) -> 2011-07-31T00:14:24 | X168: =IF(W168=C171," ",W168) -> 2011-07-31T00:14:24 | Y168: =IF(X168=C170," ",X168) -> 2011-07-31T00:14:24 | Z168: =IF(Y168=C169," ",Y168) -> 2011-07-31T00:14:24 | AA168: =IF(Z168=C168," ",Z168) -> 2011-07-31T00:14:24 | AB168: =IF(AA168=C167," ",AA168) -> 2011-07-31T00:14:24 | AC168: =IF(AB168=C166," ",AB168) -> 2011-07-31T00:14:24 | AD168: =IF(AC168=C165," ",AC168) -> 2011-07-31T00:14:24 | AE168: =IF(AD168=C164," ",AD168) -> 2011-07-31T00:14:24 | AF168: =IF(C163=AE168," ",AE168) -> 2011-07-31T00:14:24 | AG168: =IF(C162=AF168," ",AF168) -> 2011-07-31T00:14:24 | AH168: =IF(C161=AG168," ",AG168) -> 2011-07-31T00:14:24 | AI168: =IF(AH168=C160," ",AH168) -> 2011-07-31T00:14:24 | AJ168: =IF(AI168=C159," ",AI168) -> 2011-07-31T00:14:24 | AK168: =IF(AJ168=C158," ",AJ168) -> 2011-07-31T00:14:24 | AL168: =IF(AK168=C157," ",AK168) -> 2011-07-31T00:14:24 | AM168: 2011-07-31T00:14:24 | AN168: 13 | AP168: 1984 | AX168: 2010-02-01 | AY168: 2009-08-01 | AZ168: 2010-02-01 | BA168: 2011-07-30T00:14:24 | BB168: 2010-06-01 | BC168: 2010-06-01 | BD168: =IF(BC168>BA168,AX164,BC168) -> 2010-06-01 | BE168: 2010-02-01 | BF168: 2010-03-01 | BG168: 2010-04-01 | BH168: 2010-05-01 | BJ168: 2011-11-18 | BK168: 2008-10-25 | BQ168: 2010-06-01 | BR168: 2010-07-01 | BS168: 2010-08-01 | BT168: 2010-09-01 | BU168: 2010-10-01 | BV168: 2010-11-01 | BW168: 2010-12-01 | BX168: 2011-01-01 | BY168: 2011-02-01 | BZ168: 2011-03-01 | CA168: 2011-04-01 | CB168: 2011-05-01 | CC168: 2011-06-01 | CD168: 2011-07-01 | CE168: 00:00:00 | CF168: 00:00:00 | CG168: 00:00:00 | CH168: 00:00:00 | CI168: 00:00:00 | CJ168: 00:00:00 | CK168: 00:00:00 | CL168: 00:00:00 | CM168: 00:00:00 | CN168: 00:00:00 | CO168: 00:00:00 | CP168: 00:00:00 | CQ168: 00:00:00 | CR168: 2010-06-01 | CS168: 2010-06-01 | CT168: 2010-06-01 | CU168: 2010-06-01
T169: 2011-07-31T00:14:24 | U169: 2011-07-31T00:14:24 | V169: =IF(T169=C173," ",T169) -> 2011-07-31T00:14:24 | W169: =IF(V169=C172," ",V169) -> 2011-07-31T00:14:24 | X169: =IF(W169=C171," ",W169) -> 2011-07-31T00:14:24 | Y169: =IF(X169=C170," ",X169) -> 2011-07-31T00:14:24 | Z169: =IF(Y169=C169," ",Y169) -> 2011-07-31T00:14:24 | AA169: =IF(Z169=C168," ",Z169) -> 2011-07-31T00:14:24 | AB169: =IF(AA169=C167," ",AA169) -> 2011-07-31T00:14:24 | AC169: =IF(AB169=C166," ",AB169) -> 2011-07-31T00:14:24 | AD169: =IF(AC169=C165," ",AC169) -> 2011-07-31T00:14:24 | AE169: =IF(AD169=C164," ",AD169) -> 2011-07-31T00:14:24 | AF169: =IF(C163=AE169," ",AE169) -> 2011-07-31T00:14:24 | AG169: =IF(C162=AF169," ",AF169) -> 2011-07-31T00:14:24 | AH169: =IF(C161=AG169," ",AG169) -> 2011-07-31T00:14:24 | AI169: =IF(AH169=C160," ",AH169) -> 2011-07-31T00:14:24 | AJ169: =IF(AI169=C159," ",AI169) -> 2011-07-31T00:14:24 | AK169: =IF(AJ169=C158," ",AJ169) -> 2011-07-31T00:14:24 | AL169: =IF(AK169=C157," ",AK169) -> 2011-07-31T00:14:24 | AM169: 2011-07-31T00:14:24 | AN169: 14 | AP169: 1985 | AX169: 2010-02-01 | AY169: 2009-08-01 | AZ169: 2010-02-01 | BA169: 2011-07-30T00:14:24 | BB169: 2010-07-01 | BC169: 2010-07-01 | BD169: =IF(BC169>BA169,AX164,BC169) -> 2010-07-01 | BE169: 2010-02-01 | BF169: 2010-03-01 | BG169: 2010-04-01 | BH169: 2010-05-01 | BJ169: 2011-11-19 | BK169: 2008-10-26 | BQ169: 2010-06-01 | BR169: 2010-07-01 | BS169: 2010-08-01 | BT169: 2010-09-01 | BU169: 2010-10-01 | BV169: 2010-11-01 | BW169: 2010-12-01 | BX169: 2011-01-01 | BY169: 2011-02-01 | BZ169: 2011-03-01 | CA169: 2011-04-01 | CB169: 2011-05-01 | CC169: 2011-06-01 | CD169: 2011-07-01 | CE169: 00:00:00 | CF169: 00:00:00 | CG169: 00:00:00 | CH169: 00:00:00 | CI169: 00:00:00 | CJ169: 00:00:00 | CK169: 00:00:00 | CL169: 00:00:00 | CM169: 00:00:00 | CN169: 00:00:00 | CO169: 00:00:00 | CP169: 00:00:00 | CQ169: 00:00:00 | CR169: 2010-07-01 | CS169: 2010-07-01 | CT169: 2010-07-01 | CU169: 2010-07-01 | CV169: 2010-07-01
T170: 2011-07-31T00:14:24 | U170: 2011-07-31T00:14:24 | V170: =IF(T170=C173," ",T170) -> 2011-07-31T00:14:24 | W170: =IF(V170=C172," ",V170) -> 2011-07-31T00:14:24 | X170: =IF(W170=C171," ",W170) -> 2011-07-31T00:14:24 | Y170: =IF(X170=C170," ",X170) -> 2011-07-31T00:14:24 | Z170: =IF(Y170=C169," ",Y170) -> 2011-07-31T00:14:24 | AA170: =IF(Z170=C168," ",Z170) -> 2011-07-31T00:14:24 | AB170: =IF(AA170=C167," ",AA170) -> 2011-07-31T00:14:24 | AC170: =IF(AB170=C166," ",AB170) -> 2011-07-31T00:14:24 | AD170: =IF(AC170=C165," ",AC170) -> 2011-07-31T00:14:24 | AE170: =IF(AD170=C164," ",AD170) -> 2011-07-31T00:14:24 | AF170: =IF(C163=AE170," ",AE170) -> 2011-07-31T00:14:24 | AG170: =IF(C162=AF170," ",AF170) -> 2011-07-31T00:14:24 | AH170: =IF(C161=AG170," ",AG170) -> 2011-07-31T00:14:24 | AI170: =IF(AH170=C160," ",AH170) -> 2011-07-31T00:14:24 | AJ170: =IF(AI170=C159," ",AI170) -> 2011-07-31T00:14:24 | AK170: =IF(AJ170=C158," ",AJ170) -> 2011-07-31T00:14:24 | AL170: =IF(AK170=C157," ",AK170) -> 2011-07-31T00:14:24 | AM170: 2011-07-31T00:14:24 | AN170: 15 | AP170: 1986 | AX170: 2010-02-01 | AY170: 2009-08-01 | AZ170: 2010-02-01 | BA170: 2011-07-30T00:14:24 | BB170: 2010-08-01 | BC170: 2010-08-01 | BD170: =IF(BC170>BA170,AX164,BC170) -> 2010-08-01 | BE170: 2010-02-01 | BF170: 2010-03-01 | BG170: 2010-04-01 | BH170: 2010-05-01 | BJ170: 2011-11-20 | BK170: 2008-10-27 | BQ170: 2010-06-01 | BR170: 2010-07-01 | BS170: 2010-08-01 | BT170: 2010-09-01 | BU170: 2010-10-01 | BV170: 2010-11-01 | BW170: 2010-12-01 | BX170: 2011-01-01 | BY170: 2011-02-01 | BZ170: 2011-03-01 | CA170: 2011-04-01 | CB170: 2011-05-01 | CC170: 2011-06-01 | CD170: 2011-07-01 | CE170: 00:00:00 | CF170: 00:00:00 | CG170: 00:00:00 | CH170: 00:00:00 | CI170: 00:00:00 | CJ170: 00:00:00 | CK170: 00:00:00 | CL170: 00:00:00 | CM170: 00:00:00 | CN170: 00:00:00 | CO170: 00:00:00 | CP170: 00:00:00 | CQ170: 00:00:00 | CR170: 2010-08-01 | CS170: 2010-08-01 | CT170: 2010-08-01 | CU170: 2010-08-01 | CV170: 2010-08-01 | CW170: 2010-08-01
T171: 2011-07-31T00:14:24 | U171: 2011-07-31T00:14:24 | V171: =IF(T171=C173," ",T171) -> 2011-07-31T00:14:24 | W171: =IF(V171=C172," ",V171) -> 2011-07-31T00:14:24 | X171: =IF(W171=C171," ",W171) -> 2011-07-31T00:14:24 | Y171: =IF(X171=C170," ",X171) -> 2011-07-31T00:14:24 | Z171: =IF(Y171=C169," ",Y171) -> 2011-07-31T00:14:24 | AA171: =IF(Z171=C168," ",Z171) -> 2011-07-31T00:14:24 | AB171: =IF(AA171=C167," ",AA171) -> 2011-07-31T00:14:24 | AC171: =IF(AB171=C166," ",AB171) -> 2011-07-31T00:14:24 | AD171: =IF(AC171=C165," ",AC171) -> 2011-07-31T00:14:24 | AE171: =IF(AD171=C164," ",AD171) -> 2011-07-31T00:14:24 | AF171: =IF(C163=AE171," ",AE171) -> 2011-07-31T00:14:24 | AG171: =IF(C162=AF171," ",AF171) -> 2011-07-31T00:14:24 | AH171: =IF(C161=AG171," ",AG171) -> 2011-07-31T00:14:24 | AI171: =IF(AH171=C160," ",AH171) -> 2011-07-31T00:14:24 | AJ171: =IF(AI171=C159," ",AI171) -> 2011-07-31T00:14:24 | AK171: =IF(AJ171=C158," ",AJ171) -> 2011-07-31T00:14:24 | AL171: =IF(AK171=C157," ",AK171) -> 2011-07-31T00:14:24 | AM171: 2011-07-31T00:14:24 | AN171: 16 | AP171: 1987 | AX171: 2010-02-01 | AY171: 2009-08-01 | AZ171: 2010-02-01 | BA171: 2011-07-30T00:14:24 | BB171: 2010-09-01 | BC171: 2010-09-01 | BD171: =IF(BC171>BA171,AX164,BC171) -> 2010-09-01 | BE171: 2010-02-01 | BF171: 2010-03-01 | BG171: 2010-04-01 | BH171: 2010-05-01 | BJ171: 2011-11-21 | BK171: 2008-10-28 | BQ171: 2010-06-01 | BR171: 2010-07-01 | BS171: 2010-08-01 | BT171: 2010-09-01 | BU171: 2010-10-01 | BV171: 2010-11-01 | BW171: 2010-12-01 | BX171: 2011-01-01 | BY171: 2011-02-01 | BZ171: 2011-03-01 | CA171: 2011-04-01 | CB171: 2011-05-01 | CC171: 2011-06-01 | CD171: 2011-07-01 | CE171: 00:00:00 | CF171: 00:00:00 | CG171: 00:00:00 | CH171: 00:00:00 | CI171: 00:00:00 | CJ171: 00:00:00 | CK171: 00:00:00 | CL171: 00:00:00 | CM171: 00:00:00 | CN171: 00:00:00 | CO171: 00:00:00 | CP171: 00:00:00 | CQ171: 00:00:00 | CR171: 2010-09-01 | CS171: 2010-09-01 | CT171: 2010-09-01 | CU171: 2010-09-01 | CV171: 2010-09-01 | CW171: 2010-09-01 | CX171: 2010-09-01
T172: 2011-07-31T00:14:24 | U172: 2011-07-31T00:14:24 | V172: =IF(T172=C173," ",T172) -> 2011-07-31T00:14:24 | W172: =IF(V172=C172," ",V172) -> 2011-07-31T00:14:24 | X172: =IF(W172=C171," ",W172) -> 2011-07-31T00:14:24 | Y172: =IF(X172=C170," ",X172) -> 2011-07-31T00:14:24 | Z172: =IF(Y172=C169," ",Y172) -> 2011-07-31T00:14:24 | AA172: =IF(Z172=C168," ",Z172) -> 2011-07-31T00:14:24 | AB172: =IF(AA172=C167," ",AA172) -> 2011-07-31T00:14:24 | AC172: =IF(AB172=C166," ",AB172) -> 2011-07-31T00:14:24 | AD172: =IF(AC172=C165," ",AC172) -> 2011-07-31T00:14:24 | AE172: =IF(AD172=C164," ",AD172) -> 2011-07-31T00:14:24 | AF172: =IF(C163=AE172," ",AE172) -> 2011-07-31T00:14:24 | AG172: =IF(C1742=AF172," ",AF172) -> 2011-07-31T00:14:24 | AH172: =IF(C161=AG172," ",AG172) -> 2011-07-31T00:14:24 | AI172: =IF(AH172=C160," ",AH172) -> 2011-07-31T00:14:24 | AJ172: =IF(AI172=C159," ",AI172) -> 2011-07-31T00:14:24 | AK172: =IF(AJ172=C158," ",AJ172) -> 2011-07-31T00:14:24 | AL172: =IF(AK172=C157," ",AK172) -> 2011-07-31T00:14:24 | AM172: 2011-07-31T00:14:24 | AN172: 17 | AP172: 1988 | AX172: 2010-02-01 | AY172: 2009-08-01 | AZ172: 2010-02-01 | BA172: 2011-07-30T00:14:24 | BB172: 2010-10-01 | BC172: 2010-10-01 | BD172: =IF(BC172>BA172,AX164,BC172) -> 2010-10-01 | BE172: 2010-02-01 | BF172: 2010-03-01 | BG172: 2010-04-01 | BH172: 2010-05-01 | BJ172: 2011-11-22 | BK172: 2008-10-29 | BQ172: 2010-06-01 | BR172: 2010-07-01 | BS172: 2010-08-01 | BT172: 2010-09-01 | BU172: 2010-10-01 | BV172: 2010-11-01 | BW172: 2010-12-01 | BX172: 2011-01-01 | BY172: 2011-02-01 | BZ172: 2011-03-01 | CA172: 2011-04-01 | CB172: 2011-05-01 | CC172: 2011-06-01 | CD172: 2011-07-01 | CE172: 00:00:00 | CF172: 00:00:00 | CG172: 00:00:00 | CH172: 00:00:00 | CI172: 00:00:00 | CJ172: 00:00:00 | CK172: 00:00:00 | CL172: 00:00:00 | CM172: 00:00:00 | CN172: 00:00:00 | CO172: 00:00:00 | CP172: 00:00:00 | CQ172: 00:00:00 | CR172: 2010-10-01 | CS172: 2010-10-01 | CT172: 2010-10-01 | CU172: 2010-10-01 | CV172: 2010-10-01 | CW172: 2010-10-01 | CX172: 2010-10-01 | CY172: 2010-10-01
T173: =E68 -> 2010-02-01 | U173: 2011-07-31T00:14:24 | V173: =IF(T173=C173," ",T173) -> 2010-02-01 | W173: =IF(V173=C172," ",V173) -> 2010-02-01 | X173: =IF(W173=C171," ",W173) -> 2010-02-01 | Y173: =IF(X173=C170," ",X173) -> 2010-02-01 | Z173: =IF(Y173=C169," ",Y173) -> 2010-02-01 | AA173: =IF(Z173=C168," ",Z173) -> 2010-02-01 | AB173: =IF(AA173=C167," ",AA173) -> 2010-02-01 | AC173: =IF(AB173=C166," ",AB173) -> 2010-02-01 | AD173: =IF(AC173=C165," ",AC173) -> 2010-02-01 | AE173: =IF(AD173=C164," ",AD173) -> 2010-02-01 | AF173: =IF(C163=AE173," ",AE173) -> 2010-02-01 | AG173: =IF(C162=AF173," ",AF173) -> 2010-02-01 | AH173: =IF(C161=AG173," ",AG173) -> 2010-02-01 | AI173: =IF(AH173=C160," ",AH173) -> 2010-02-01 | AJ173: =IF(AI173=C159," ",AI173) -> 2010-02-01 | AK173: =IF(AJ173=C158," ",AJ173) -> 2010-02-01 | AL173: =IF(AK173=C157," ",AK173) -> 2010-02-01 | AM173: 2011-07-31T00:14:24 | AN173: 18 | AP173: 1989 | AX173: 2010-02-01 | AY173: 2009-08-01 | AZ173: 2010-02-01 | BA173: 2011-07-30T00:14:24 | BB173: 2010-11-01 | BC173: 2010-11-01 | BD173: =IF(BC173>BA173,AX164,BC173) -> 2010-11-01 | BE173: 2010-02-01 | BF173: 2010-03-01 | BG173: 2010-04-01 | BH173: 2010-05-01 | BJ173: 2011-11-23 | BK173: 2008-10-30 | BQ173: 2010-06-01 | BR173: 2010-07-01 | BS173: 2010-08-01 | BT173: 2010-09-01 | BU173: 2010-10-01 | BV173: 2010-11-01 | BW173: 2010-12-01 | BX173: 2011-01-01 | BY173: 2011-02-01 | BZ173: 2011-03-01 | CA173: 2011-04-01 | CB173: 2011-05-01 | CC173: 2011-06-01 | CD173: 2011-07-01 | CE173: 00:00:00 | CF173: 00:00:00 | CG173: 00:00:00 | CH173: 00:00:00 | CI173: 00:00:00 | CJ173: 00:00:00 | CK173: 00:00:00 | CL173: 00:00:00 | CM173: 00:00:00 | CN173: 00:00:00 | CO173: 00:00:00 | CP173: 00:00:00 | CQ173: 00:00:00 | CR173: 2010-11-01 | CS173: 2010-11-01 | CT173: 2010-11-01 | CU173: 2010-11-01 | CV173: 2010-11-01 | CW173: 2010-11-01 | CX173: 2010-11-01 | CY173: 2010-11-01 | CZ173: 2010-11-01
T174: 2010-04-01T00:01:26.400 | U174: =E67 -> 2010-04-01T00:01:26.400 | V174: =IF(T174=C173," ",T174) -> 2010-04-01T00:01:26.400 | W174: =IF(V174=C172," ",V174) -> 2010-04-01T00:01:26.400 | X174: =IF(W174=C171," ",W174) -> 2010-04-01T00:01:26.400 | Y174: =IF(X174=C170," ",X174) -> 2010-04-01T00:01:26.400 | Z174: =IF(Y174=C169," ",Y174) -> 2010-04-01T00:01:26.400 | AA174: =IF(Z174=C168," ",Z174) -> 2010-04-01T00:01:26.400 | AB174: =IF(AA174=C167," ",AA174) -> 2010-04-01T00:01:26.400 | AC174: =IF(AB174=C166," ",AB174) -> 2010-04-01T00:01:26.400 | AD174: =IF(AC174=C165," ",AC174) -> 2010-04-01T00:01:26.400 | AE174: =IF(AD174=C164," ",AD174) -> 2010-04-01T00:01:26.400 | AF174: =IF(C163=AE174," ",AE174) -> 2010-04-01T00:01:26.400 | AG174: =IF(C162=AF174," ",AF174) -> 2010-04-01T00:01:26.400 | AH174: =IF(C161=AG174," ",AG174) -> 2010-04-01T00:01:26.400 | AI174: =IF(AH174=C160," ",AH174) -> 2010-04-01T00:01:26.400 | AJ174: =IF(AI174=C159," ",AI174) -> 2010-04-01T00:01:26.400 | AK174: =IF(AJ174=C158," ",AJ174) -> 2010-04-01T00:01:26.400 | AL174: =IF(AK174=C157," ",AK174) -> 2010-04-01T00:01:26.400 | AM174: 2011-07-31T00:14:24 | AN174: 19 | AP174: 1990 | AX174: 2010-02-01 | AY174: 2009-08-01 | AZ174: 2010-02-01 | BA174: 2011-07-30T00:14:24 | BB174: 2010-12-01 | BC174: 2010-12-01 | BD174: =IF(BC174>BA174,AX164,BC174) -> 2010-12-01 | BE174: 2010-02-01 | BF174: 2010-03-01 | BG174: 2010-04-01 | BH174: 2010-05-01 | BJ174: 2011-11-24 | BK174: 2008-10-31 | BQ174: 2010-06-01 | BR174: 2010-07-01 | BS174: 2010-08-01 | BT174: 2010-09-01 | BU174: 2010-10-01 | BV174: 2010-11-01 | BW174: 2010-12-01 | BX174: 2011-01-01 | BY174: 2011-02-01 | BZ174: 2011-03-01 | CA174: 2011-04-01 | CB174: 2011-05-01 | CC174: 2011-06-01 | CD174: 2011-07-01 | CE174: 00:00:00 | CF174: 00:00:00 | CG174: 00:00:00 | CH174: 00:00:00 | CI174: 00:00:00 | CJ174: 00:00:00 | CK174: 00:00:00 | CL174: 00:00:00 | CM174: 00:00:00 | CN174: 00:00:00 | CO174: 00:00:00 | CP174: 00:00:00 | CQ174: 00:00:00 | CR174: 2010-12-01 | CS174: 2010-12-01 | CT174: 2010-12-01 | CU174: 2010-12-01 | CV174: 2010-12-01 | CW174: 2010-12-01 | CX174: 2010-12-01 | CY174: 2010-12-01 | CZ174: 2010-12-01 | DA174: 2010-12-01
AN175: 20 | AP175: 1991 | AX175: 2010-02-01 | AY175: =AY174 -> 2009-08-01 | AZ175: =AZ174 -> 2010-02-01 | BA175: =BA174+0 -> 2011-07-30T00:14:24 | BB175: 2011-01-01 | BC175: 2011-01-01 | BD175: =IF(BC175>BA175,AX164,BC175) -> 2011-01-01 | BE175: =BE174+0 -> 2010-02-01 | BF175: =BF174+0 -> 2010-03-01 | BG175: =BG174+0 -> 2010-04-01 | BH175: =BH174+0 -> 2010-05-01 | BJ175: 2011-11-25 | BK175: 2008-11-01 | BQ175: =BQ174+0 -> 2010-06-01 | BR175: 2010-07-01 | BS175: 2010-08-01 | BT175: 2010-09-01 | BU175: 2010-10-01 | BV175: 2010-11-01 | BW175: 2010-12-01 | BX175: 2011-01-01 | BY175: 2011-02-01 | BZ175: 2011-03-01 | CA175: 2011-04-01 | CB175: 2011-05-01 | CC175: 2011-06-01 | CD175: 2011-07-01 | CE175: 00:00:00 | CF175: 00:00:00 | CG175: 00:00:00 | CH175: 00:00:00 | CI175: 00:00:00 | CJ175: 00:00:00 | CK175: 00:00:00 | CL175: 00:00:00 | CM175: 00:00:00 | CN175: 00:00:00 | CO175: 00:00:00 | CP175: 00:00:00 | CQ175: 00:00:00 | CR175: 2011-01-01 | CS175: 2011-01-01 | CT175: 2011-01-01 | CU175: 2011-01-01 | CV175: 2011-01-01 | CW175: 2011-01-01 | CX175: 2011-01-01 | CY175: 2011-01-01 | CZ175: 2011-01-01 | DA175: 2011-01-01 | DB175: 2011-01-01
AN176: 21 | AP176: 1992 | AX176: 2010-02-01 | AY176: 2009-08-01 | AZ176: 2010-02-01 | BA176: 2011-07-30T00:14:24 | BB176: 2011-02-01 | BC176: 2011-02-01 | BD176: =IF(BC176>BA176,AX164,BC176) -> 2011-02-01 | BE176: 2010-02-01 | BF176: 2010-03-01 | BG176: 2010-04-01 | BH176: 2010-05-01 | BJ176: 2011-11-26 | BK176: 2008-11-02 | BQ176: 2010-06-01 | BR176: 2010-07-01 | BS176: 2010-08-01 | BT176: 2010-09-01 | BU176: 2010-10-01 | BV176: 2010-11-01 | BW176: 2010-12-01 | BX176: 2011-01-01 | BY176: 2011-02-01 | BZ176: 2011-03-01 | CA176: 2011-04-01 | CB176: 2011-05-01 | CC176: 2011-06-01 | CD176: 2011-07-01 | CE176: 00:00:00 | CF176: 00:00:00 | CG176: 00:00:00 | CH176: 00:00:00 | CI176: 00:00:00 | CJ176: 00:00:00 | CK176: 00:00:00 | CL176: 00:00:00 | CM176: 00:00:00 | CN176: 00:00:00 | CO176: 00:00:00 | CP176: 00:00:00 | CQ176: 00:00:00 | CR176: 2011-02-01 | CS176: 2011-02-01 | CT176: 2011-02-01 | CU176: 2011-02-01 | CV176: 2011-02-01 | CW176: 2011-02-01 | CX176: 2011-02-01 | CY176: 2011-02-01 | CZ176: 2011-02-01 | DA176: 2011-02-01 | DB176: 2011-02-01 | DC176: 2011-02-01
AN177: 22 | AP177: 1993 | AX177: 2010-02-01 | AY177: 2009-08-01 | AZ177: 2010-02-01 | BA177: 2011-07-30T00:14:24 | BB177: 2011-03-01 | BC177: 2011-03-01 | BD177: =IF(BC177>BA177,AX164,BC177) -> 2011-03-01 | BE177: 2010-02-01 | BF177: 2010-03-01 | BG177: 2010-04-01 | BH177: 2010-05-01 | BJ177: 2011-11-27 | BK177: 2008-11-03 | BQ177: 2010-06-01 | BR177: 2010-07-01 | BS177: 2010-08-01 | BT177: 2010-09-01 | BU177: 2010-10-01 | BV177: 2010-11-01 | BW177: 2010-12-01 | BX177: 2011-01-01 | BY177: 2011-02-01 | BZ177: 2011-03-01 | CA177: 2011-04-01 | CB177: 2011-05-01 | CC177: 2011-06-01 | CD177: 2011-07-01 | CE177: 00:00:00 | CF177: 00:00:00 | CG177: 00:00:00 | CH177: 00:00:00 | CI177: 00:00:00 | CJ177: 00:00:00 | CK177: 00:00:00 | CL177: 00:00:00 | CM177: 00:00:00 | CN177: 00:00:00 | CO177: 00:00:00 | CP177: 00:00:00 | CQ177: 00:00:00 | CR177: 2011-03-01 | CS177: 2011-03-01 | CT177: 2011-03-01 | CU177: 2011-03-01 | CV177: 2011-03-01 | CW177: 2011-03-01 | CX177: 2011-03-01 | CY177: 2011-03-01 | CZ177: 2011-03-01 | DA177: 2011-03-01 | DB177: 2011-03-01 | DC177: 2011-03-01 | DD177: 2011-03-01
AN178: 23 | AP178: 1994 | AX178: 2010-02-01 | AY178: 2009-08-01 | AZ178: 2010-02-01 | BA178: 2011-07-30T00:14:24 | BB178: 2011-04-01 | BC178: 2011-04-01 | BD178: =IF(BC178>BA178,AX164,BC178) -> 2011-04-01 | BE178: 2010-02-01 | BF178: 2010-03-01 | BG178: 2010-04-01 | BH178: 2010-05-01 | BJ178: 2011-11-28 | BK178: 2008-11-04 | BQ178: 2010-06-01 | BR178: 2010-07-01 | BS178: 2010-08-01 | BT178: 2010-09-01 | BU178: 2010-10-01 | BV178: 2010-11-01 | BW178: 2010-12-01 | BX178: 2011-01-01 | BY178: 2011-02-01 | BZ178: 2011-03-01 | CA178: 2011-04-01 | CB178: 2011-05-01 | CC178: 2011-06-01 | CD178: 2011-07-01 | CE178: 00:00:00 | CF178: 00:00:00 | CG178: 00:00:00 | CH178: 00:00:00 | CI178: 00:00:00 | CJ178: 00:00:00 | CK178: 00:00:00 | CL178: 00:00:00 | CM178: 00:00:00 | CN178: 00:00:00 | CO178: 00:00:00 | CP178: 00:00:00 | CQ178: 00:00:00 | CR178: 2011-04-01 | CS178: 2011-04-01 | CT178: 2011-04-01 | CU178: 2011-04-01 | CV178: 2011-04-01 | CW178: 2011-04-01 | CX178: 2011-04-01 | CY178: 2011-04-01 | CZ178: 2011-04-01 | DA178: 2011-04-01 | DB178: 2011-04-01 | DC178: 2011-04-01 | DD178: 2011-04-01 | DE178: 2011-04-01
AN179: 24 | AP179: 1995 | AX179: 2010-02-01 | AY179: 2009-08-01 | AZ179: 2010-02-01 | BA179: 2011-07-30T00:14:24 | BB179: 2011-05-01 | BC179: 2011-05-01 | BD179: =IF(BC179>BA179,AX164,BC179) -> 2011-05-01 | BE179: 2010-02-01 | BF179: 2010-03-01 | BG179: 2010-04-01 | BH179: 2010-05-01 | BJ179: 2011-11-29 | BK179: 2008-11-05 | BQ179: 2010-06-01 | BR179: 2010-07-01 | BS179: 2010-08-01 | BT179: 2010-09-01 | BU179: 2010-10-01 | BV179: 2010-11-01 | BW179: 2010-12-01 | BX179: 2011-01-01 | BY179: 2011-02-01 | BZ179: 2011-03-01 | CA179: 2011-04-01 | CB179: 2011-05-01 | CC179: 2011-06-01 | CD179: 2011-07-01 | CE179: 00:00:00 | CF179: 00:00:00 | CG179: 00:00:00 | CH179: 00:00:00 | CI179: 00:00:00 | CJ179: 00:00:00 | CK179: 00:00:00 | CL179: 00:00:00 | CM179: 00:00:00 | CN179: 00:00:00 | CO179: 00:00:00 | CP179: 00:00:00 | CQ179: 00:00:00 | CR179: 2011-05-01 | CS179: 2011-05-01 | CT179: 2011-05-01 | CU179: 2011-05-01 | CV179: 2011-05-01 | CW179: 2011-05-01 | CX179: 2011-05-01 | CY179: 2011-05-01 | CZ179: 2011-05-01 | DA179: 2011-05-01 | DB179: 2011-05-01 | DC179: 2011-05-01 | DD179: 2011-05-01 | DE179: 2011-05-01 | DF179: 2011-05-01
AN180: 25 | AP180: 1996 | AX180: 2010-02-01 | AY180: 2009-08-01 | AZ180: 2010-02-01 | BA180: 2011-07-30T00:14:24 | BB180: 2011-06-01 | BC180: 2011-06-01 | BD180: =IF(BC180>BA180,AX164,BC180) -> 2011-06-01 | BE180: 2010-02-01 | BF180: 2010-03-01 | BG180: 2010-04-01 | BH180: 2010-05-01 | BJ180: 2011-11-30 | BK180: 2008-11-06 | BQ180: 2010-06-01 | BR180: 2010-07-01 | BS180: 2010-08-01 | BT180: 2010-09-01 | BU180: 2010-10-01 | BV180: 2010-11-01 | BW180: 2010-12-01 | BX180: 2011-01-01 | BY180: 2011-02-01 | BZ180: 2011-03-01 | CA180: 2011-04-01 | CB180: 2011-05-01 | CC180: 2011-06-01 | CD180: 2011-07-01 | CE180: 00:00:00 | CF180: 00:00:00 | CG180: 00:00:00 | CH180: 00:00:00 | CI180: 00:00:00 | CJ180: 00:00:00 | CK180: 00:00:00 | CL180: 00:00:00 | CM180: 00:00:00 | CN180: 00:00:00 | CO180: 00:00:00 | CP180: 00:00:00 | CQ180: 00:00:00 | CR180: 2011-06-01 | CS180: 2011-06-01 | CT180: 2011-06-01 | CU180: 2011-06-01 | CV180: 2011-06-01 | CW180: 2011-06-01 | CX180: 2011-06-01 | CY180: 2011-06-01 | CZ180: 2011-06-01 | DA180: 2011-06-01 | DB180: 2011-06-01 | DC180: 2011-06-01 | DD180: 2011-06-01 | DE180: 2011-06-01 | DF180: 2011-06-01 | DG180: 2011-06-01
AN181: 26 | AP181: 1997 | AX181: 2010-02-01 | AY181: 2009-08-01 | AZ181: 2010-02-01 | BA181: 2011-07-30T00:14:24 | BB181: 2011-07-01 | BC181: 2011-07-01 | BD181: =IF(BC181>BA181,AX164,BC181) -> 2011-07-01 | BE181: 2010-02-01 | BF181: 2010-03-01 | BG181: 2010-04-01 | BH181: 2010-05-01 | BJ181: 2011-12-01 | BK181: 2008-11-07 | BQ181: 2010-06-01 | BR181: 2010-07-01 | BS181: 2010-08-01 | BT181: 2010-09-01 | BU181: 2010-10-01 | BV181: 2010-11-01 | BW181: 2010-12-01 | BX181: 2011-01-01 | BY181: 2011-02-01 | BZ181: 2011-03-01 | CA181: 2011-04-01 | CB181: 2011-05-01 | CC181: 2011-06-01 | CD181: 2011-07-01 | CE181: 00:00:00 | CF181: 00:00:00 | CG181: 00:00:00 | CH181: 00:00:00 | CI181: 00:00:00 | CJ181: 00:00:00 | CK181: 00:00:00 | CL181: 00:00:00 | CM181: 00:00:00 | CN181: 00:00:00 | CO181: 00:00:00 | CP181: 00:00:00 | CQ181: 00:00:00 | CR181: 2011-07-01 | CS181: 2011-07-01 | CT181: 2011-07-01 | CU181: 2011-07-01 | CV181: 2011-07-01 | CW181: 2011-07-01 | CX181: 2011-07-01 | CY181: 2011-07-01 | CZ181: 2011-07-01 | DA181: 2011-07-01 | DB181: 2011-07-01 | DC181: 2011-07-01 | DD181: 2011-07-01 | DE181: 2011-07-01 | DF181: 2011-07-01 | DG181: 2011-07-01 | DH181: 2011-07-01
AN182: 27 | AP182: 1998 | AX182: 2010-02-01 | AY182: 2009-08-01 | AZ182: 2010-02-01 | BA182: 2011-07-30T00:14:24 | BB182: 2011-08-01 | BC182: 2011-08-01 | BD182: =IF(BC182>BA182,AX164,BC182) -> 2010-02-01 | BE182: 2010-02-01 | BF182: 2010-03-01 | BG182: 2010-04-01 | BH182: 2010-05-01 | BJ182: 2011-12-02 | BK182: 2008-11-08 | BQ182: 2010-06-01 | BR182: 2010-07-01 | BS182: 2010-08-01 | BT182: 2010-09-01 | BU182: 2010-10-01 | BV182: 2010-11-01 | BW182: 2010-12-01 | BX182: 2011-01-01 | BY182: 2011-02-01 | BZ182: 2011-03-01 | CA182: 2011-04-01 | CB182: 2011-05-01 | CC182: 2011-06-01 | CD182: 2011-07-01 | CE182: 00:00:00 | CF182: 00:00:00 | CG182: 00:00:00 | CH182: 00:00:00 | CI182: 00:00:00 | CJ182: 00:00:00 | CK182: 00:00:00 | CL182: 00:00:00 | CM182: 00:00:00 | CN182: 00:00:00 | CO182: 00:00:00 | CP182: 00:00:00 | CQ182: 00:00:00
AN183: 28 | AP183: 1999 | AX183: 2010-02-01 | AY183: 2009-08-01 | AZ183: 2010-02-01 | BA183: 2011-07-30T00:14:24 | BB183: 2011-09-01 | BC183: 2011-09-01 | BD183: =IF(BC183>BA183,AX164,BC183) -> 2010-02-01 | BE183: 2010-02-01 | BF183: 2010-03-01 | BG183: 2010-04-01 | BH183: 2010-05-01 | BJ183: 2011-12-03 | BK183: 2008-11-09 | BQ183: 2010-06-01 | BR183: 2010-07-01 | BS183: 2010-08-01 | BT183: 2010-09-01 | BU183: 2010-10-01 | BV183: 2010-11-01 | BW183: 2010-12-01 | BX183: 2011-01-01 | BY183: 2011-02-01 | BZ183: 2011-03-01 | CA183: 2011-04-01 | CB183: 2011-05-01 | CC183: 2011-06-01 | CD183: 2011-07-01 | CE183: 00:00:00 | CF183: 00:00:00 | CG183: 00:00:00 | CH183: 00:00:00 | CI183: 00:00:00 | CJ183: 00:00:00 | CK183: 00:00:00 | CL183: 00:00:00 | CM183: 00:00:00 | CN183: 00:00:00 | CO183: 00:00:00 | CP183: 00:00:00 | CQ183: 00:00:00
AN184: 29 | AP184: 2000 | AX184: 2010-02-01 | AY184: 2009-08-01 | AZ184: 2010-02-01 | BA184: 2011-07-30T00:14:24 | BB184: 2011-10-01 | BC184: 2011-10-01 | BD184: =IF(BC184>BA184,AX164,BC184) -> 2010-02-01 | BE184: 2010-02-01 | BF184: 2010-03-01 | BG184: 2010-04-01 | BH184: 2010-05-01 | BJ184: 2011-12-04 | BK184: 2008-11-10 | BQ184: 2010-06-01 | BR184: 2010-07-01 | BS184: 2010-08-01 | BT184: 2010-09-01 | BU184: 2010-10-01 | BV184: 2010-11-01 | BW184: 2010-12-01 | BX184: 2011-01-01 | BY184: 2011-02-01 | BZ184: 2011-03-01 | CA184: 2011-04-01 | CB184: 2011-05-01 | CC184: 2011-06-01 | CD184: 2011-07-01 | CE184: 00:00:00 | CF184: 00:00:00 | CG184: 00:00:00 | CH184: 00:00:00 | CI184: 00:00:00 | CJ184: 00:00:00 | CK184: 00:00:00 | CL184: 00:00:00 | CM184: 00:00:00 | CN184: 00:00:00 | CO184: 00:00:00 | CP184: 00:00:00 | CQ184: 00:00:00
AN185: 30 | AP185: 2001 | AX185: 2010-02-01 | AY185: 2009-08-01 | AZ185: 2010-02-01 | BA185: 2011-07-30T00:14:24 | BB185: 2011-11-01 | BC185: 2011-11-01 | BD185: =IF(BC185>BA185,AX164,BC185) -> 2010-02-01 | BE185: 2010-02-01 | BF185: 2010-03-01 | BG185: 2010-04-01 | BH185: 2010-05-01 | BJ185: 2011-12-05 | BK185: 2008-11-11 | BQ185: 2010-06-01 | BR185: 2010-07-01 | BS185: 2010-08-01 | BT185: 2010-09-01 | BU185: 2010-10-01 | BV185: 2010-11-01 | BW185: 2010-12-01 | BX185: 2011-01-01 | BY185: 2011-02-01 | BZ185: 2011-03-01 | CA185: 2011-04-01 | CB185: 2011-05-01 | CC185: 2011-06-01 | CD185: 2011-07-01 | CE185: 00:00:00 | CF185: 00:00:00 | CG185: 00:00:00 | CH185: 00:00:00 | CI185: 00:00:00 | CJ185: 00:00:00 | CK185: 00:00:00 | CL185: 00:00:00 | CM185: 00:00:00 | CN185: 00:00:00 | CO185: 00:00:00 | CP185: 00:00:00 | CQ185: 00:00:00
AN186: 31 | AP186: 2002 | AX186: 2010-02-01 | AY186: 2009-08-01 | AZ186: 2010-02-01 | BA186: 2011-07-30T00:14:24 | BB186: 2011-12-01 | BC186: 2011-12-01 | BD186: =IF(BC186>BA186,AX164,BC186) -> 2010-02-01 | BE186: 2010-02-01 | BF186: 2010-03-01 | BG186: 2010-04-01 | BH186: 2010-05-01 | BJ186: 2011-12-06 | BK186: 2008-11-12 | BQ186: 2010-06-01 | BR186: 2010-07-01 | BS186: 2010-08-01 | BT186: 2010-09-01 | BU186: 2010-10-01 | BV186: 2010-11-01 | BW186: 2010-12-01 | BX186: 2011-01-01 | BY186: 2011-02-01 | BZ186: 2011-03-01 | CA186: 2011-04-01 | CB186: 2011-05-01 | CC186: 2011-06-01 | CD186: 2011-07-01 | CE186: 00:00:00 | CF186: 00:00:00 | CG186: 00:00:00 | CH186: 00:00:00 | CI186: 00:00:00 | CJ186: 00:00:00 | CK186: 00:00:00 | CL186: 00:00:00 | CM186: 00:00:00 | CN186: 00:00:00 | CO186: 00:00:00 | CP186: 00:00:00 | CQ186: 00:00:00
AP187: 2003 | AX187: 2010-02-01 | AY187: 2009-08-01 | AZ187: 2010-02-01 | BA187: 2011-07-30T00:14:24 | BB187: 2012-01-01 | BC187: 2012-01-01 | BD187: =IF(BC187>BA187,AX164,BC187) -> 2010-02-01 | BE187: 2010-02-01 | BF187: 2010-03-01 | BG187: 2010-04-01 | BH187: 2010-05-01 | BJ187: 2011-12-07 | BK187: 2008-11-13 | BQ187: 2010-06-01 | BR187: 2010-07-01 | BS187: 2010-08-01 | BT187: 2010-09-01 | BU187: 2010-10-01 | BV187: 2010-11-01 | BW187: 2010-12-01 | BX187: 2011-01-01 | BY187: 2011-02-01 | BZ187: 2011-03-01 | CA187: 2011-04-01 | CB187: 2011-05-01 | CC187: 2011-06-01 | CD187: 2011-07-01 | CE187: 00:00:00 | CF187: 00:00:00 | CG187: 00:00:00 | CH187: 00:00:00 | CI187: 00:00:00 | CJ187: 00:00:00 | CK187: 00:00:00 | CL187: 00:00:00 | CM187: 00:00:00 | CN187: 00:00:00 | CO187: 00:00:00 | CP187: 00:00:00 | CQ187: 00:00:00
AP188: 2004 | AX188: 2010-02-01 | AY188: 2009-08-01 | AZ188: 2010-02-01 | BA188: 2011-07-30T00:14:24 | BB188: 2012-02-01 | BC188: 2012-02-01 | BD188: =IF(BC188>BA188,AX164,BC188) -> 2010-02-01 | BE188: 2010-02-01 | BF188: 2010-03-01 | BG188: 2010-04-01 | BH188: 2010-05-01 | BJ188: 2011-12-08 | BK188: 2008-11-14 | BQ188: 2010-06-01 | BR188: 2010-07-01 | BS188: 2010-08-01 | BT188: 2010-09-01 | BU188: 2010-10-01 | BV188: 2010-11-01 | BW188: 2010-12-01 | BX188: 2011-01-01 | BY188: 2011-02-01 | BZ188: 2011-03-01 | CA188: 2011-04-01 | CB188: 2011-05-01 | CC188: 2011-06-01 | CD188: 2011-07-01 | CE188: 00:00:00 | CF188: 00:00:00 | CG188: 00:00:00 | CH188: 00:00:00 | CI188: 00:00:00 | CJ188: 00:00:00 | CK188: 00:00:00 | CL188: 00:00:00 | CM188: 00:00:00 | CN188: 00:00:00 | CO188: 00:00:00 | CP188: 00:00:00 | CQ188: 00:00:00
AP189: 2005 | AX189: 2010-02-01 | AY189: 2009-08-01 | AZ189: 2010-02-01 | BA189: 2011-07-30T00:14:24 | BB189: 2012-03-01 | BC189: 2012-03-01 | BD189: =IF(BC189>BA189,AX164,BC189) -> 2010-02-01 | BE189: 2010-02-01 | BF189: 2010-03-01 | BG189: 2010-04-01 | BH189: 2010-05-01 | BJ189: 2011-12-09 | BK189: 2008-11-15 | BQ189: 2010-06-01 | BR189: 2010-07-01 | BS189: 2010-08-01 | BT189: 2010-09-01 | BU189: 2010-10-01 | BV189: 2010-11-01 | BW189: 2010-12-01 | BX189: 2011-01-01 | BY189: 2011-02-01 | BZ189: 2011-03-01 | CA189: 2011-04-01 | CB189: 2011-05-01 | CC189: 2011-06-01 | CD189: 2011-07-01 | CE189: 00:00:00 | CF189: 00:00:00 | CG189: 00:00:00 | CH189: 00:00:00 | CI189: 00:00:00 | CJ189: 00:00:00 | CK189: 00:00:00 | CL189: 00:00:00 | CM189: 00:00:00 | CN189: 00:00:00 | CO189: 00:00:00 | CP189: 00:00:00 | CQ189: 00:00:00
AP190: 2006 | AX190: 2010-02-01 | AY190: 2009-08-01 | AZ190: 2010-02-01 | BA190: 2011-07-30T00:14:24 | BB190: 2012-04-01 | BC190: 2012-04-01 | BD190: =IF(BC190>BA190,AX164,BC190) -> 2010-02-01 | BE190: 2010-02-01 | BF190: 2010-03-01 | BG190: 2010-04-01 | BH190: 2010-05-01 | BJ190: 2011-12-10 | BK190: 2008-11-16 | BQ190: 2010-06-01 | BR190: 2010-07-01 | BS190: 2010-08-01 | BT190: 2010-09-01 | BU190: 2010-10-01 | BV190: 2010-11-01 | BW190: 2010-12-01 | BX190: 2011-01-01 | BY190: 2011-02-01 | BZ190: 2011-03-01 | CA190: 2011-04-01 | CB190: 2011-05-01 | CC190: 2011-06-01 | CD190: 2011-07-01 | CE190: 00:00:00 | CF190: 00:00:00 | CG190: 00:00:00 | CH190: 00:00:00 | CI190: 00:00:00 | CJ190: 00:00:00 | CK190: 00:00:00 | CL190: 00:00:00 | CM190: 00:00:00 | CN190: 00:00:00 | CO190: 00:00:00 | CP190: 00:00:00 | CQ190: 00:00:00
AP191: 2007 | AX191: 2010-02-01 | AY191: 2009-08-01 | AZ191: 2010-02-01 | BA191: 2011-07-30T00:14:24 | BB191: =IF(E36=E37,E65,E136) -> 2011-07-31T00:14:24 | BC191: 2011-07-31T00:14:24 | BD191: =IF(BC191>BA191,AX164,BC191) -> 2010-02-01 | BE191: 2010-02-01 | BF191: 2010-03-01 | BG191: 2010-04-01 | BH191: 2010-05-01 | BJ191: 2011-12-11 | BK191: 2008-11-17 | BQ191: 2010-06-01 | BR191: 2010-07-01 | BS191: 2010-08-01 | BT191: 2010-09-01 | BU191: 2010-10-01 | BV191: 2010-11-01 | BW191: 2010-12-01 | BX191: 2011-01-01 | BY191: 2011-02-01 | BZ191: 2011-03-01 | CA191: 2011-04-01 | CB191: 2011-05-01 | CC191: 2011-06-01 | CD191: 2011-07-01 | CE191: 00:00:00 | CF191: 00:00:00 | CG191: 00:00:00 | CH191: 00:00:00 | CI191: 00:00:00 | CJ191: 00:00:00 | CK191: 00:00:00 | CL191: 00:00:00 | CM191: 00:00:00 | CN191: 00:00:00 | CO191: 00:00:00 | CP191: 00:00:00 | CQ191: 00:00:00
AP192: 2008 | AX192: 2010-02-01 | AY192: 2009-08-01 | AZ192: 2010-02-01 | BA192: 2011-07-30T00:14:24 | BB192: =E68 -> 2010-02-01 | BC192: 2010-02-01 | BD192: =IF(BC192>BA192,AX164,BC192) -> 2010-02-01 | BE192: 2010-02-01 | BF192: 2010-03-01 | BG192: 2010-04-01 | BH192: 2010-05-01 | BJ192: 2011-12-12 | BK192: 2008-11-18 | BQ192: 2010-06-01 | BR192: 2010-07-01 | BS192: 2010-08-01 | BT192: 2010-09-01 | BU192: 2010-10-01 | BV192: 2010-11-01 | BW192: 2010-12-01 | BX192: 2011-01-01 | BY192: 2011-02-01 | BZ192: 2011-03-01 | CA192: 2011-04-01 | CB192: 2011-05-01 | CC192: 2011-06-01 | CD192: 2011-07-01 | CE192: 00:00:00 | CF192: 00:00:00 | CG192: 00:00:00 | CH192: 00:00:00 | CI192: 00:00:00 | CJ192: 00:00:00 | CK192: 00:00:00 | CL192: 00:00:00 | CM192: 00:00:00 | CN192: 00:00:00 | CO192: 00:00:00 | CP192: 00:00:00 | CQ192: 00:00:00
AP193: 2009 | AX193: 2010-02-01 | AY193: 2009-08-01 | AZ193: 2010-02-01 | BA193: 2011-07-30T00:14:24 | BB193: =IF(E41=O107,40210,E138) -> 2010-02-01 | BC193: 2010-02-01 | BD193: =IF(BC193>BA193,AX164,BC193) -> 2010-02-01 | BE193: 2010-02-01 | BF193: 2010-03-01 | BG193: 2010-04-01 | BH193: 2010-05-01 | BJ193: 2011-12-13 | BK193: 2008-11-19 | BQ193: 2010-06-01 | BR193: 2010-07-01 | BS193: 2010-08-01 | BT193: 2010-09-01 | BU193: 2010-10-01 | BV193: 2010-11-01 | BW193: 2010-12-01 | BX193: 2011-01-01 | BY193: 2011-02-01 | BZ193: 2011-03-01 | CA193: 2011-04-01 | CB193: 2011-05-01 | CC193: 2011-06-01 | CD193: 2011-07-01 | CE193: 00:00:00 | CF193: 00:00:00 | CG193: 00:00:00 | CH193: 00:00:00 | CI193: 00:00:00 | CJ193: 00:00:00 | CK193: 00:00:00 | CL193: 00:00:00 | CM193: 00:00:00 | CN193: 00:00:00 | CO193: 00:00:00 | CP193: 00:00:00 | CQ193: 00:00:00
AP194: 2010 | AX194: 2010-02-01 | AY194: 2009-08-01 | AZ194: 2010-02-01 | BA194: 2011-07-30T00:14:24 | BB194: =F69 -> 2010-02-01 | BC194: 2010-02-01 | BD194: =IF(BC194>BA194,AX164,BC194) -> 2010-02-01 | BE194: 2010-02-01 | BF194: 2010-03-01 | BG194: 2010-04-01 | BH194: 2010-05-01 | BJ194: 2011-12-14 | BK194: 2008-11-20 | BQ194: 2010-06-01 | BR194: 2010-07-01 | BS194: 2010-08-01 | BT194: 2010-09-01 | BU194: 2010-10-01 | BV194: 2010-11-01 | BW194: 2010-12-01 | BX194: 2011-01-01 | BY194: 2011-02-01 | BZ194: 2011-03-01 | CA194: 2011-04-01 | CB194: 2011-05-01 | CC194: 2011-06-01 | CD194: 2011-07-01 | CE194: 00:00:00 | CF194: 00:00:00 | CG194: 00:00:00 | CH194: 00:00:00 | CI194: 00:00:00 | CJ194: 00:00:00 | CK194: 00:00:00 | CL194: 00:00:00 | CM194: 00:00:00 | CN194: 00:00:00 | CO194: 00:00:00 | CP194: 00:00:00 | CQ194: 00:00:00
AP195: 2011 | BJ195: 2011-12-15 | BK195: 2008-11-21
AP196: 2012 | BJ196: 2011-12-16 | BK196: 2008-11-22
AP197: 2013 | BJ197: 2011-12-17 | BK197: 2008-11-23
BJ198: 2011-12-18 | BK198: 2008-11-24
BJ199: 2011-12-19 | BK199: 2008-11-25
BJ200: 2011-12-20 | BK200: 2008-11-26
BJ201: 2011-12-21 | BK201: 2008-11-27
BJ202: 2011-12-22 | BK202: 2008-11-28
... 763 more rows

Sheet P. TOKEN
A1: A.P. STATE GOVERNMENT
A2: PAPER TOKEN
A5: STO Code: | B5: ='47-FRONT'!F7 -> 0 | C5: ='47-FRONT'!G7 -> 7 | D5: ='47-FRONT'!H7 -> 0 | E5: ='47-FRONT'!I7 -> 5 | J5: (For Treasury Use Only)
A6: STO Name: | B6: ='WORK SHEET'!E18 -> STO;DARSI | J6: Date:……………………
A7: DDO Code: | B7: =CONCATENATE('47-FRONT'!F10,'47-FRONT'!G10,'47-FRONT'!H10,'47-FRONT'!I10,'47-FRONT'!J10,'47-FRONT'!K10,'47-FRONT'!L10,'47-FRONT'!M10,'47-FRONT'!N10,'47-FRONT'!O10,'47-FRONT'!P10) -> 07050308026 | J7: Trans ID:
A9: DDO Designation: | B9: =IF('47-FRONT'!F12="MANDAL EDUCATIONAL OFFICER","M.E.O.",'47-FRONT'!F12) -> M.E.O. | G9: DDO Office Name: | K9: ='47-FRONT'!R12 -> MRC, KURICHEDU
A11: Bank Branch Code: | B11: ='47-FRONT'!F15 -> 3 | C11: ='47-FRONT'!G15 -> 6 | D11: ='47-FRONT'!H15 -> 4 | E11: ='47-FRONT'!I15 -> 1 | G11: Name: | I11: ='47-FRONT'!R15 -> SYNDICATE BANK DARSI
A13: Head of Account: | B13: ='47-FRONT'!E24 -> 2 | C13: ='47-FRONT'!F24 -> 2 | D13: ='47-FRONT'!G24 -> 0 | E13: ='47-FRONT'!H24 -> 2 | G13: ='47-FRONT'!E26 -> 0 | H13: ='47-FRONT'!F26 -> 1 | J13: ='47-FRONT'!E28 -> 1 | K13: ='47-FRONT'!F28 -> 0 | L13: ='47-FRONT'!G28 -> 3
B14: (Major Head) | G14: (Sub-MH) | J14: (Minor Head) | N14: (Grp-SH)
B15: ='47-FRONT'!E32 -> 0 | C15: ='47-FRONT'!F32 -> 5 | G15: ='47-FRONT'!E34 -> 0 | H15: ='47-FRONT'!F34 -> 1 | I15: ='47-FRONT'!G34 -> 0
B16: (Sub-Head) | G16: (Det.Head) | L16: (Sub Det.Head)
A17: Non-Plan=N/ | B17: N | D17: Charged=C/ | F17: V | G17: Contingency Fund MH/ | L17: =B13 -> 2 | M17: =C13 -> 2 | N17: =D13 -> 0 | O17: =E13 -> 2
A18: Plan=P: | D18: Voted=V | G18: Service Major Head
A20: GROSS Rs | B20: =BILL!AH27+BILL!AH38 -> 10198 | D20: Deductions Rs | G20: =BILL!AH27 -> 9004 | J20: Net Rs | M20: =BILL!AH38 -> 1194
A22: NET | B22: ='BILL-P.F & CASH'!A41 -> RUPEES : ONE THOUSAND ONE HUNDRED AND NINETY FOUR ONLY
A23: Messenger Name: | B23: ='WORK SHEET'!E21 -> J.V.V.M.SUDHAKAR | H23: Designation : | K23: ='WORK SHEET'!E22 -> M.R.P
A24: (As in APTC form-101)
A26: Specimen Signature of Messenger | E26: 1
E27: 2
A31: DDO Signature | E31: Attested | L31: STO Signature
E33: DDOSignature

Sheet ANNEX-I & II
A1: ANNEXURE - I | I1: ANNEXURE - II
A2: (Employ wise details) | I2: (Notified Link Bank Report)
A3: To be furnished by the DDO in triplicate along with the bill | I3: To be furnished by the DDO in triplicate
A4: Name of the NPB: S.B.I. ADDANKI | C4: ='P. TOKEN'!I11 -> SYNDICATE BANK DARSI | I4: DDO Code : | K4: =C5 -> 07050308026
A5: DDO CODE : | C5: ='P. TOKEN'!B7 -> 07050308026 | F5: Date : | I5: DDO Name & Desig: | K5: ='WORK SHEET'!E16 -> N.vijayakumar | M5: ='ANNEX-I & II'!C6 -> M.E.O. | O5: Date
A6: DDO Desig : | C6: ='P. TOKEN'!B9 -> M.E.O. | F6: Trance ID No : | I6: Name of NLB : | K6: ='WORK SHEET'!E18 -> STO;DARSI | O6: Trans ID No:
A8: Sl.No | B8: Employee Code | C8: Employee Name | F8: Employee Account No. | G8: Amount to be cerdited | I8: Sl.No | J8: Name of the NPB | M8: Purpose | P8: Ammount to be credited
A9: 1 | B9: ='WORK SHEET'!E7 -> 724731 | C9: ='BILL-NOTIONAL'!C5 -> SK.KHAJARAHAMTULLA | E9: =IF('WORK SHEET'!E41='WORK SHEET'!O106,'WORK SHEET'!E44,'WORK SHEET'!E25) -> S.G.T. | F9: ='WORK SHEET'!E8 -> 11393579473 | G9: ='P. TOKEN'!M20 -> 1194 | I9: 1 | J9: =C4 -> SYNDICATE BANK DARSI | M9: =CONCATENATE("Arrear bill of Sri/Smt ",'WORK SHEET'!E2," of ",'WORK SHEET'!E3," ",'WORK SHEET'!E4," for AAS increments") -> Arrear bill of Sri/Smt SK.KHAJARAHAMTULLA of MPPS(G) POTLAPADU for AAS increments | P9: =G9 -> 1194
C10: TOTAL | G10: =G9 -> 1194
A11: =[1]BILL!B94 -> RUPEES ONE LAKH TWENTY EIGHT THOUSAND FOUR HUNDRED AND EIGHTY EIGHT ONLEY
A12: ='P. TOKEN'!B22 -> RUPEES : ONE THOUSAND ONE HUNDRED AND NINETY FOUR ONLY
M13: TOTAL | P13: =P9 -> 1194
I14: =A12 -> RUPEES : ONE THOUSAND ONE HUNDRED AND NINETY FOUR ONLY
A15: DDO Signature: | F15: Signature of TO.
A16: (with seal) | F16: (with seal)
I17: DDO Signature | O17: Signature of S.T.O.

Sheet 101
A1: A.P.T.C. FORM-101
A2: (See Subsidiary Rule2(w) Under Treasury Rule 15
A3: Govt.Memo No.38907/Accounts/ 65-5,Dt.21-02-1963)
A6: DDO CODE: | D6: ='P. TOKEN'!B7 -> 07050308026 | K6: Treasury / PAO Code: | M6: ='P. TOKEN'!B5 -> 0 | N6: ='P. TOKEN'!C5 -> 7 | O6: ='P. TOKEN'!D5 -> 0 | P6: ='P. TOKEN'!E5 -> 5
A8: DDO Designation: | D8: ='P. TOKEN'!B9 -> M.E.O. | K8: Treasury / PAO NAME: | M8: ='P. TOKEN'!B6 -> STO;DARSI
A10: To
A11: The Treasury Officer/Manager
A12: State Bank of India, | D12: ='P. TOKEN'!I11 -> SYNDICATE BANK DARSI
A14: Please Pay Bill No. | F14: / 2011 - 12 | H14: Dated: | L14: for Rs. | N14: ='P. TOKEN'!M20 -> 1194
A15: ='47-FRONT'!B59 -> RUPEES : ONE THOUSAND ONE HUNDRED AND NINETY FOUR ONLY
A16: to Sri | B16: ='P. TOKEN'!B23&", "&'P. TOKEN'!K23 -> J.V.V.M.SUDHAKAR, M.R.P | I16: for the office of the | L16: ='47-FRONT'!R12 -> MRC, KURICHEDU
A17: whose specimen signature is attested here with.
A20: Signature of the Govt. Servant | K20: Received the payment
A22: Dated: | K22: Dated :
A23: Attested
A28: Signature of the D.D.O. | K28: Signature of the Govt.
K29: Servant receiving the payment

Sheet PROCEEDINGS
B1: =CONCATENATE("PROCEEDINGS OF THE ",IF('WORK SHEET'!E123=1,"DEPUTY EDUCATIONAL OFFICER, ",VLOOKUP('WORK SHEET'!E124,'WORK SHEET'!AS52:BB55,9,TRUE))," ",IF('WORK SHEET'!E123=1,CONCATENATE('WORK SHEET'!E24," DIVISION"),VLOOKUP('WORK SHEET'!E124,'WORK SHEET'!AS52:BB55,10,TRUE))) -> PROCEEDINGS OF THE MANDAL EDUCATIONAL OFFICER KURICHEDU
B2: =CONCATENATE("PRESENT :- ",'WORK SHEET'!E16) -> PRESENT :- N.vijayakumar
B4: Rc.No. | C4: ='WORK SHEET'!E14 -> 2/AAS/2011 | H4: DATED : | I4: ='WORK SHEET'!E15 -> 2011-08-01
C6: SUB:- | D6: =CONCATENATE("Estt-",IF(H40="DEPUTY EDUCATIONAL OFFICER.","APES -","APSESS -"),'47-FRONT'!H26," - ",H41," - ",H42) -> Estt-APSESS -Elementry Education - MANDAL PARASAD - KURICHEDU
D7: =CONCATENATE("Sri/Smt ",'WORK SHEET'!E2," ",IF('WORK SHEET'!E41="YES",'WORK SHEET'!G144,'WORK SHEET'!E25), " - "," sanction of automaatic advancement increments ") -> Sri/Smt SK.KHAJARAHAMTULLA S.G.T. - sanction of automaatic advancement increments
D8: =CONCATENATE('WORK SHEET'!N73," increment -ORDERS ISSUED") -> S.P.P.-1A increment -ORDERS ISSUED
C9: REF:- | D9: 1.G.O.Ms No.52 Finance Dept., dated: 25-02-2010
D10: 2.G.O.Ms.No.96 Fin(P.C.-II)Dept, Dt:20/05/2011
D11: 4.G.O.Ms No:40 Edn. Dept Dt: 07/02/02
D12: 5.Option exercised by the individual
F14: --oOo--
B15: ORDER
B16: =CONCATENATE(" In pursuance of the orders issued in reference 1 to 4 cited above the pay of sri/smt ",'WORK SHEET'!E2," of ",'WORK SHEET'!E3," ",'WORK SHEET'!E4," sanctined and fixed ",'WORK SHEET'!N73, " scale in ",'WORK SHEET'!E25," cadre with effect from the following date as shown below.") -> In pursuance of the orders issued in reference 1 to 4 cited above the pay of sri/smt SK.KHAJARAHAMTULLA of MPPS(G) POTLAPADU sanctined and fixed S.P.P.-1A scale in S.G.T. cadre with effect from the following date as shown below.
B18: 1 | C18: Name of the Teacher | G18: ='WORK SHEET'!E2 -> SK.KHAJARAHAMTULLA
B19: 2 | C19: Designation | G19: =IF('WORK SHEET'!E41='WORK SHEET'!O106,'WORK SHEET'!E44,'WORK SHEET'!E25) -> S.G.T.
B20: 3 | C20: =CONCATENATE("Date of firstappointment as ",'WORK SHEET'!E25) -> Date of firstappointment as S.G.T. | G20: ='WORK SHEET'!E92 -> 1997-08-06
B21: 4 | C21: Date of regularigation in this cadre | G21: ='WORK SHEET'!E93 -> 1997-08-06
B22: 5 | C22: =CONCATENATE("Date of compleation of ",'WORK SHEET'!F53," years in this cadre") -> Date of compleation of 12 years in this cadre | G22: ='WORK SHEET'!E94 -> 2009-08-06
B23: 6 | C23: =CONCATENATE("Date of effect in ", 'WORK SHEET'!N73, " time scale") -> Date of effect in S.P.P.-1A time scale | G23: ='WORK SHEET'!C244 -> 2010-02-01
B24: 7 | C24: Perticulars of E.O.L. aviled | G24: =IF('WORK SHEET'!E64=0,"NIL",CONCATENATE('WORK SHEET'!E64," days")) -> NIL | H24: =IF('WORK SHEET'!E64=0," ","FROM") ->  | I24: =IF('WORK SHEET'!E64=0," ","To") -> 
H25: =IF('WORK SHEET'!E46='WORK SHEET'!O107," ",IF('WORK SHEET'!F47=0," ",'WORK SHEET'!F47)) ->  | I25: =IF('WORK SHEET'!E46='WORK SHEET'!O107," ",IF('WORK SHEET'!F47=0," ",'WORK SHEET'!G47)) ->  | J25: =IF(H25=" "," ",CONCATENATE('WORK SHEET'!P53," days")) -> 
H26: =IF('WORK SHEET'!E46='WORK SHEET'!O107," ",IF('WORK SHEET'!F48=0," ",'WORK SHEET'!F48)) ->  | I26: =IF('WORK SHEET'!E46='WORK SHEET'!O107," ",IF('WORK SHEET'!F48=0," ",'WORK SHEET'!G48)) ->  | J26: =IF(H26=" "," ",CONCATENATE('WORK SHEET'!P54," days")) -> 
H27: =IF('WORK SHEET'!E46='WORK SHEET'!O107," ",IF('WORK SHEET'!F49=0," ",'WORK SHEET'!F49)) ->  | I27: =IF('WORK SHEET'!E46='WORK SHEET'!O107," ",IF('WORK SHEET'!F49=0," ",'WORK SHEET'!G49)) ->  | J27: =IF(H27=" "," ",CONCATENATE('WORK SHEET'!P55," days")) -> 
H28: =IF('WORK SHEET'!E46='WORK SHEET'!O107," ",IF('WORK SHEET'!F50=0," ",'WORK SHEET'!F50)) ->  | I28: =IF('WORK SHEET'!E46='WORK SHEET'!O107," ",IF('WORK SHEET'!F50=0," ",'WORK SHEET'!G50)) ->  | J28: =IF(H28=" "," ",CONCATENATE('WORK SHEET'!P56," days")) -> 
B29: 8 | C29: wether departmental tests passed | G29: ='WORK SHEET'!E31 -> NO
B30: 9 | C30: Pay and Scale of pay as on | F30: =BILL!D5 -> 2010-02-01 | G30: =CONCATENATE("Rs. ",'WORK SHEET'!E96," / - ",'WORK SHEET'!G96) -> Rs. 14440 / - 11530-33200
B31: 10 | C31: =CONCATENATE("Pay and Scale after fixition in ",'WORK SHEET'!N73,'WORK SHEET'!N74) -> Pay and Scale after fixition in S.P.P.-1A as per FR 22(a)(i) | G31: =CONCATENATE("Rs. ",'WORK SHEET'!E97," /- ",'WORK SHEET'!F97) -> Rs. 14860 /- 14860-420-15700-450-17050-490-18520-530-20110-570-21820-610-23650-650-25600-700-27700-750-29950-800-32350-850-34900-900-37600-970-39540
B32: Date of subsequent increments | D32: Basic pay | E32: Basic after incremt | F32: scale of pay | H32: Remarks
B33: ='WORK SHEET'!F109 -> 2010-08-01 | D33: =IF(B33=" "," ",'WORK SHEET'!I109) -> 14860 | E33: =IF(B33=" "," ",'WORK SHEET'!H109) -> 15280 | F33: =IF(B33=" "," ",'WORK SHEET'!L109) -> 14860-39540 | H33: =IF('WORK SHEET'!E41='WORK SHEET'!O107," ",CONCATENATE("PROMOTED AS ",'WORK SHEET'!E44," WITH ")) -> 
B34: =IF('WORK SHEET'!F110=0," ",'WORK SHEET'!F110) ->  | D34: =IF(B34=" "," ",'WORK SHEET'!I110) ->  | E34: =IF(B34=" "," ",'WORK SHEET'!H110) ->  | F34: =IF(B34=" "," ",'WORK SHEET'!L110) ->  | H34: =IF(H33=" "," ",'WORK SHEET'!R108) -> 
B35: =IF('WORK SHEET'!F111=0," ",'WORK SHEET'!F111) ->  | D35: =IF(B35=" "," ",'WORK SHEET'!I111) ->  | E35: =IF(B35=" "," ",'WORK SHEET'!H111) ->  | F35: =IF(B35=" "," ",'WORK SHEET'!L111) ->  | H35: =IF(H34=" "," ",'WORK SHEET'!E138) -> 
B36: 11 | C36: Date of next increment | G36: ='WORK SHEET'!F98 -> 2011-08-01
B37: The arrears of pay fixations under AAS in RPS-2010 from 01-02-2010 to 31-05-2011 will be credited in G.P.F./Z.P.P.F. Accout.From 01-06-2011 will be paid in cash
B38: In the pay is found erroneous at any time the excess amount paid to the individual will be recovered in lumpsum without any prior notice.
B40: Copy to | H40: =IF('WORK SHEET'!E123=1,"DEPUTY EDUCATIONAL OFFICER.",VLOOKUP('WORK SHEET'!E124,'WORK SHEET'!AS52:BA55,9,TRUE)) -> MANDAL EDUCATIONAL OFFICER
B41: Sri /Smt./Kum | C41: =CONCATENATE('WORK SHEET'!E2,", ",IF('WORK SHEET'!E127=1,'WORK SHEET'!E44,'WORK SHEET'!E25),", ", 'WORK SHEET'!E3,", ", 'WORK SHEET'!E4) -> SK.KHAJARAHAMTULLA, S.G.T., MPPS(G), POTLAPADU | H41: =IF('WORK SHEET'!E123=1,CONCATENATE(H42," DIVISION"),IF(OR('WORK SHEET'!E124=2,'WORK SHEET'!E124=4),'WORK SHEET'!E3,"MANDAL PARASAD ")) -> MANDAL PARASAD
B42: Copy to Bill, Service Register | H42: =IF('WORK SHEET'!E123=1,'WORK SHEET'!E24,IF(OR('WORK SHEET'!E124=1,'WORK SHEET'!E124=3),'WORK SHEET'!E5,'WORK SHEET'!E4)) -> KURICHEDU
B43: =CONCATENATE("Copy to the ",'WORK SHEET'!E18) -> Copy to the STO;DARSI

Sheet 47-FRONT
B1: =CONCATENATE("AAS ARREAR BILLOF"," ",'WORK SHEET'!E3,", ",'WORK SHEET'!E4,", ",'WORK SHEET'!E5) -> AAS ARREAR BILLOF MPPS(G), POTLAPADU, KURICHEDU | X1: ='WORK SHEET'!E62 -> 2009-08-06
B2: =CONCATENATE("Payable At Sub-Treasury Office - ",'WORK SHEET'!E18) -> Payable At Sub-Treasury Office - STO;DARSI
B3: GOVERNMENT OF ANDHRA PRADESH ( A.P.T.C.Form - 47 )
R4: (For Treasury Use Only)
B5: Pay Bill for the Month & Year | F5: =IF(MONTH(X1)<=9,0,1) -> 0 | G5: =IF(MONTH(X1)>9,MONTH(X1)-10,MONTH(X1)) -> 8 | I5: 2 | J5: 0 | K5: 1 | L5: 0 | R5: DATE: _____________
B7: Treasury / P.A.O Code | F7: =F10 -> 0 | G7: =G10 -> 7 | H7: =H10 -> 0 | I7: =I10 -> 5 | R7: Trans ID:
B10: D.D.O.Code | F10: ='WORK SHEET'!E122 -> 0 | G10: ='WORK SHEET'!F122 -> 7 | H10: ='WORK SHEET'!G122 -> 0 | I10: ='WORK SHEET'!H122 -> 5 | J10: ='WORK SHEET'!I122 -> 0 | K10: ='WORK SHEET'!J122 -> 3 | L10: ='WORK SHEET'!K122 -> 0 | M10: ='WORK SHEET'!L122 -> 8 | N10: ='WORK SHEET'!M122 -> 0 | O10: ='WORK SHEET'!N122 -> 2 | P10: ='WORK SHEET'!O122 -> 6 | R10: District :PRAKASAM | U10: ='WORK SHEET'!E6 -> PRAKASAM
B12: DDO Designation | F12: =VLOOKUP('WORK SHEET'!E124,'WORK SHEET'!AS52:BB55,9,TRUE) -> MANDAL EDUCATIONAL OFFICER | M12: DDO OFFICE NAME : | R12: =VLOOKUP('WORK SHEET'!E124,'WORK SHEET'!AS52:BD55,12,TRUE) -> MRC, KURICHEDU
B15: BANK CODE | F15: ='WORK SHEET'!E130 -> 3 | G15: ='WORK SHEET'!F130 -> 6 | H15: ='WORK SHEET'!G130 -> 4 | I15: ='WORK SHEET'!H130 -> 1 | N15: BANK NAME: | R15: ='WORK SHEET'!E20 -> SYNDICATE BANK DARSI
B17: DDOs TBR No. | F17: 0 | J17: / 2010-11
A22: ='WORK SHEET'!AJ135 -> UNDER RUPEES : ONE THOUSAND ONE HUNDRED AND NINETY TWO ONLY | R22: Permanent / Temporary
B23: Head of Account | M23: Deducations | T23: Amount
B24: Major Head | E24: 2 | F24: 2 | G24: 0 | H24: 2 | I24: General Education | M24: 1 | N24: G.P.F/AIS/PF | S24: Rs. | T24: =IF('WORK SHEET'!E9='WORK SHEET'!N106," ",BILL!AH27) -> 
B26: Sub Major | E26: 0 | F26: =VLOOKUP('WORK SHEET'!E124,'WORK SHEET'!AS52:AZ55,7,TRUE) -> 1 | H26: =VLOOKUP('WORK SHEET'!E124,'WORK SHEET'!AS52:AZ55,8,TRUE) -> Elementry Education | M26: 2 | N26: APGLI | S26: Rs.
B28: Minor Head | E28: 1 | F28: =VLOOKUP('WORK SHEET'!E124,'WORK SHEET'!AS52:AZ55,3,TRUE) -> 0 | G28: =VLOOKUP('WORK SHEET'!E124,'WORK SHEET'!AS52:AZ55,4,TRUE) -> 3 | H28: =VLOOKUP('WORK SHEET'!E124,'WORK SHEET'!AS52:AZ55,2,TRUE) -> Assistance to Local Bodies for Primary Education | M28: 3 | N28: Group Insurance/AIS | S28: Rs.
B30: Group Sub-Head | M30: 4 | N30: Professional Tax | S30: Rs.
B32: Sub Head | E32: 0 | F32: =VLOOKUP('WORK SHEET'!E124,'WORK SHEET'!AS52:AZ55,6,TRUE) -> 5 | H32: =VLOOKUP('WORK SHEET'!E124,'WORK SHEET'!AS52:AZ55,5,TRUE) -> Teaching Grant to Mandal Praja Parishad | M32: 5 | N32: House Rent | S32: Rs.
B34: Detail Head | E34: 0 | F34: 1 | G34: 0 | H34: Salaries | M34: 6 | N34: Festival Adv.&APCO Adv. | S34: Rs.
M35: 7 | N35: Educational Adv. | S35: Rs.
M36: 8 | N36: HBA (P) | S36: Rs.
B37: Non-plan=N/Plan=P | F37: N | G37: Charged=C/Voted=V | K37: V | M37: 9 | N37: HBA (I) | S37: Rs.
B38: Contingency Fund/MH | M38: 10 | N38: Car Adv.(P) | S38: Rs.
B39: Service Major Head | F39: 2 | G39: 2 | H39: 0 | I39: 2 | M39: 11 | N39: Car Adv.(I) | S39: Rs.
M40: 12 | N40: Motor Cycle Adv.(P) | S40: Rs.
M41: 13 | N41: Motor Cycle Adv.(I) | S41: Rs.
B42: 011 - Pay | G42: Rs. | H42: =BILL!AA38+BILL!AA27 -> 8039 | M42: 14 | N42: Cycle Adv. | S42: Rs.
B43: 012- Allowances | G43: Rs. | M43: 15 | N43: Marriage Adv.(P) | S43: Rs.
B44: 013 - Dearness Allowances | G44: Rs. | H44: =BILL!AB38+BILL!AB27 -> 1989 | M44: 16 | N44: Marriage Adv.(I) | S44: Rs.
B45: 015- I.R. | G45: Rs. | M45: 17 | N45: Income Tax | S45: Rs.
B46: 016- H.R.A. | G46: Rs. | H46: =BILL!AC38+BILL!AC27 -> 849 | M46: 18 | N46: Class IV GPF- D.T.O | S46: Rs.
G47: Rs. | M47: 19 | N47: EWF Loan | S47: Rs.
G48: Rs. | M48: 20 | N48: ZPPF | S48: Rs. | T48: =IF('WORK SHEET'!E9='WORK SHEET'!N107," ",BILL!AH27) -> 9004
G49: Rs. | M49: 21 | S49: Rs. | T49: =IF([2]BILL!AF92=0," ",[2]BILL!AF92) -> 
G50: Rs. | M50: 22 | S50: Rs.
G51: Rs. | M51: 23 | S51: Rs.
G52: Rs. | M52: 24 | S52: Rs.
G53: Rs. | M53: 25 | S53: Rs.
G54: Rs. | M54: Total Govt. Deducations | S54: Rs. | T54: =SUM(T24:T53) -> 9004
B55: Gross Total | G55: Rs. | H55: =BILL!AH38+BILL!AH27 -> 10198 | M55: Total Non-Govt.Deducations | S55: Rs.
B56: Less Govt. Deductions | G56: Rs. | H56: =T54 -> 9004
B57: A.G.Nett Amount | G57: Rs. | H57: =H55-H56 -> 1194
B58: A.G.Nett Amount in words
B59: ='BILL-P.F & CASH'!A41 -> RUPEES : ONE THOUSAND ONE HUNDRED AND NINETY FOUR ONLY
S60: Drawing Officer
B61: FOR USE IN TREASURY / PAY & ACCOUNTS OFFICE ONLY
B62: Pay | C62: _________________ | H62: (Rupees ____________________________________________________
B63: _______________________________________________________ Only) by Cash / Cheque / Draft /
B64: Account credit as under and Rs________________________________________________________
A65: =H57+1 -> 1195 | B65: ____________________________________________ only) by adjustment.
E67: 1.Rs._________________ by transfer credit to the SB Accounts of the Employees (as per Annexure-I)
E68: 2.Rs._________________ by transfer credit to the DDO Account towards of Non-Govt.Deducations.
A70: Rs | N70: Treasury Officer / Pay & Accounts Officer

Sheet BILL-NOTIONAL (hidden)
A1: =CONCATENATE("PRC-08 ARREAR OF"," ",'WORK SHEET'!E2," ,",'WORK SHEET'!E54,", ",'WORK SHEET'!E3,", ",'WORK SHEET'!E4,", ",'WORK SHEET'!E5,", MANDAL"," FROM 01-07-2008 To") -> PRC-08 ARREAR OF SK.KHAJARAHAMTULLA ,, MPPS(G), POTLAPADU, KURICHEDU, MANDAL FROM 01-07-2008 To | U1: ='BILL-P.F & CASH'!P17 -> 2011-07-30T00:14:24
B3: Sl.No | C3: Name and Designation | K3: Pay | L3: D.A | M3: H.R.A | N3: I.R | O3: =G7 -> 0 | P3: =H7 -> 0 | Q3: =I7 -> 0 | R3: Grand Total | S3: GPF | T3: Z.P.P.F | U3: Govt Deductions | V3: Net
B4: 1 | C4: 2 | K4: 3 | L4: 4 | M4: 5 | N4: 6 | O4: 7 | P4: 8 | Q4: 9 | R4: 10 | S4: 11 | T4: 12 | U4: 13 | V4: 14
A5: ='WORK SHEET'!E7 -> 724731 | B5: 1 | C5: ='WORK SHEET'!E2 -> SK.KHAJARAHAMTULLA | I5: ='WORK SHEET'!E54 -> 0 | K5: PART - I ( NOTIONAL FROM 01-07-2008 to 31-01-2010 = 19 MONTHS )
C6: =PROCEEDINGS!#REF! -> 
C7: PAY | D7: D.A. | E7: H.R.A. | F7: I.R | J7: TOTAL
A8: =CONCATENATE('WORK SHEET'!L201,"%") -> % | B8: T.D. | C8: ='WORK SHEET'!E201 -> 0 | D8: =ROUND(C8*A8,0) ->  | E8: =ROUND(C8*'WORK SHEET'!N181/100,0) -> 0 | F8: 0 | J8: =SUM(C8:I8) -> 
A9: =CONCATENATE('WORK SHEET'!K201,"%") -> % | B9: A.D. | C9: ='WORK SHEET'!M201 -> 0 | D9: =ROUND(C9*A9,0) ->  | E9: =ROUND(C9*'WORK SHEET'!N181/100,0) -> 0 | F9: =ROUND(C9*IF(D11<39722,0,IF(D11<39814,15,22))/100,0) -> 0 | J9: =SUM(C9:I9) -> 
A10: =CONCATENATE("HRA ",'WORK SHEET'!J201,"%") -> HRA % | B10: DIF. | C10: =C8-C9 -> 0 | D10: =D8-D9 ->  | E10: =E8-E9 -> 0 | F10: =F8-F9 -> 0 | J10: =J8-J9 -> 
A11: ='WORK SHEET'!D201 -> 0 | B11: Period from | D11: ='WORK SHEET'!C201 -> 00:00:00 | E11: to | F11: ='WORK SHEET'!F201 -> 00:00:00 | H11: Months | J11: ='WORK SHEET'!I201 -> 0 | K11: =ROUND(C10*J11,0) -> 0 | L11: =ROUND(D10*J11,0) ->  | M11: =ROUND(E10*J11,0) -> 0 | N11: =ROUND(F10*J11,0) -> 0 | O11: =IF('WORK SHEET'!D94=0," ",ROUND(G10*J11,0)) ->  | P11: =IF('WORK SHEET'!D95=0," ",ROUND(H10*J11,0)) ->  | Q11: =IF('WORK SHEET'!D96=0," ",ROUND(I10*J11,0)) ->  | R11: =SUM(K11:Q11) -> 
A12: =CONCATENATE('WORK SHEET'!L202,"%") -> % | B12: T.D. | C12: ='WORK SHEET'!E202 -> 0 | D12: =ROUND(C12*A12,0) ->  | E12: =ROUND(C12*'WORK SHEET'!N182/100,0) -> 0 | F12: 0 | J12: =SUM(C12:I12) -> 
A13: =CONCATENATE('WORK SHEET'!K202,"%") -> % | B13: A.D. | C13: ='WORK SHEET'!M202 -> 0 | D13: =ROUND(C13*A13,0) ->  | E13: =ROUND(C13*'WORK SHEET'!N182/100,0) -> 0 | F13: =ROUND(C13*IF(D15<39722,0,IF(D15<39814,15,22))/100,0) -> 0 | J13: =SUM(C13:I13) -> 
A14: =CONCATENATE("HRA ",'WORK SHEET'!J202,"%") -> HRA % | B14: DIF. | C14: =C12-C13 -> 0 | D14: =D12-D13 ->  | E14: =E12-E13 -> 0 | F14: =F12-F13 -> 0 | J14: =J12-J13 -> 
A15: ='WORK SHEET'!D202 -> 0 | B15: Period from | D15: ='WORK SHEET'!C202 -> 00:00:00 | E15: to | F15: ='WORK SHEET'!F202 -> 00:00:00 | H15: Months | J15: ='WORK SHEET'!I202 -> 0 | K15: =ROUND(C14*J15,0) -> 0 | L15: =ROUND(D14*J15,0) ->  | M15: =ROUND(E14*J15,0) -> 0 | N15: =ROUND(F14*J15,0) -> 0 | O15: =IF('WORK SHEET'!D94=0," ",ROUND(G10*J15,0)) ->  | P15: =IF('WORK SHEET'!D95=0," ",ROUND(H10*J15,0)) ->  | Q15: =IF('WORK SHEET'!D96=0," ",ROUND(I10*J15,0)) ->  | R15: =SUM(K15:Q15) -> 
A16: =CONCATENATE('WORK SHEET'!L203,"%") -> % | B16: T.D. | C16: ='WORK SHEET'!E203 -> 0 | D16: =ROUND(C16*A16,0) ->  | E16: =ROUND(C16*'WORK SHEET'!N183/100,0) -> 0 | F16: 0 | J16: =SUM(C16:I16) -> 
A17: =CONCATENATE('WORK SHEET'!K203,"%") -> % | B17: A.D. | C17: ='WORK SHEET'!M203 -> 0 | D17: =ROUND(C17*A17,0) ->  | E17: =ROUND(C17*'WORK SHEET'!N183/100,0) -> 0 | F17: =ROUND(C17*IF(D19<39722,0,IF(D19<39814,15,22))/100,0) -> 0 | J17: =SUM(C17:I17) -> 
A18: =CONCATENATE("HRA ",'WORK SHEET'!J203,"%") -> HRA % | B18: DIF. | C18: =C16-C17 -> 0 | D18: =D16-D17 ->  | E18: =E16-E17 -> 0 | F18: =F16-F17 -> 0 | J18: =J16-J17 -> 
A19: ='WORK SHEET'!D203 -> 0 | B19: Period from | D19: ='WORK SHEET'!C203 -> 00:00:00 | E19: to | F19: ='WORK SHEET'!F203 -> 00:00:00 | H19: Months | J19: ='WORK SHEET'!I203 -> 0 | K19: =ROUND(C18*J19,0) -> 0 | L19: =ROUND(D18*J19,0) ->  | M19: =ROUND(E18*J19,0) -> 0 | N19: =ROUND(F18*J19,0) -> 0 | O19: =IF('WORK SHEET'!D94=0," ",ROUND(G10*J19,0)) ->  | P19: =IF('WORK SHEET'!D95=0," ",ROUND(H10*J19,0)) ->  | Q19: =IF('WORK SHEET'!D96=0," ",ROUND(I10*J19,0)) ->  | R19: =SUM(K19:Q19) -> 
A20: =CONCATENATE('WORK SHEET'!L204,"%") -> % | B20: T.D. | C20: ='WORK SHEET'!E204 -> 0 | D20: =ROUND(C20*A20,0) ->  | E20: =ROUND(C20*'WORK SHEET'!N184/100,0) -> 0 | F20: 0 | J20: =SUM(C20:I20) -> 
A21: =CONCATENATE('WORK SHEET'!K204,"%") -> % | B21: A.D. | C21: ='WORK SHEET'!M204 -> 0 | D21: =ROUND(C21*A21,0) ->  | E21: =ROUND(C21*'WORK SHEET'!N184/100,0) -> 0 | F21: =ROUND(C21*IF(D23<39722,0,IF(D23<39814,15,22))/100,0) -> 0 | J21: =SUM(C21:I21) -> 
A22: =CONCATENATE("HRA ",'WORK SHEET'!J204,"%") -> HRA % | B22: DIF. | C22: =C20-C21 -> 0 | D22: =D20-D21 ->  | E22: =E20-E21 -> 0 | F22: =F20-F21 -> 0 | J22: =J20-J21 -> 
A23: ='WORK SHEET'!D204 -> 0 | B23: Period from | D23: ='WORK SHEET'!C204 -> 00:00:00 | E23: to | F23: ='WORK SHEET'!F204 -> 00:00:00 | H23: Months | J23: ='WORK SHEET'!I204 -> 0 | K23: =ROUND(C22*J23,0) -> 0 | L23: =ROUND(D22*J23,0) ->  | M23: =ROUND(E22*J23,0) -> 0 | N23: =ROUND(F22*J23,0) -> 0 | O23: =IF('WORK SHEET'!D94=0," ",ROUND(G10*J23,0)) ->  | P23: =IF('WORK SHEET'!D95=0," ",ROUND(H10*J23,0)) ->  | Q23: =IF('WORK SHEET'!D96=0," ",ROUND(I10*J23,0)) ->  | R23: =SUM(K23:Q23) -> 
A24: =CONCATENATE('WORK SHEET'!L205,"%") -> % | B24: T.D. | C24: ='WORK SHEET'!E205 -> 0 | D24: =ROUND(C24*A24,0) ->  | E24: =ROUND(C24*'WORK SHEET'!N185/100,0) -> 0 | F24: 0 | J24: =SUM(C24:I24) -> 
A25: =CONCATENATE('WORK SHEET'!K205,"%") -> % | B25: A.D. | C25: ='WORK SHEET'!M205 -> 0 | D25: =ROUND(C25*A25,0) ->  | E25: =ROUND(C25*'WORK SHEET'!N185/100,0) -> 0 | F25: =ROUND(C25*IF(D27<39722,0,IF(D27<39814,15,22))/100,0) -> 0 | J25: =SUM(C25:I25) -> 
A26: =CONCATENATE("HRA ",'WORK SHEET'!J205,"%") -> HRA % | B26: DIF. | C26: =C24-C25 -> 0 | D26: =D24-D25 ->  | E26: =E24-E25 -> 0 | F26: =F24-F25 -> 0 | J26: =J24-J25 -> 
A27: ='WORK SHEET'!D205 -> 0 | B27: Period from | D27: ='WORK SHEET'!C205 -> 00:00:00 | E27: to | F27: ='WORK SHEET'!F205 -> 00:00:00 | H27: Months | J27: ='WORK SHEET'!I205 -> 0 | K27: =ROUND(C26*J27,0) -> 0 | L27: =ROUND(D26*J27,0) ->  | M27: =ROUND(E26*J27,0) -> 0 | N27: =ROUND(F26*J27,0) -> 0 | O27: =IF('WORK SHEET'!D94=0," ",ROUND(G10*J27,0)) ->  | P27: =IF('WORK SHEET'!D95=0," ",ROUND(H10*J27,0)) ->  | Q27: =IF('WORK SHEET'!D96=0," ",ROUND(I10*J27,0)) ->  | R27: =SUM(K27:Q27) -> 
A28: =CONCATENATE('WORK SHEET'!L206,"%") -> % | B28: T.D. | C28: ='WORK SHEET'!E206 -> 0 | D28: =ROUND(C28*A28,0) ->  | E28: =ROUND(C28*'WORK SHEET'!N186/100,0) -> 0 | F28: 0 | J28: =SUM(C28:I28) -> 
A29: =CONCATENATE('WORK SHEET'!K206,"%") -> % | B29: A.D. | C29: ='WORK SHEET'!M206 -> 0 | D29: =ROUND(C29*A29,0) ->  | E29: =ROUND(C29*'WORK SHEET'!N186/100,0) -> 0 | F29: =ROUND(C29*IF(D31<39722,0,IF(D31<39814,15,22))/100,0) -> 0 | J29: =SUM(C29:I29) -> 
A30: =CONCATENATE("HRA ",'WORK SHEET'!J206,"%") -> HRA % | B30: DIF. | C30: =C28-C29 -> 0 | D30: =D28-D29 ->  | E30: =E28-E29 -> 0 | F30: =F28-F29 -> 0 | J30: =J28-J29 -> 
A31: ='WORK SHEET'!D206 -> 0 | B31: Period from | D31: ='WORK SHEET'!C206 -> 00:00:00 | E31: to | F31: ='WORK SHEET'!F206 -> 00:00:00 | H31: Months | J31: ='WORK SHEET'!I206 -> 0 | K31: =ROUND(C30*J31,0) -> 0 | L31: =ROUND(D30*J31,0) ->  | M31: =ROUND(E30*J31,0) -> 0 | N31: =ROUND(F30*J31,0) -> 0 | O31: =IF('WORK SHEET'!D94=0," ",ROUND(G10*J31,0)) ->  | P31: =IF('WORK SHEET'!D95=0," ",ROUND(H10*J31,0)) ->  | Q31: =IF('WORK SHEET'!D96=0," ",ROUND(I10*J31,0)) ->  | R31: =SUM(K31:Q31) -> 
F32: TOTAL | K32: =SUM(K11:K31) -> 0 | L32: =SUM(L11:L31) ->  | M32: 0 | N32: 0 | O32: 0 | P32: 0 | Q32: 0
B33: 1 | C33: 2 | K33: 3 | L33: 4 | M33: 5 | N33: 6 | O33: 7 | P33: 8 | Q33: 9 | R33: 10 | S33: 11 | T33: 12 | U33: 13 | V33: 14
F34: B.F. | K34: =K32 -> 0 | M34: 0 | N34: 0 | O34: 0 | P34: 0 | Q34: 0
A35: =CONCATENATE('WORK SHEET'!L207,"%") -> % | B35: T.D. | C35: ='WORK SHEET'!E207 -> 0 | D35: =ROUND(C35*A35,0) ->  | E35: =ROUND(C35*'WORK SHEET'!N187/100,0) -> 0 | F35: 0 | J35: =SUM(C35:I35) -> 
A36: =CONCATENATE('WORK SHEET'!K207,"%") -> % | B36: A.D. | C36: ='WORK SHEET'!M207 -> 0 | D36: =ROUND(C36*A36,0) ->  | E36: =ROUND(C36*'WORK SHEET'!N187/100,0) -> 0 | F36: =ROUND(C36*IF(D38<39722,0,IF(D38<39814,15,22))/100,0) -> 0 | J36: =SUM(C36:I36) -> 
A37: =CONCATENATE("HRA ",'WORK SHEET'!J207,"%") -> HRA % | B37: DIF. | C37: =C35-C36 -> 0 | D37: =D35-D36 ->  | E37: =E35-E36 -> 0 | F37: =F35-F36 -> 0 | J37: =J35-J36 -> 
A38: ='WORK SHEET'!D207 -> 0 | B38: Period from | D38: ='WORK SHEET'!C207 -> 00:00:00 | E38: to | F38: ='WORK SHEET'!F207 -> 00:00:00 | H38: Months | J38: ='WORK SHEET'!I207 -> 0 | K38: =ROUND(C37*J38,0) -> 0 | L38: =ROUND(D37*J38,0) ->  | M38: =ROUND(E37*J38,0) -> 0 | N38: =ROUND(F37*J38,0) -> 0 | O38: =IF('WORK SHEET'!D94=0," ",ROUND(G10*J38,0)) ->  | P38: =IF('WORK SHEET'!D95=0," ",ROUND(H10*J38,0)) ->  | Q38: =IF('WORK SHEET'!D96=0," ",ROUND(I10*J38,0)) ->  | R38: =SUM(K38:Q38) -> 
A39: =CONCATENATE('WORK SHEET'!L208,"%") -> % | B39: T.D. | C39: ='WORK SHEET'!E208 -> 0 | D39: =ROUND(C39*A39,0) ->  | E39: =ROUND(C39*'WORK SHEET'!N188/100,0) -> 0 | F39: 0 | J39: =SUM(C39:I39) -> 
A40: =CONCATENATE('WORK SHEET'!K208,"%") -> % | B40: A.D. | C40: ='WORK SHEET'!M208 -> 0 | D40: =ROUND(C40*A40,0) ->  | E40: =ROUND(C40*'WORK SHEET'!N188/100,0) -> 0 | F40: =ROUND(C40*IF(D42<39722,0,IF(D42<39814,15,22))/100,0) -> 0 | J40: =SUM(C40:I40) -> 
A41: =CONCATENATE("HRA ",'WORK SHEET'!J208,"%") -> HRA % | B41: DIF. | C41: =C39-C40 -> 0 | D41: =D39-D40 ->  | E41: =E39-E40 -> 0 | F41: =F39-F40 -> 0 | J41: =J39-J40 -> 
A42: ='WORK SHEET'!D208 -> 0 | B42: Period from | D42: ='WORK SHEET'!C208 -> 00:00:00 | E42: to | F42: ='WORK SHEET'!F208 -> 00:00:00 | H42: Months | J42: ='WORK SHEET'!I208 -> 0 | K42: =ROUND(C41*J42,0) -> 0 | L42: =ROUND(D41*J42,0) ->  | M42: =ROUND(E41*J42,0) -> 0 | N42: =ROUND(F41*J42,0) -> 0 | O42: =IF('WORK SHEET'!D94=0," ",ROUND(G10*J42,0)) ->  | P42: =IF('WORK SHEET'!D95=0," ",ROUND(H10*J42,0)) ->  | Q42: =IF('WORK SHEET'!D96=0," ",ROUND(I10*J42,0)) ->  | R42: =SUM(K42:Q42) -> 
A43: =CONCATENATE('WORK SHEET'!L209,"%") -> % | B43: T.D. | C43: ='WORK SHEET'!E209 -> 0 | D43: =ROUND(C43*A43,0) ->  | E43: =ROUND(C43*'WORK SHEET'!N189/100,0) -> 0 | F43: 0 | J43: =SUM(C43:I43) -> 
A44: =CONCATENATE('WORK SHEET'!K209,"%") -> % | B44: A.D. | C44: ='WORK SHEET'!M209 -> 0 | D44: =ROUND(C44*A44,0) ->  | E44: =ROUND(C44*'WORK SHEET'!N189/100,0) -> 0 | F44: =ROUND(C44*IF(D46<39722,0,IF(D46<39814,15,22))/100,0) -> 0 | J44: =SUM(C44:I44) -> 
A45: =CONCATENATE("HRA ",'WORK SHEET'!J209,"%") -> HRA % | B45: DIF. | C45: =C43-C44 -> 0 | D45: =D43-D44 ->  | E45: =E43-E44 -> 0 | F45: =F43-F44 -> 0 | J45: =J43-J44 -> 
A46: ='WORK SHEET'!D209 -> 0 | B46: Period from | D46: ='WORK SHEET'!C209 -> 00:00:00 | E46: to | F46: ='WORK SHEET'!F209 -> 00:00:00 | H46: Months | J46: ='WORK SHEET'!I209 -> 0 | K46: =ROUND(C45*J46,0) -> 0 | L46: =ROUND(D45*J46,0) ->  | M46: =ROUND(E45*J46,0) -> 0 | N46: =ROUND(F45*J46,0) -> 0 | O46: =IF('WORK SHEET'!D94=0," ",ROUND(G10*J46,0)) ->  | P46: =IF('WORK SHEET'!D95=0," ",ROUND(H10*J46,0)) ->  | Q46: =IF('WORK SHEET'!D96=0," ",ROUND(I10*J46,0)) ->  | R46: =SUM(K46:Q46) -> 
A47: =CONCATENATE('WORK SHEET'!L210,"%") -> % | B47: T.D. | C47: ='WORK SHEET'!E210 -> 0 | D47: =ROUND(C47*A47,0) ->  | E47: =ROUND(C47*'WORK SHEET'!N190/100,0) -> 0 | F47: 0 | J47: =SUM(C47:I47) -> 
A48: =CONCATENATE('WORK SHEET'!K210,"%") -> % | B48: A.D. | C48: ='WORK SHEET'!M210 -> 0 | D48: =ROUND(C48*A48,0) ->  | E48: =ROUND(C48*'WORK SHEET'!N190/100,0) -> 0 | F48: =ROUND(C48*IF(D50<39722,0,IF(D50<39814,15,22))/100,0) -> 0 | J48: =SUM(C48:I48) -> 
A49: =CONCATENATE("HRA ",'WORK SHEET'!J210,"%") -> HRA % | B49: DIF. | C49: =C47-C48 -> 0 | D49: =D47-D48 ->  | E49: =E47-E48 -> 0 | F49: =F47-F48 -> 0 | J49: =J47-J48 -> 
A50: ='WORK SHEET'!D210 -> 0 | B50: Period from | D50: ='WORK SHEET'!C210 -> 00:00:00 | E50: to | F50: ='WORK SHEET'!F210 -> 00:00:00 | H50: Months | J50: ='WORK SHEET'!I210 -> 0 | K50: =ROUND(C49*J50,0) -> 0 | L50: =ROUND(D49*J50,0) ->  | M50: =ROUND(E49*J50,0) -> 0 | N50: =ROUND(F49*J50,0) -> 0 | O50: =IF('WORK SHEET'!D94=0," ",ROUND(G10*J50,0)) ->  | P50: =IF('WORK SHEET'!D95=0," ",ROUND(H10*J50,0)) ->  | Q50: =IF('WORK SHEET'!D96=0," ",ROUND(I10*J50,0)) ->  | R50: =SUM(K50:Q50) -> 
A51: =CONCATENATE('WORK SHEET'!L211,"%") -> % | B51: T.D. | C51: ='WORK SHEET'!E211 -> 0 | D51: =ROUND(C51*A51,0) ->  | E51: =ROUND(C51*'WORK SHEET'!N191/100,0) -> 0 | F51: 0 | J51: =SUM(C51:I51) -> 
A52: =CONCATENATE('WORK SHEET'!K211,"%") -> % | B52: A.D. | C52: ='WORK SHEET'!M211 -> 0 | D52: =ROUND(C52*A52,0) ->  | E52: =ROUND(C52*'WORK SHEET'!N191/100,0) -> 0 | F52: =ROUND(C52*IF(D54<39722,0,IF(D54<39814,15,22))/100,0) -> 0 | J52: =SUM(C52:I52) -> 
A53: =CONCATENATE("HRA ",'WORK SHEET'!J211,"%") -> HRA % | B53: DIF. | C53: =C51-C52 -> 0 | D53: =D51-D52 ->  | E53: =E51-E52 -> 0 | F53: =F51-F52 -> 0 | J53: =J51-J52 -> 
A54: ='WORK SHEET'!D211 -> 0 | B54: Period from | D54: ='WORK SHEET'!C211 -> 00:00:00 | E54: to | F54: ='WORK SHEET'!F211 -> 00:00:00 | H54: Months | J54: ='WORK SHEET'!I211 -> 0 | K54: =ROUND(C53*J54,0) -> 0 | L54: =ROUND(D53*J54,0) ->  | M54: =ROUND(E53*J54,0) -> 0 | N54: =ROUND(F53*J54,0) -> 0 | O54: =IF('WORK SHEET'!D94=0," ",ROUND(G10*J54,0)) ->  | P54: =IF('WORK SHEET'!D95=0," ",ROUND(H10*J54,0)) ->  | Q54: =IF('WORK SHEET'!D96=0," ",ROUND(I10*J54,0)) ->  | R54: =SUM(K54:Q54) -> 
A55: =CONCATENATE('WORK SHEET'!L212,"%") -> % | B55: T.D. | C55: ='WORK SHEET'!E212 -> 0 | D55: =ROUND(C55*A55,0) ->  | E55: =ROUND(C55*'WORK SHEET'!N192/100,0) -> 0 | F55: 0 | J55: =SUM(C55:I55) -> 
A56: =CONCATENATE('WORK SHEET'!K212,"%") -> % | B56: A.D. | C56: ='WORK SHEET'!M212 -> 0 | D56: =ROUND(C56*A56,0) ->  | E56: =ROUND(C56*'WORK SHEET'!N192/100,0) -> 0 | F56: =ROUND(C56*IF(D58<39722,0,IF(D58<39814,15,22))/100,0) -> 0 | J56: =SUM(C56:I56) -> 
A57: =CONCATENATE("HRA ",'WORK SHEET'!J212,"%") -> HRA % | B57: DIF. | C57: =C55-C56 -> 0 | D57: =D55-D56 ->  | E57: =E55-E56 -> 0 | F57: =F55-F56 -> 0 | J57: =J55-J56 -> 
A58: ='WORK SHEET'!D212 -> 0 | B58: Period from | D58: ='WORK SHEET'!C212 -> 00:00:00 | E58: to | F58: ='WORK SHEET'!F212 -> 00:00:00 | H58: Months | J58: ='WORK SHEET'!I212 -> 0 | K58: =ROUND(C57*J58,0) -> 0 | L58: =ROUND(D57*J58,0) ->  | M58: =ROUND(E57*J58,0) -> 0 | N58: =ROUND(F57*J58,0) -> 0 | O58: =IF('WORK SHEET'!D94=0," ",ROUND(G10*J58,0)) ->  | P58: =IF('WORK SHEET'!D95=0," ",ROUND(H10*J58,0)) ->  | Q58: =IF('WORK SHEET'!D96=0," ",ROUND(I10*J58,0)) ->  | R58: =SUM(K58:Q58) -> 
A59: =CONCATENATE('WORK SHEET'!L213,"%") -> % | B59: T.D. | C59: ='WORK SHEET'!E2080 -> 0 | D59: =ROUND(C59*A59,0) ->  | E59: =ROUND(C59*'WORK SHEET'!N193/100,0) -> 0 | F59: 0 | J59: =SUM(C59:I59) -> 
A60: =CONCATENATE('WORK SHEET'!K213,"%") -> % | B60: A.D. | C60: ='WORK SHEET'!M213 -> 0 | D60: =ROUND(C60*A60,0) ->  | E60: =ROUND(C60*'WORK SHEET'!N193/100,0) -> 0 | F60: =ROUND(C60*IF(D62<39722,0,IF(D62<39814,15,22))/100,0) -> 0 | J60: =SUM(C60:I60) -> 
A61: =CONCATENATE("HRA ",'WORK SHEET'!J213,"%") -> HRA % | B61: DIF. | C61: =C59-C60 -> 0 | D61: =D59-D60 ->  | E61: =E59-E60 -> 0 | F61: =F59-F60 -> 0 | J61: =J59-J60 -> 
A62: ='WORK SHEET'!D213 -> 0 | B62: Period from | D62: ='WORK SHEET'!C213 -> 00:00:00 | E62: to | F62: ='WORK SHEET'!F213 -> 00:00:00 | H62: Months | J62: ='WORK SHEET'!I213 -> 0 | K62: =ROUND(C61*J62,0) -> 0 | L62: =ROUND(D61*J62,0) ->  | M62: =ROUND(E61*J62,0) -> 0 | N62: =ROUND(F61*J62,0) -> 0 | O62: =IF('WORK SHEET'!D94=0," ",ROUND(G10*J61,0)) ->  | P62: =IF('WORK SHEET'!D95=0," ",ROUND(H10*J62,0)) ->  | Q62: =IF('WORK SHEET'!D96=0," ",ROUND(I10*J62,0)) ->  | R62: =SUM(K62:Q62) -> 
H63: TOTAL | K63: =SUM(K34:K62) -> 0 | L63: =SUM(L34:L62) ->  | M63: 0 | N63: 0 | O63: 0 | P63: 0 | Q63: 0

Sheet BILL-P.F & CASH (hidden)
A1: =CONCATENATE("PRC-10 ARREAR OF ",'WORK SHEET'!E2,", ",'WORK SHEET'!E54,", ",'WORK SHEET'!E3,", ",'WORK SHEET'!E4,", ",'WORK SHEET'!E5," MANDAL"," FROM 01-07-2008 To") -> PRC-10 ARREAR OF SK.KHAJARAHAMTULLA, , MPPS(G), POTLAPADU, KURICHEDU MANDAL FROM 01-07-2008 To | U1: =P17 -> 2011-07-30T00:14:24
B2: Sl.No | C2: Name and Designation | K2: Pay | L2: D.A | M2: H.R.A | N2: I.R | O2: =IF('WORK SHEET'!D94=0," ",'WORK SHEET'!E94) ->  | P2: =IF('WORK SHEET'!D95=0," ",'WORK SHEET'!E95) ->  | R2: Grand Total | S2: G.P.F. | T2: Z.P.P.F | U2: Govt Deductions | V2: Net
B3: 1 | C3: 2 | K3: 3 | L3: 4 | M3: 5 | N3: 6 | O3: 7 | P3: 8 | Q3: 9 | R3: 10 | S3: 11 | T3: 12 | U3: 13 | V3: 14
K4: PART -II ( Credited to P.F. from 01-02-2010 to 28-02-2010 ( 1 Month)
A5: ='BILL-NOTIONAL'!A5 -> 724731 | B5: 1 | C5: ='WORK SHEET'!E2 -> SK.KHAJARAHAMTULLA | I5: ='WORK SHEET'!E54 -> 0
C6: ='BILL-NOTIONAL'!C6:J6 -> 
C7: PAY | D7: D.A. | E7: H.R.A. | F7: I.R | J7: TOTAL
A8: =CONCATENATE('WORK SHEET'!L222,"%") -> % | B8: T.D. | C8: ='WORK SHEET'!E222 -> 0 | D8: =ROUND(C8*A8,0) ->  | E8: =ROUND(C8*'WORK SHEET'!J222/100,0) -> 0 | F8: 0 | J8: =SUM(C8:I8) -> 
A9: =CONCATENATE('WORK SHEET'!K222,"%") -> % | B9: A.D. | C9: ='WORK SHEET'!M222 -> 0 | D9: =ROUND(C9*A9,0) ->  | E9: =ROUND(C9*'WORK SHEET'!J222/100,0) -> 0 | F9: =ROUND(C9*22/100,0) -> 0 | J9: =SUM(C9:I9) -> 
A10: =CONCATENATE("HRA ",'WORK SHEET'!J222,"%") -> HRA % | B10: DIF. | C10: =C8-C9 -> 0 | D10: =D8-D9 ->  | E10: =E8-E9 -> 0 | F10: =F8-F9 -> 0 | J10: =J8-J9 -> 
B11: Period from | D11: ='WORK SHEET'!C222 -> 00:00:00 | E11: to | F11: ='WORK SHEET'!F222 -> 00:00:00 | H11: Months | J11: ='WORK SHEET'!I222 -> 0 | K11: =ROUND(C10*J11,0) -> 0 | L11: =ROUND(D10*J11,0) ->  | M11: =ROUND(E10*J11,0) -> 0 | N11: =ROUND(F10*J11,0) -> 0 | O11: =IF('WORK SHEET'!D94=0," ",ROUND(G10*J11,0)) ->  | P11: =IF('WORK SHEET'!D95=0," ",ROUND(H10*J11,0)) ->  | Q11: =IF('WORK SHEET'!D96=0," ",ROUND(I10*J11,0)) ->  | R11: =SUM(K11:Q11) ->  | S11: =IF('WORK SHEET'!E120=1,R11," ") ->  | T11: =IF('WORK SHEET'!E120=2,R11," ") ->  | U11: =SUM(S11:T11) ->  | V11: =R11-U11 -> 
A12: =CONCATENATE('WORK SHEET'!L223,"%") -> % | B12: T.D. | C12: ='WORK SHEET'!E223 -> 0 | D12: =ROUND(C12*A12,0) ->  | E12: =ROUND(C12*'WORK SHEET'!J223/100,0) -> 0 | F12: 0 | J12: =SUM(C12:I12) -> 
A13: =CONCATENATE('WORK SHEET'!K223,"%") -> % | B13: A.D. | C13: ='WORK SHEET'!M223 -> 0 | D13: =ROUND(C13*A13,0) ->  | E13: =ROUND(C13*'WORK SHEET'!J223/100,0) -> 0 | F13: =ROUND(C13*22/100,0) -> 0 | J13: =SUM(C13:I13) -> 
A14: =CONCATENATE("HRA ",'WORK SHEET'!J223,"%") -> HRA % | B14: DIF. | C14: =C12-C13 -> 0 | D14: =D12-D13 ->  | E14: =E12-E13 -> 0 | F14: =F12-F13 -> 0 | J14: =J12-J13 -> 
B15: Period from | D15: ='WORK SHEET'!C223 -> 00:00:00 | E15: to | F15: ='WORK SHEET'!F223 -> 00:00:00 | H15: Months | J15: ='WORK SHEET'!I223 -> 0 | K15: =ROUND(C14*J15,0) -> 0 | L15: =ROUND(D14*J15,0) ->  | M15: =ROUND(E14*J15,0) -> 0 | N15: =ROUND(F14*J15,0) -> 0 | O15: =IF('WORK SHEET'!D94=0," ",ROUND(G10*J15,0)) ->  | P15: =IF('WORK SHEET'!D95=0," ",ROUND(H10*J15,0)) ->  | Q15: =IF('WORK SHEET'!D96=0," ",ROUND(I10*J15,0)) ->  | R15: =SUM(K15:Q15) ->  | S15: =IF('WORK SHEET'!E120=1,R15," ") ->  | T15: =IF('WORK SHEET'!E120=2,R15," ") ->  | U15: =SUM(S15:T15) ->  | V15: =R15-U15 -> 
F16: TOTAL | K16: =SUM(K11:K15) -> 0 | M16: 0 | N16: 0 | O16: 0 | P16: 0 | Q16: 0 | R16: =SUM(R11:R15) ->  | S16: 0
K17: PART - III ( CASH FROM 01-03-2010 | O17: to | P17: ='WORK SHEET'!E135 -> 2011-07-30T00:14:24 | R17: =CONCATENATE("(",(J22+J26+J30)," ","Months",")",) -> (0 Months)
C18: PAY | D18: D.A. | E18: H.R.A. | F18: I.R | G18: =IF('WORK SHEET'!D94=0," ",'WORK SHEET'!E94) ->  | H18: =IF('WORK SHEET'!D95=0," ",'WORK SHEET'!E95) ->  | I18: =IF('WORK SHEET'!D96=0," ",'WORK SHEET'!E96) ->  | J18: TOTAL
A19: =CONCATENATE('WORK SHEET'!L234,"%") -> % | B19: T.D. | C19: ='WORK SHEET'!E234 -> 0 | D19: =ROUND(C19*A19,0) ->  | E19: =ROUND(C19*'WORK SHEET'!J234/100,0) -> 0 | F19: 0 | J19: =SUM(C19:I19) -> 
A20: =CONCATENATE('WORK SHEET'!K234,"%") -> % | B20: A.D. | C20: ='WORK SHEET'!M234 -> 0 | D20: =ROUND(C20*A20,0) ->  | E20: =ROUND(C20*'WORK SHEET'!J234/100,0) -> 0 | F20: =ROUND(C20*22/100,0) -> 0 | J20: =SUM(C20:I20) -> 
A21: =CONCATENATE("HRA ",'WORK SHEET'!J234,"%") -> HRA % | B21: DIF. | C21: =C19-C20 -> 0 | D21: =D19-D20 ->  | E21: =E19-E20 -> 0 | F21: =F19-F20 -> 0 | J21: =J19-J20 -> 
A22: ='WORK SHEET'!D201 -> 0 | B22: Period from | D22: ='WORK SHEET'!C234 -> 00:00:00 | E22: to | F22: ='WORK SHEET'!F234 -> 00:00:00 | H22: Months | J22: ='WORK SHEET'!I234 -> 0 | K22: =ROUND(C21*J22,0) -> 0 | L22: =ROUND(D21*J22,0) ->  | M22: =ROUND(E21*J22,0) -> 0 | N22: =ROUND(F21*J22,0) -> 0 | O22: =IF('WORK SHEET'!D94=0," ",ROUND(G21*J22,0)) ->  | P22: =IF('WORK SHEET'!D95=0," ",ROUND(H21*J22,0)) ->  | Q22: =IF('WORK SHEET'!D96=0," ",ROUND(I21*J22,0)) ->  | R22: =SUM(K22:Q22) ->  | U22: 0 | V22: =R22-U22 -> 
A23: =CONCATENATE('WORK SHEET'!L235,"%") -> % | B23: T.D. | C23: ='WORK SHEET'!E235 -> 0 | D23: =ROUND(C23*A23,0) ->  | E23: =ROUND(C23*'WORK SHEET'!J235/100,0) -> 0 | F23: 0 | G23: =IF(D26=40269,IF('WORK SHEET'!D94=0," ",IF(C23=0,0,IF('WORK SHEET'!D94=5,'WORK SHEET'!F115,'WORK SHEET'!G94)))," ") ->  | H23: =IF(D26=40269,IF('WORK SHEET'!D95=0," ",IF(C23=0,0,IF('WORK SHEET'!D95=5,'WORK SHEET'!F115,'WORK SHEET'!G95)))," ") ->  | I23: =IF(D26=40269,IF('WORK SHEET'!D96=0," ",IF(C23=0,0,IF('WORK SHEET'!D96=5,'WORK SHEET'!F115,'WORK SHEET'!G96)))," ") ->  | J23: =SUM(C23:I23) -> 
A24: =CONCATENATE('WORK SHEET'!K235,"%") -> % | B24: A.D. | C24: ='WORK SHEET'!M235 -> 0 | D24: =ROUND(C24*A24,0) ->  | E24: =ROUND(C24*'WORK SHEET'!J235/100,0) -> 0 | F24: =ROUND(C24*22/100,0) -> 0 | G24: =IF(D26=40269,IF('WORK SHEET'!D94=0," ",IF(C23=0,0,IF('WORK SHEET'!D94=1,MIN(ROUND(C24*10%,0),'WORK SHEET'!F94),IF('WORK SHEET'!D94=5,'WORK SHEET'!J115,'WORK SHEET'!F94))))," ") ->  | H24: =IF(D26=40269,IF('WORK SHEET'!D95=0," ",IF(C23=0,0,IF('WORK SHEET'!D95=1,MIN(ROUND(C24*10%,0),'WORK SHEET'!F95),IF('WORK SHEET'!D95=5,'WORK SHEET'!J115,'WORK SHEET'!F95))))," ") ->  | I24: =IF(D26=40269,IF('WORK SHEET'!D96=0," ",IF(C23=0,0,IF('WORK SHEET'!D96=1,MIN(ROUND(C24*10%,0),'WORK SHEET'!F96),IF('WORK SHEET'!D96=5,'WORK SHEET'!J115,'WORK SHEET'!F96))))," ") ->  | J24: =SUM(C24:I24) -> 
A25: =CONCATENATE("HRA ",'WORK SHEET'!J235,"%") -> HRA % | B25: DIF. | C25: =C23-C24 -> 0 | D25: =D23-D24 ->  | E25: =E23-E24 -> 0 | F25: =F23-F24 -> 0 | G25: =IF('WORK SHEET'!D94=0," ",G23-G24) ->  | H25: =IF('WORK SHEET'!D95=0," ",H23-H24) ->  | I25: =IF('WORK SHEET'!D96=0," ",I23-I24) ->  | J25: =J23-J24 -> 
A26: ='WORK SHEET'!D202 -> 0 | B26: Period from | D26: ='WORK SHEET'!C235 -> 00:00:00 | E26: to | F26: ='WORK SHEET'!F235 -> 00:00:00 | H26: Months | J26: ='WORK SHEET'!I235 -> 0 | K26: =ROUND(C25*J26,0) -> 0 | L26: =ROUND(D25*J26,0) ->  | M26: =ROUND(E25*J26,0) -> 0 | N26: =ROUND(F25*J26,0) -> 0 | O26: =IF('WORK SHEET'!D94=0," ",ROUND(G25*J26,0)) ->  | P26: =IF('WORK SHEET'!D95=0," ",ROUND(H25*J26,0)) ->  | Q26: =IF('WORK SHEET'!D96=0," ",ROUND(I25*J26,0)) ->  | R26: =SUM(K26:Q26) ->  | U26: 0 | V26: =R26-U26 -> 
A27: =CONCATENATE('WORK SHEET'!L236,"%") -> % | B27: T.D. | C27: ='WORK SHEET'!E236 -> 0 | D27: =ROUND(C27*A27,0) ->  | E27: =ROUND(C27*'WORK SHEET'!J236/100,0) -> 0 | F27: 0 | G27: =IF('WORK SHEET'!D94=0," ",IF(C27=0,0,IF('WORK SHEET'!D94=5,'WORK SHEET'!F119,'WORK SHEET'!G98))) ->  | H27: =IF('WORK SHEET'!D95=0," ",IF(C27=0,0,IF('WORK SHEET'!D95=5,'WORK SHEET'!F119,'WORK SHEET'!G95))) ->  | I27: =IF('WORK SHEET'!D96=0," ",IF(C27=0,0,IF('WORK SHEET'!D96=5,'WORK SHEET'!F119,'WORK SHEET'!G96))) ->  | J27: =SUM(C27:I27) -> 
A28: =CONCATENATE('WORK SHEET'!K236,"%") -> % | B28: A.D. | C28: ='WORK SHEET'!M236 -> 0 | D28: =ROUND(C28*A28,0) ->  | E28: =ROUND(C28*'WORK SHEET'!J236/100,0) -> 0 | F28: =ROUND(C28*22/100,0) -> 0 | G28: =IF('WORK SHEET'!D94=0," ",IF(C27=0,0,IF('WORK SHEET'!D94=1,MIN(ROUND(C28*10%,0),'WORK SHEET'!F94),IF('WORK SHEET'!D94=5,'WORK SHEET'!J119,'WORK SHEET'!F94)))) ->  | H28: =IF('WORK SHEET'!D95=0," ",IF(C27=0,0,IF('WORK SHEET'!D95=1,MIN(ROUND(C28*10%,0),'WORK SHEET'!F95),IF('WORK SHEET'!D95=5,'WORK SHEET'!J119,'WORK SHEET'!F95)))) ->  | I28: =IF('WORK SHEET'!D96=0," ",IF(C27=0,0,IF('WORK SHEET'!D96=1,MIN(ROUND(C28*10%,0),'WORK SHEET'!F96),IF('WORK SHEET'!D96=5,'WORK SHEET'!J119,'WORK SHEET'!F96)))) ->  | J28: =SUM(C28:I28) -> 
A29: =CONCATENATE("HRA ",'WORK SHEET'!J236,"%") -> HRA % | B29: DIF. | C29: =C27-C28 -> 0 | D29: =D27-D28 ->  | E29: =E27-E28 -> 0 | F29: =F27-F28 -> 0 | G29: =IF('WORK SHEET'!D94=0," ",G27-G28) ->  | H29: =IF('WORK SHEET'!D95=0," ",H27-H28) ->  | I29: =IF('WORK SHEET'!D96=0," ",I27-I28) ->  | J29: =J27-J28 -> 
A30: ='WORK SHEET'!D206 -> 0 | B30: Period from | D30: ='WORK SHEET'!C236 -> 00:00:00 | E30: to | F30: ='WORK SHEET'!F236 -> 00:00:00 | H30: Months | J30: ='WORK SHEET'!I239 -> 0 | K30: =ROUND(C29*J30,0) -> 0 | L30: =ROUND(D29*J30,0) ->  | M30: =ROUND(E29*J30,0) -> 0 | N30: =ROUND(F29*J30,0) -> 0 | O30: =IF('WORK SHEET'!D98=0," ",ROUND(G29*J30,0)) ->  | P30: =IF('WORK SHEET'!D99=0," ",ROUND(H29*J30,0)) ->  | Q30: =IF('WORK SHEET'!D100=0," ",ROUND(I29*J30,0)) ->  | R30: =SUM(K30:Q30) ->  | U30: 0 | V30: =R30-U30 -> 
H31: TOTAL | K31: =SUM(K18:K26) -> 0 | M31: 0 | N31: 0 | O31: 0 | P31: 0 | Q31: 0 | S31: 0 | T31: 0 | U31: 0
A32: ='WORK SHEET'!AJ142 -> RUPEES : ONE THOUSAND ONE HUNDRED AND NINETY FOUR ONLY
A34: CONSOLIDATION
B35: Sl.No | C35: BILL PART | K35: Pay | L35: D.A | M35: H.R.A | N35: I.R | O35: CCA | P35: H.M.A | R35: Grand Total | S35: G.P.F. | T35: Z.P.P.F | U35: Govt Deductions | V35: Net Salary
B36: 1 | C36: 2 | K36: 3 | L36: 4 | M36: 5 | N36: 6 | O36: 7 | P36: 8 | Q36: 9 | R36: 10 | S36: 11 | T36: 12 | U36: 13 | V36: 14
C37: PART - I ( NOTIONAL ) | K37: ='BILL-NOTIONAL'!K63 -> 0 | L37: ='BILL-NOTIONAL'!L63 ->  | M37: ='BILL-NOTIONAL'!M63 -> 0 | N37: ='BILL-NOTIONAL'!N63 -> 0 | O37: ='BILL-NOTIONAL'!O63 -> 0 | P37: ='BILL-NOTIONAL'!P63 -> 0 | Q37: ='BILL-NOTIONAL'!Q63 -> 0 | R37: ='BILL-NOTIONAL'!R63 ->  | S37: ='BILL-NOTIONAL'!S63 -> 0 | T37: ='BILL-NOTIONAL'!S63 -> 0 | U37: 0 | V37: 0
C38: PART - II ( P.F. ADJESTMENT ) | K38: =SUM(BILL!AA26:AA26) -> 0 | L38: =SUM(BILL!AB26:AB26) -> 0 | M38: =SUM(BILL!AC26:AC26) -> 0 | N38: =0 -> 0 | O38: ='BILL-P.F & CASH'!O16 -> 0 | P38: ='BILL-P.F & CASH'!P16 -> 0 | Q38: ='BILL-P.F & CASH'!Q16 -> 0 | R38: =SUM(BILL!AH26:AH26) -> 0 | S38: =IF('WORK SHEET'!E120=1,SUM(BILL!AH26:AH26),0) -> 0 | T38: =IF('WORK SHEET'!E120=2,SUM(BILL!AH26:AH26),0) -> 0 | U38: =S38+T38 -> 0 | V38: ='BILL-P.F & CASH'!V16 -> 
C39: PART - III ( CASH ) | K39: =SUM(BILL!AA30:AA34) -> 1319 | L39: =SUM(BILL!AB30:AB34) -> 395 | M39: =SUM(BILL!AC30:AC34) -> 159 | N39: =0 -> 0 | O39: =SUM(BILL!AD30:AD34) -> 0 | P39: =SUM(BILL!AF30:AF34) -> 0 | Q39: =SUM(BILL!AG30:AG34) ->  | R39: =SUM(BILL!AH30:AH34) -> 1194 | S39: =S31 -> 0 | T39: =T31 -> 0 | U39: =U31 -> 0 | V39: =R39 -> 1194
C40: TOTAL ( PART - II & PART - III ) | K40: =K38+K39 -> 1319 | L40: 395 | M40: 159 | N40: 0 | O40: 0 | P40: 0 | R40: 1194 | S40: 0 | T40: 0 | U40: =U38+U39+BILL!#REF! ->  | V40: =SUM(BILL!AH30:AH34) -> 1194
A41: =A32 -> RUPEES : ONE THOUSAND ONE HUNDRED AND NINETY FOUR ONLY

Sheet BILL
B1: =CONCATENATE("Claim for pay fixcation arrear in the Automatec Advacement Sceme of ",'WORK SHEET'!E2," ",PROCEEDINGS!G19," ",'WORK SHEET'!E3," ",'WORK SHEET'!E4) -> Claim for pay fixcation arrear in the Automatec Advacement Sceme of SK.KHAJARAHAMTULLA S.G.T. MPPS(G) POTLAPADU
D3: Period | F3: Days | G3: Eligible | Q3: Already drawn | AA3: Difference
B4: D.A.% | C4: H.R.A% | D4: From | E4: To | G4: B Pay | H4: P.P. | I4: F.P | J4: D A | K4: HRA | N4: P.T | O4: =IF('WORK SHEET'!D96=0,0,'WORK SHEET'!E96) -> 0 | P4: Total | Q4: B Pay | R4: P.P. | S4: F.P. | T4: D A | U4: HRA | X4: P.T | Y4: =O4 -> 0 | Z4: Total | AA4: B Pay | AB4: D A | AC4: HRA | AD4: =V4 -> 0 | AF4: =X4 -> P.T | AG4: =Y4 -> 0 | AH4: Total
B5: ='WORK SHEET'!H277 -> 16.264 | C5: ='WORK SHEET'!J277 -> 10 | D5: ='WORK SHEET'!C277 -> 2010-02-01 | E5: ='WORK SHEET'!E277 -> 2010-02-28 | F5: ='WORK SHEET'!D277 -> 28 | G5: ='WORK SHEET'!O277 -> 14860 | H5: ='WORK SHEET'!T277 -> 0 | I5: ='WORK SHEET'!U277 -> 0 | J5: ='WORK SHEET'!R277 -> 2417 | K5: ='WORK SHEET'!S277 -> 1486 | N5: =IF(P5=0,0,IF(P5<=6000,60,IF(P5<=10000,80,IF(P5<=15000,100,IF(P5<=20000,150,200))))) -> 150 | P5: =IF(OR(D5=0,DAY(D5)<>1),0,IF(DAY(D6)<>1,SUM(G5:M5)+SUM(G6:M6),SUM(G5:M5))) -> 18763 | Q5: ='WORK SHEET'!N277 -> 14440 | R5: =H5 -> 0 | S5: 0 | T5: ='WORK SHEET'!P277 -> 2349 | U5: ='WORK SHEET'!Q277 -> 1444 | X5: =IF(Z5=0,0,IF(Z5<=6000,60,IF(Z5<=10000,80,IF(Z5<=15000,100,IF(Z5<=20000,150,200))))) -> 150 | Z5: =IF(OR(D5=0,DAY(D5)<>1),0,IF(DAY(D6)<>1,SUM(Q5:W5)+SUM(Q6:W6),SUM(Q5:W5))) -> 18233 | AA5: =G5-Q5 -> 420 | AB5: =J5-T5 -> 68 | AC5: =K5-U5 -> 42 | AD5: =L5-V5 -> 0 | AF5: =N5-X5 -> 0 | AG5: =O5-Y5 -> 0 | AH5: =P5-Z5 -> 530
B6: ='WORK SHEET'!H278 -> 16.264 | C6: ='WORK SHEET'!J278 -> 10 | D6: ='WORK SHEET'!C278 -> 2010-03-01 | E6: ='WORK SHEET'!E278 -> 2010-03-31 | F6: ='WORK SHEET'!D278 -> 31 | G6: ='WORK SHEET'!O278 -> 14860 | H6: ='WORK SHEET'!T278 -> 0 | I6: ='WORK SHEET'!U278 -> 0 | J6: ='WORK SHEET'!R278 -> 2417 | K6: ='WORK SHEET'!S278 -> 1486 | N6: =IF(P6=0,0,IF(P6<=6000,60,IF(P6<=10000,80,IF(P6<=15000,100,IF(P6<=20000,150,200))))) -> 150 | P6: =IF(OR(D6=0,DAY(D6)<>1),0,IF(DAY(D7)<>1,SUM(G6:M6)+SUM(G7:M7),SUM(G6:M6))) -> 18763 | Q6: ='WORK SHEET'!N278 -> 14440 | R6: 0 | S6: 0 | T6: ='WORK SHEET'!P278 -> 2349 | U6: ='WORK SHEET'!Q278 -> 1444 | X6: =IF(Z6=0,0,IF(Z6<=6000,60,IF(Z6<=10000,80,IF(Z6<=15000,100,IF(Z6<=20000,150,200))))) -> 150 | Z6: =IF(OR(D6=0,DAY(D6)<>1),0,IF(DAY(D7)<>1,SUM(Q6:W6)+SUM(Q7:W7),SUM(Q6:W6))) -> 18233 | AA6: 420 | AB6: 68 | AC6: 42 | AD6: 0 | AF6: 0 | AG6: 0 | AH6: 530
B7: ='WORK SHEET'!H279 -> 16.264 | C7: ='WORK SHEET'!J279 -> 10 | D7: ='WORK SHEET'!C279 -> 2010-04-01 | E7: ='WORK SHEET'!E279 -> 2010-04-30 | F7: ='WORK SHEET'!D279 -> 30 | G7: ='WORK SHEET'!O279 -> 14860 | H7: ='WORK SHEET'!T279 -> 0 | I7: ='WORK SHEET'!U279 -> 0 | J7: ='WORK SHEET'!R279 -> 2417 | K7: ='WORK SHEET'!S279 -> 1486 | N7: 150 | P7: 18763 | Q7: ='WORK SHEET'!N279 -> 14440 | R7: 0 | S7: 0 | T7: ='WORK SHEET'!P279 -> 2349 | U7: ='WORK SHEET'!Q279 -> 1444 | X7: 150 | Z7: 18233 | AA7: 420 | AB7: 68 | AC7: 42 | AD7: 0 | AF7: 0 | AG7: 0 | AH7: 530
B8: ='WORK SHEET'!H280 -> 16.264 | C8: ='WORK SHEET'!J280 -> 10 | D8: ='WORK SHEET'!C280 -> 2010-05-01 | E8: ='WORK SHEET'!E280 -> 2010-05-31 | F8: ='WORK SHEET'!D280 -> 31 | G8: ='WORK SHEET'!O280 -> 14860 | H8: ='WORK SHEET'!T280 -> 0 | I8: ='WORK SHEET'!U280 -> 0 | J8: ='WORK SHEET'!R280 -> 2417 | K8: ='WORK SHEET'!S280 -> 1486 | N8: 150 | P8: 18763 | Q8: ='WORK SHEET'!N280 -> 14440 | R8: 0 | S8: 0 | T8: ='WORK SHEET'!P280 -> 2349 | U8: ='WORK SHEET'!Q280 -> 1444 | X8: 150 | Z8: 18233 | AA8: 420 | AB8: 68 | AC8: 42 | AD8: 0 | AF8: 0 | AG8: 0 | AH8: 530
B9: ='WORK SHEET'!H281 -> 16.264 | C9: ='WORK SHEET'!J281 -> 10 | D9: ='WORK SHEET'!C281 -> 2010-06-01 | E9: ='WORK SHEET'!E281 -> 2010-06-30 | F9: ='WORK SHEET'!D281 -> 30 | G9: ='WORK SHEET'!O281 -> 14860 | H9: ='WORK SHEET'!T281 -> 0 | I9: ='WORK SHEET'!U281 -> 0 | J9: ='WORK SHEET'!R281 -> 2417 | K9: ='WORK SHEET'!S281 -> 1486 | N9: 150 | P9: 18763 | Q9: ='WORK SHEET'!N281 -> 14440 | R9: =H9 -> 0 | S9: =I9 -> 0 | T9: ='WORK SHEET'!P281 -> 2349 | U9: ='WORK SHEET'!Q281 -> 1444 | X9: 150 | Z9: 18233 | AA9: 420 | AB9: 68 | AC9: 42 | AD9: 0 | AF9: 0 | AG9: 0 | AH9: 530
B10: ='WORK SHEET'!H282 -> 24.824 | C10: ='WORK SHEET'!J282 -> 10 | D10: ='WORK SHEET'!C282 -> 2010-07-01 | E10: ='WORK SHEET'!E282 -> 2010-07-31 | F10: ='WORK SHEET'!D282 -> 31 | G10: ='WORK SHEET'!O282 -> 14860 | H10: ='WORK SHEET'!T282 -> 0 | I10: ='WORK SHEET'!U282 -> 0 | J10: ='WORK SHEET'!R282 -> 3689 | K10: ='WORK SHEET'!S282 -> 1486 | N10: 200 | P10: 20035 | Q10: ='WORK SHEET'!N282 -> 14440 | R10: 0 | S10: 0 | T10: ='WORK SHEET'!P282 -> 3585 | U10: ='WORK SHEET'!Q282 -> 1444 | X10: 150 | Z10: 19469 | AA10: 420 | AB10: 104 | AC10: 42 | AD10: 0 | AF10: 50 | AG10: 0 | AH10: 566
B11: ='WORK SHEET'!H283 -> 24.824 | C11: ='WORK SHEET'!J283 -> 10 | D11: ='WORK SHEET'!C283 -> 2010-08-01 | E11: ='WORK SHEET'!E283 -> 2010-08-31 | F11: ='WORK SHEET'!D283 -> 31 | G11: ='WORK SHEET'!O283 -> 15280 | H11: ='WORK SHEET'!T283 -> 0 | I11: ='WORK SHEET'!U283 -> 0 | J11: ='WORK SHEET'!R283 -> 3793 | K11: ='WORK SHEET'!S283 -> 1528 | N11: 200 | P11: 20601 | Q11: ='WORK SHEET'!N283 -> 14860 | R11: 0 | S11: 0 | T11: ='WORK SHEET'!P283 -> 3689 | U11: ='WORK SHEET'!Q283 -> 1486 | X11: 200 | Z11: 20035 | AA11: 420 | AB11: 104 | AC11: 42 | AD11: 0 | AF11: 0 | AG11: 0 | AH11: 566
B12: ='WORK SHEET'!H284 -> 24.824 | C12: ='WORK SHEET'!J284 -> 10 | D12: ='WORK SHEET'!C284 -> 2010-09-01 | E12: ='WORK SHEET'!E284 -> 2010-09-30 | F12: ='WORK SHEET'!D284 -> 30 | G12: ='WORK SHEET'!O284 -> 15280 | H12: ='WORK SHEET'!T284 -> 0 | I12: ='WORK SHEET'!U284 -> 0 | J12: ='WORK SHEET'!R284 -> 3793 | K12: ='WORK SHEET'!S284 -> 1528 | N12: 200 | P12: 20601 | Q12: ='WORK SHEET'!N284 -> 14860 | R12: 0 | S12: 0 | T12: ='WORK SHEET'!P284 -> 3689 | U12: ='WORK SHEET'!Q284 -> 1486 | X12: 200 | Z12: 20035 | AA12: 420 | AB12: 104 | AC12: 42 | AD12: 0 | AF12: 0 | AG12: 0 | AH12: 566
B13: ='WORK SHEET'!H285 -> 24.824 | C13: ='WORK SHEET'!J285 -> 10 | D13: ='WORK SHEET'!C285 -> 2010-10-01 | E13: ='WORK SHEET'!E285 -> 2010-10-31 | F13: ='WORK SHEET'!D285 -> 31 | G13: ='WORK SHEET'!O285 -> 15280 | H13: ='WORK SHEET'!T285 -> 0 | I13: ='WORK SHEET'!U285 -> 0 | J13: ='WORK SHEET'!R285 -> 3793 | K13: ='WORK SHEET'!S285 -> 1528 | N13: 200 | P13: 20601 | Q13: ='WORK SHEET'!N285 -> 14860 | R13: 0 | S13: 0 | T13: ='WORK SHEET'!P285 -> 3689 | U13: ='WORK SHEET'!Q285 -> 1486 | X13: 200 | Z13: 20035 | AA13: 420 | AB13: 104 | AC13: 42 | AD13: 0 | AF13: 0 | AG13: 0 | AH13: 566
B14: ='WORK SHEET'!H286 -> 24.824 | C14: ='WORK SHEET'!J286 -> 10 | D14: ='WORK SHEET'!C286 -> 2010-11-01 | E14: ='WORK SHEET'!E286 -> 2010-11-30 | F14: ='WORK SHEET'!D286 -> 30 | G14: ='WORK SHEET'!O286 -> 15280 | H14: ='WORK SHEET'!T286 -> 0 | I14: ='WORK SHEET'!U286 -> 0 | J14: ='WORK SHEET'!R286 -> 3793 | K14: ='WORK SHEET'!S286 -> 1528 | N14: 200 | P14: 20601 | Q14: ='WORK SHEET'!N286 -> 14860 | R14: 0 | S14: 0 | T14: ='WORK SHEET'!P286 -> 3689 | U14: ='WORK SHEET'!Q286 -> 1486 | X14: 200 | Z14: 20035 | AA14: 420 | AB14: 104 | AC14: 42 | AD14: 0 | AF14: 0 | AG14: 0 | AH14: 566
B15: ='WORK SHEET'!H287 -> 24.824 | C15: ='WORK SHEET'!J287 -> 10 | D15: ='WORK SHEET'!C287 -> 2010-12-01 | E15: ='WORK SHEET'!E287 -> 2010-12-31 | F15: ='WORK SHEET'!D287 -> 31 | G15: ='WORK SHEET'!O287 -> 15280 | H15: ='WORK SHEET'!T287 -> 0 | I15: ='WORK SHEET'!U287 -> 0 | J15: ='WORK SHEET'!R287 -> 3793 | K15: ='WORK SHEET'!S287 -> 1528 | N15: 200 | P15: 20601 | Q15: ='WORK SHEET'!N287 -> 14860 | R15: 0 | S15: 0 | T15: ='WORK SHEET'!P287 -> 3689 | U15: ='WORK SHEET'!Q287 -> 1486 | X15: 200 | Z15: 20035 | AA15: 420 | AB15: 104 | AC15: 42 | AD15: 0 | AF15: 0 | AG15: 0 | AH15: 566
B16: ='WORK SHEET'!H288 -> 29.96 | C16: ='WORK SHEET'!J288 -> 10 | D16: ='WORK SHEET'!C288 -> 2011-01-01 | E16: ='WORK SHEET'!E288 -> 2011-01-31 | F16: ='WORK SHEET'!D288 -> 31 | G16: ='WORK SHEET'!O288 -> 15280 | H16: ='WORK SHEET'!T288 -> 0 | I16: ='WORK SHEET'!U288 -> 0 | J16: ='WORK SHEET'!R288 -> 4578 | K16: ='WORK SHEET'!S288 -> 1528 | N16: 200 | P16: 21386 | Q16: ='WORK SHEET'!N288 -> 14860 | R16: 0 | S16: 0 | T16: ='WORK SHEET'!P288 -> 4452 | U16: ='WORK SHEET'!Q288 -> 1486 | X16: 200 | Z16: 20798 | AA16: 420 | AB16: 126 | AC16: 42 | AD16: 0 | AF16: 0 | AG16: 0 | AH16: 588
B17: ='WORK SHEET'!H289 -> 29.96 | C17: ='WORK SHEET'!J289 -> 10 | D17: ='WORK SHEET'!C289 -> 2011-02-01 | E17: ='WORK SHEET'!E289 -> 2011-02-28 | F17: ='WORK SHEET'!D289 -> 28 | G17: ='WORK SHEET'!O289 -> 15280 | H17: ='WORK SHEET'!T289 -> 0 | I17: ='WORK SHEET'!U289 -> 0 | J17: ='WORK SHEET'!R289 -> 4578 | K17: ='WORK SHEET'!S289 -> 1528 | N17: 200 | P17: 21386 | Q17: ='WORK SHEET'!N289 -> 14860 | R17: 0 | S17: 0 | T17: ='WORK SHEET'!P289 -> 4452 | U17: ='WORK SHEET'!Q289 -> 1486 | X17: 200 | Z17: 20798 | AA17: 420 | AB17: 126 | AC17: 42 | AD17: 0 | AF17: 0 | AG17: 0 | AH17: 588
B18: ='WORK SHEET'!H290 -> 29.96 | C18: ='WORK SHEET'!J290 -> 10 | D18: ='WORK SHEET'!C290 -> 2011-03-01 | E18: ='WORK SHEET'!E290 -> 2011-03-31 | F18: ='WORK SHEET'!D290 -> 31 | G18: ='WORK SHEET'!O290 -> 15280 | H18: ='WORK SHEET'!T290 -> 0 | I18: ='WORK SHEET'!U290 -> 0 | J18: ='WORK SHEET'!R290 -> 4578 | K18: ='WORK SHEET'!S290 -> 1528 | N18: 200 | P18: 21386 | Q18: ='WORK SHEET'!N290 -> 14860 | R18: 0 | S18: 0 | T18: ='WORK SHEET'!P290 -> 4452 | U18: ='WORK SHEET'!Q290 -> 1486 | X18: 200 | Z18: 20798 | AA18: 420 | AB18: 126 | AC18: 42 | AD18: 0 | AF18: 0 | AG18: 0 | AH18: 588
B19: ='WORK SHEET'!H291 -> 29.96 | C19: ='WORK SHEET'!J291 -> 12 | D19: ='WORK SHEET'!C291 -> 2011-04-01 | E19: ='WORK SHEET'!E291 -> 2011-04-30 | F19: ='WORK SHEET'!D291 -> 30 | G19: ='WORK SHEET'!O291 -> 15280 | H19: ='WORK SHEET'!T291 -> 0 | I19: ='WORK SHEET'!U291 -> 0 | J19: ='WORK SHEET'!R291 -> 4578 | K19: ='WORK SHEET'!S291 -> 1834 | N19: 200 | P19: 21692 | Q19: ='WORK SHEET'!N291 -> 14860 | R19: 0 | S19: 0 | T19: ='WORK SHEET'!P291 -> 4452 | U19: ='WORK SHEET'!Q291 -> 1783 | X19: 200 | Z19: 21095 | AA19: 420 | AB19: 126 | AC19: 51 | AD19: 0 | AF19: 0 | AG19: 0 | AH19: 597
B20: ='WORK SHEET'!H292 -> 29.96 | C20: ='WORK SHEET'!J292 -> 12 | D20: ='WORK SHEET'!C292 -> 2011-05-01 | E20: ='WORK SHEET'!E292 -> 2011-05-31 | F20: ='WORK SHEET'!D292 -> 31 | G20: ='WORK SHEET'!O292 -> 15280 | H20: ='WORK SHEET'!T292 -> 0 | I20: ='WORK SHEET'!U292 -> 0 | J20: ='WORK SHEET'!R292 -> 4578 | K20: ='WORK SHEET'!S292 -> 1834 | N20: 200 | P20: 21692 | Q20: ='WORK SHEET'!N292 -> 14860 | R20: 0 | S20: 0 | T20: ='WORK SHEET'!P292 -> 4452 | U20: ='WORK SHEET'!Q292 -> 1783 | X20: 200 | Z20: 21095 | AA20: 420 | AB20: 126 | AC20: 51 | AD20: 0 | AF20: 0 | AG20: 0 | AH20: 597
B21: ='WORK SHEET'!H293 -> 0 | C21: ='WORK SHEET'!J293 -> 0 | D21: ='WORK SHEET'!C293 -> 00:00:00 | E21: ='WORK SHEET'!E293 -> 00:00:00 | F21: ='WORK SHEET'!D293 -> 0 | G21: ='WORK SHEET'!O293 -> 0 | H21: ='WORK SHEET'!T293 -> 0 | I21: ='WORK SHEET'!U293 -> 0 | J21: ='WORK SHEET'!R293 -> 0 | K21: ='WORK SHEET'!S293 -> 0 | N21: 0 | P21: 0 | Q21: ='WORK SHEET'!N293 -> 0 | R21: 0 | S21: 0 | T21: ='WORK SHEET'!P293 -> 0 | U21: ='WORK SHEET'!Q293 -> 0 | X21: 0 | Z21: 0 | AA21: 0 | AB21: 0 | AC21: 0 | AD21: 0 | AF21: 0 | AG21: 0 | AH21: 0
B22: ='WORK SHEET'!H294 -> 0 | C22: ='WORK SHEET'!J294 -> 0 | D22: ='WORK SHEET'!C294 -> 00:00:00 | E22: ='WORK SHEET'!E294 -> 00:00:00 | F22: ='WORK SHEET'!D294 -> 0 | G22: ='WORK SHEET'!O294 -> 0 | H22: ='WORK SHEET'!T294 -> 0 | I22: ='WORK SHEET'!U294 -> 0 | J22: ='WORK SHEET'!R294 -> 0 | K22: ='WORK SHEET'!S294 -> 0 | N22: 0 | P22: 0 | Q22: ='WORK SHEET'!N294 -> 0 | R22: 0 | S22: 0 | T22: ='WORK SHEET'!P294 -> 0 | U22: ='WORK SHEET'!Q294 -> 0 | X22: 0 | Z22: 0 | AA22: 0 | AB22: 0 | AC22: 0 | AD22: 0 | AF22: 0 | AG22: 0 | AH22: 0
B23: ='WORK SHEET'!H295 -> 0 | C23: ='WORK SHEET'!J295 -> 0 | D23: ='WORK SHEET'!C295 -> 00:00:00 | E23: ='WORK SHEET'!E295 -> 00:00:00 | F23: ='WORK SHEET'!D295 -> 0 | G23: ='WORK SHEET'!O295 -> 0 | H23: ='WORK SHEET'!T295 -> 0 | I23: ='WORK SHEET'!U295 -> 0 | J23: ='WORK SHEET'!R295 -> 0 | K23: ='WORK SHEET'!S295 -> 0 | N23: 0 | P23: 0 | Q23: ='WORK SHEET'!N295 -> 0 | R23: 0 | S23: 0 | T23: ='WORK SHEET'!P295 -> 0 | U23: ='WORK SHEET'!Q295 -> 0 | X23: 0 | Z23: 0 | AA23: 0 | AB23: 0 | AC23: 0 | AD23: 0 | AF23: 0 | AG23: 0 | AH23: 0
B24: ='WORK SHEET'!H296 -> 0 | C24: ='WORK SHEET'!J296 -> 0 | D24: ='WORK SHEET'!C296 -> 00:00:00 | E24: ='WORK SHEET'!E296 -> 00:00:00 | F24: ='WORK SHEET'!D296 -> 0 | G24: ='WORK SHEET'!O296 -> 0 | H24: ='WORK SHEET'!T296 -> 0 | I24: ='WORK SHEET'!U296 -> 0 | J24: ='WORK SHEET'!R296 -> 0 | K24: ='WORK SHEET'!S296 -> 0 | N24: 0 | P24: 0 | Q24: ='WORK SHEET'!N296 -> 0 | R24: 0 | S24: 0 | T24: ='WORK SHEET'!P296 -> 0 | U24: ='WORK SHEET'!Q296 -> 0 | X24: 0 | Z24: 0 | AA24: 0 | AB24: 0 | AC24: 0 | AD24: 0 | AF24: 0 | AG24: 0 | AH24: 0
B25: ='WORK SHEET'!H297 -> 0 | C25: ='WORK SHEET'!J297 -> 0 | D25: ='WORK SHEET'!C297 -> 00:00:00 | E25: ='WORK SHEET'!E297 -> 00:00:00 | F25: ='WORK SHEET'!D297 -> 0 | G25: ='WORK SHEET'!O297 -> 0 | H25: ='WORK SHEET'!T297 -> 0 | I25: ='WORK SHEET'!U297 -> 0 | J25: ='WORK SHEET'!R297 -> 0 | K25: ='WORK SHEET'!S297 -> 0 | N25: 0 | P25: 0 | Q25: ='WORK SHEET'!N297 -> 0 | R25: 0 | S25: 0 | T25: ='WORK SHEET'!P297 -> 0 | U25: ='WORK SHEET'!Q297 -> 0 | X25: 0 | Z25: 0 | AA25: 0 | AB25: 0 | AC25: 0 | AD25: 0 | AF25: 0 | AG25: 0 | AH25: 0
B26: ='WORK SHEET'!H298 -> 0 | C26: ='WORK SHEET'!J298 -> 0 | D26: ='WORK SHEET'!C298 -> 00:00:00 | E26: ='WORK SHEET'!E298 -> 00:00:00 | F26: ='WORK SHEET'!D298 -> 0 | G26: ='WORK SHEET'!O298 -> 0 | H26: ='WORK SHEET'!T298 -> 0 | I26: ='WORK SHEET'!U298 -> 0 | J26: ='WORK SHEET'!R298 -> 0 | K26: ='WORK SHEET'!S298 -> 0 | N26: 0 | P26: =IF(OR(D26=0,DAY(D26)<>1),0,IF(DAY(#REF!)<>1,SUM(G26:M26)+SUM(#REF!),SUM(G26:M26))) -> 0 | Q26: ='WORK SHEET'!N298 -> 0 | R26: 0 | S26: 0 | T26: ='WORK SHEET'!P298 -> 0 | U26: ='WORK SHEET'!Q298 -> 0 | X26: 0 | Z26: =IF(OR(D26=0,DAY(D26)<>1),0,IF(DAY(#REF!)<>1,SUM(Q26:W26)+SUM(V27:W27),SUM(Q26:W26))) -> 0 | AA26: 0 | AB26: 0 | AC26: 0 | AD26: 0 | AF26: 0 | AG26: 0 | AH26: 0
AA27: =SUM(AA5:AA26) -> 6720 | AB27: 1594 | AC27: 690 | AD27: 0 | AE27: 0 | AF27: 50 | AG27: 0 | AH27: 9004
N28: 0 | P28: =IF(OR(D28=0,DAY(D28)<>1),0,IF(DAY(#REF!)<>1,SUM(G28:M28)+SUM(#REF!),SUM(G28:M28))) -> 0 | X28: 0 | Z28: =IF(OR(D28=0,DAY(D28)<>1),0,IF(DAY(#REF!)<>1,SUM(Q28:W28)+SUM(V29:W29),SUM(Q28:W28))) -> 0
D29: PART -III (CASH for period from 1/06/2011 to
B30: ='WORK SHEET'!H312 -> 29.96 | C30: ='WORK SHEET'!J312 -> 12 | D30: ='WORK SHEET'!C312 -> 2011-06-01 | E30: ='WORK SHEET'!E312 -> 2011-06-30 | F30: ='WORK SHEET'!D312 -> 30 | G30: ='WORK SHEET'!O312 -> 15280 | H30: ='WORK SHEET'!T312 -> 0 | I30: ='WORK SHEET'!U312 -> 0 | J30: ='WORK SHEET'!R312 -> 4578 | K30: ='WORK SHEET'!S312 -> 1834 | N30: 200 | O30: =ROUND('WORK SHEET'!M316*F30/VLOOKUP(MONTH(D30),'WORK SHEET'!M125:N136,2,TRUE),0) -> 0 | P30: 21692 | Q30: ='WORK SHEET'!N312 -> 14860 | R30: =H30 -> 0 | S30: =I30 -> 0 | T30: ='WORK SHEET'!P312 -> 4452 | U30: ='WORK SHEET'!Q312 -> 1783 | X30: 200 | Z30: 21095 | AA30: =G30-Q30 -> 420 | AB30: =J30-T30 -> 126 | AC30: 51 | AD30: 0 | AF30: 0 | AG30: =O30-Y30 -> 0 | AH30: =P30-Z30 -> 597
B31: ='WORK SHEET'!H313 -> 29.96 | C31: ='WORK SHEET'!J313 -> 12 | D31: ='WORK SHEET'!C313 -> 2011-07-01 | E31: ='WORK SHEET'!E313 -> 2011-07-30T00:14:24 | F31: ='WORK SHEET'!D313 -> 30 | G31: 15280 | H31: ='WORK SHEET'!T313 -> 0 | I31: ='WORK SHEET'!U313 -> 0 | J31: 4578 | K31: 1834 | N31: 200 | O31: =ROUND('WORK SHEET'!M317*F31/VLOOKUP(MONTH(D31),'WORK SHEET'!M126:N137,2,TRUE),0) -> 0 | P31: 21692 | Q31: ='WORK SHEET'!N313 -> 14381 | R31: =H31 -> 0 | S31: =I31 -> 0 | T31: ='WORK SHEET'!P313 -> 4309 | U31: ='WORK SHEET'!Q313 -> 1726 | X31: 200 | Z31: 20416 | AA31: 899 | AB31: 269 | AC31: 108 | AD31: 0 | AF31: 0 | AG31: 0 | AH31: 597
B32: ='WORK SHEET'!H314 -> 0 | C32: ='WORK SHEET'!J314 -> 0 | D32: ='WORK SHEET'!C314 -> 00:00:00 | E32: ='WORK SHEET'!E314 -> 00:00:00 | F32: ='WORK SHEET'!D314 -> 0 | G32: ='WORK SHEET'!O314 -> 0 | H32: ='WORK SHEET'!T314 -> 0 | I32: ='WORK SHEET'!U314 -> 0 | J32: ='WORK SHEET'!R314 -> 0 | K32: ='WORK SHEET'!S314 -> 0 | N32: 0 | O32: =ROUND('WORK SHEET'!M318*F32/VLOOKUP(MONTH(D32),'WORK SHEET'!M127:N138,2,TRUE),0) ->  | P32: 0 | Q32: ='WORK SHEET'!N314 -> 0 | R32: 0 | S32: 0 | T32: ='WORK SHEET'!P314 -> 0 | U32: ='WORK SHEET'!Q314 -> 0 | X32: 0 | Z32: 0 | AA32: 0 | AB32: 0 | AC32: 0 | AD32: 0 | AF32: 0 | AH32: 0
B33: ='WORK SHEET'!H315 -> 0 | C33: ='WORK SHEET'!J315 -> 0 | D33: ='WORK SHEET'!C315 -> 00:00:00 | E33: ='WORK SHEET'!E315 -> 00:00:00 | F33: ='WORK SHEET'!D315 -> 0 | G33: ='WORK SHEET'!O315 -> 0 | H33: ='WORK SHEET'!T315 -> 0 | I33: ='WORK SHEET'!U315 -> 0 | J33: ='WORK SHEET'!R315 -> 0 | K33: ='WORK SHEET'!S315 -> 0 | N33: 0 | O33: =ROUND('WORK SHEET'!M319*F33/VLOOKUP(MONTH(D33),'WORK SHEET'!M128:N139,2,TRUE),0) ->  | P33: 0 | Q33: ='WORK SHEET'!N315 -> 0 | R33: 0 | S33: 0 | T33: ='WORK SHEET'!P315 -> 0 | U33: ='WORK SHEET'!Q315 -> 0 | X33: 0 | Z33: 0 | AA33: 0 | AB33: 0 | AC33: 0 | AD33: 0 | AF33: 0 | AH33: 0
B34: ='WORK SHEET'!H316 -> 0 | C34: ='WORK SHEET'!J316 -> 0 | D34: ='WORK SHEET'!C316 -> 00:00:00 | E34: ='WORK SHEET'!E316 -> 00:00:00 | F34: ='WORK SHEET'!D316 -> 0 | G34: ='WORK SHEET'!O316 -> 0 | H34: ='WORK SHEET'!T316 -> 0 | I34: ='WORK SHEET'!U316 -> 0 | J34: ='WORK SHEET'!R316 -> 0 | K34: ='WORK SHEET'!S316 -> 0 | N34: 0 | O34: =ROUND('WORK SHEET'!M320*F34/VLOOKUP(MONTH(D34),'WORK SHEET'!M129:N140,2,TRUE),0) ->  | P34: 0 | Q34: ='WORK SHEET'!N316 -> 0 | R34: 0 | S34: 0 | T34: ='WORK SHEET'!P316 -> 0 | U34: ='WORK SHEET'!Q316 -> 0 | X34: 0 | Z34: 0 | AA34: 0 | AB34: 0 | AC34: 0 | AD34: 0 | AF34: 0 | AH34: 0
B35: ='WORK SHEET'!H317 -> 0 | C35: ='WORK SHEET'!J317 -> 0 | D35: ='WORK SHEET'!C317 -> 00:00:00 | E35: ='WORK SHEET'!E317 -> 00:00:00 | F35: ='WORK SHEET'!D317 -> 0 | G35: ='WORK SHEET'!O317 -> 0 | H35: ='WORK SHEET'!T317 -> 0 | I35: ='WORK SHEET'!U317 -> 0 | J35: ='WORK SHEET'!R317 -> 0 | K35: ='WORK SHEET'!S317 -> 0 | N35: 0 | O35: =ROUND('WORK SHEET'!M321*F35/VLOOKUP(MONTH(D35),'WORK SHEET'!M130:N141,2,TRUE),0) ->  | P35: 0 | Q35: ='WORK SHEET'!N317 -> 0 | R35: 0 | S35: 0 | T35: ='WORK SHEET'!P317 -> 0 | U35: ='WORK SHEET'!Q317 -> 0 | X35: 0 | Z35: 0 | AA35: 0 | AB35: 0 | AC35: 0 | AD35: 0 | AF35: 0 | AH35: 0
B36: ='WORK SHEET'!H318 -> 0 | C36: ='WORK SHEET'!J318 -> 0 | D36: ='WORK SHEET'!C318 -> 00:00:00 | E36: ='WORK SHEET'!E318 -> 00:00:00 | F36: ='WORK SHEET'!D318 -> 0 | G36: ='WORK SHEET'!O318 -> 0 | H36: ='WORK SHEET'!T318 -> 0 | I36: ='WORK SHEET'!U318 -> 0 | J36: ='WORK SHEET'!R318 -> 0 | K36: ='WORK SHEET'!S318 -> 0 | N36: 0 | O36: =ROUND('WORK SHEET'!M322*F36/VLOOKUP(MONTH(D36),'WORK SHEET'!M131:N142,2,TRUE),0) ->  | P36: 0 | Q36: ='WORK SHEET'!N318 -> 0 | R36: 0 | S36: 0 | T36: ='WORK SHEET'!P318 -> 0 | U36: ='WORK SHEET'!Q318 -> 0 | X36: 0 | Z36: 0 | AA36: 0 | AB36: 0 | AC36: 0 | AD36: 0 | AF36: 0 | AH36: 0
B37: ='WORK SHEET'!H319 -> 0 | C37: ='WORK SHEET'!J319 -> 0 | D37: ='WORK SHEET'!C319 -> 00:00:00 | E37: ='WORK SHEET'!E319 -> 00:00:00 | F37: ='WORK SHEET'!D319 -> 0 | G37: ='WORK SHEET'!O319 -> 0 | H37: ='WORK SHEET'!T319 -> 0 | I37: ='WORK SHEET'!U319 -> 0 | J37: ='WORK SHEET'!R319 -> 0 | K37: ='WORK SHEET'!S319 -> 0 | N37: 0 | O37: =ROUND('WORK SHEET'!M323*F37/VLOOKUP(MONTH(D37),'WORK SHEET'!M132:N143,2,TRUE),0) ->  | P37: =IF(OR(D37=0,DAY(D37)<>1),0,IF(DAY(B38)<>1,SUM(G37:M37)+SUM(G38:M38),SUM(G37:M37))) -> 0 | Q37: ='WORK SHEET'!N319 -> 0 | R37: 0 | S37: 0 | T37: ='WORK SHEET'!P319 -> 0 | U37: ='WORK SHEET'!Q319 -> 0 | X37: 0 | Z37: =IF(OR(D37=0,DAY(D37)<>1),0,IF(DAY(B38)<>1,SUM(Q37:W37)+SUM(Q38:W38),SUM(Q37:W37))) -> 0 | AA37: 0 | AB37: 0 | AC37: 0 | AD37: 0 | AF37: 0 | AH37: 0
B38: Total for cash Adjustment (FROM 1/6/2011) | AA38: =SUM(AA30:AA37) -> 1319 | AB38: 395 | AC38: 159 | AD38: 0 | AF38: 0 | AH38: 1194
B39: TOTAL | AA39: =AA27+AA38 -> 8039 | AB39: =AB27+AB38 -> 1989 | AC39: 849 | AD39: 0 | AE39: 0 | AF39: 50 | AH39: 10198
D40: 1) AAS benefits from 01/02/2010 to 31/05/2011is credited individual G.P.F./Z.P.P.F. A/C and arrear from the month of 06/2011 is paid in cash
D41: 2) Certified that amount claimed in the bill not drawn earlier.
D42: Note: Total=B Pay+P.P.+F.P.+D.A+H.R.A+OTHER ALWENCES | Q42: =PROCEEDINGS!25:28 -> 

Sheet 47-BUDGET
B1: BUDGET
B3: 1. | C3: Budget allocation for the year 2010-2011 | J3: Rs.
B4: 2. | C4: Total Expenditure including this Bill | J4: Rs.
B5: 3. | C5: Balance | J5: Rs.
K9: Drawing Officer
C11: This bill amount Rs. | F11: ='47-FRONT'!H57 -> 1194
C12: ='BILL-P.F & CASH'!A32 -> RUPEES : ONE THOUSAND ONE HUNDRED AND NINETY FOUR ONLY
C13: paid by cash / cheque / draft adjust to account.
C14: Received Cash
C18: Drawing Officer | K18: Drawing Officer
B19: REQUIRED CERTIFICATES
B21: 1 | C21: Certified That the amount claimed in this bill has not been already drawn and paid previously.
B22: 2 | C22: Certified that if any excess amount is paid due to the fixation the same will be recovered from the
B23: 3 | C23: Certified that the note of arrears claims has been carried in the respective copies office bill register .
B24: 4 | C24: Certified that the necessary fixation entries have been made in the service register of the individual.
B25: 5 | C25: Certified that the pay is fixed in terms of G.O.Ms. NO.52 Finance Dept.,dated.25-02-2010
B26: 6 | C26: Certified that the D.A.is claimed in terms of G.O.Ms.No.63 Finance Dept.,dated.09-03-2010
B27: 7 | C27: Certified that the H.R.A. is claimed in terms of G.O.Ms.No.64 Finance Dept.,dated : 09-03-2010
B28: 8 | C28: =CONCATENATE("Certified that the Special pays are claimed in terms of G.O.M.S No.118 Finance Dept.,") -> Certified that the Special pays are claimed in terms of G.O.M.S No.118 Finance Dept.,
C29: dated :7/4/2010
B30: 9 | C30: Certified that the City Compensatory Allowance (CCA) is claimed in terms of G.O.M.S No.65
C31: Finance Dept.,dated :3/9/2010
B32: 10 | C32: =CONCATENATE("Certified that the Convyance Alwance are claimed in terms of G.O.M.S No.108 Finance Dept.,") -> Certified that the Convyance Alwance are claimed in terms of G.O.M.S No.108 Finance Dept.,
C33: dated :7/04/2010
I36: DRAWING OFFICER
B38: For the use Of Accountant General Office

Sheet P.F SCHEDULE
B1: =CONCATENATE("D.D.O. CODE : ",'P. TOKEN'!B7) -> D.D.O. CODE : 07050308026 | G1: Trans ID No. :
G2: Date :
A5: =CONCATENATE("SCHEDULE SHOWING THE AAS ARREARS CREDITED TO Z.P.P.F. / G.P.F. FROM 01-02-10 TO 31-05-2011 (16MONTHS) OF"," ",PROCEEDINGS!C41,) -> SCHEDULE SHOWING THE AAS ARREARS CREDITED TO Z.P.P.F. / G.P.F. FROM 01-02-10 TO 31-05-2011 (16MONTHS) OF SK.KHAJARAHAMTULLA, S.G.T., MPPS(G), POTLAPADU
C6: IN THE MONTH OF | F6: ='WORK SHEET'!E62 -> 2009-08-06
A7: Sl.No | B7: Name of the Subscriber | C7: Designation | E7: Employee Code | F7: P.F.No | G7: PRC ARREAR CREDITED TO P.F. | H7: Refunds or with Drawls | J7: Total Amount released
H8: Amount | I8: No. of inst
A9: 1 | B9: ='WORK SHEET'!E2 -> SK.KHAJARAHAMTULLA | C9: =PROCEEDINGS!G19 -> S.G.T. | E9: ='WORK SHEET'!E7 -> 724731 | F9: ='WORK SHEET'!E10 -> 17396 | G9: =BILL!AH27 -> 9004 | H9: =[2]BILL!AE71 ->  | J9: =SUM(G9:I9) -> 9004
B10: TOTAL | G10: =G9 -> 9004 | J10: =J9 -> 9004
A12: ='WORK SHEET'!AJ149 -> RUPEES : NINE THOUSAND AND FOUR ONLY
H14: D.D.O. SIGN
B20: =CONCATENATE("D.D.O. CODE : ",'P. TOKEN'!B7) -> D.D.O. CODE : 07050308026 | G20: Trans ID No. :
G21: Date :
A24: =A5 -> SCHEDULE SHOWING THE AAS ARREARS CREDITED TO Z.P.P.F. / G.P.F. FROM 01-02-10 TO 31-05-2011 (16MONTHS) OF SK.KHAJARAHAMTULLA, S.G.T., MPPS(G), POTLAPADU
C25: IN THE MONTH OF | F25: =F6 -> 2009-08-06
A26: Sl.No | B26: Name of the Subscriber | C26: Designation | E26: Employee Code | F26: P.F.No | G26: PRC ARREAR CREDITED TO P.F. | H26: refunds or with Drawls | J26: Total Amount released
H27: Amount | I27: No. of inst
A28: 1 | B28: =B9 -> SK.KHAJARAHAMTULLA | C28: =C9 -> S.G.T. | E28: =E9 -> 724731 | F28: =F9 -> 17396 | G28: =G9 -> 9004 | J28: =SUM(G28:I28) -> 9004
B29: TOTAL | G29: =G28 -> 9004 | J29: =J28 -> 9004
A31: =A12 -> RUPEES : NINE THOUSAND AND FOUR ONLY
H33: D.D.O. SIGN

Sheet PT SCHEDULE
A1: STATEMENT SHOWING THE SCHEDULE RECOVERY OF PROFESSIONAL TAX IN PRC 2010 BILL OF
A2: =CONCATENATE('WORK SHEET'!E2," ",'WORK SHEET'!E3," ",'WORK SHEET'!E4," FOR THE MONTH OF") -> SK.KHAJARAHAMTULLA MPPS(G) POTLAPADU FOR THE MONTH OF
A3: from 1-02-10 to | E3: ='WORK SHEET'!E135 -> 2011-07-30T00:14:24
A4: Head of Account: "0028 Other Taxes on income & Expenditure MR.. 107 Taxes on profession
A5: Trades Calling and Employment S.H.01 Receipt (from) four professions Trades Calling and Employment"
A6: Sl.No. | B6: Employee Code | C6: Name of the Employee & Degn | D6: MONTH | E6: NEW GROSS | F6: NEW P.T. | G6: OLD GROSS | H6: OLD P.T. | I6: Amount of Recovery | J6: Remarks
A7: 1 | B7: ='WORK SHEET'!E7 -> 724731 | C7: ='WORK SHEET'!E2 -> SK.KHAJARAHAMTULLA | D7: =IF('WORK SHEET'!BP79=0," ",'WORK SHEET'!BP79) -> 2010-02-01 | E7: =IF('WORK SHEET'!BW79=0," ",'WORK SHEET'!BW79) -> 18233 | F7: =IF('WORK SHEET'!BX79=0," ",'WORK SHEET'!BX79) -> 150 | G7: =IF('WORK SHEET'!BY79=0," ",'WORK SHEET'!BY79) -> 18763 | H7: =IF('WORK SHEET'!BZ79=0," ",'WORK SHEET'!BZ79) -> 150 | I7: =IF(F7=" "," ",F7-H7) -> 0
C8: =PROCEEDINGS!H19 -> 0 | D8: =IF('WORK SHEET'!BP80=0," ",'WORK SHEET'!BP80) -> 2010-03-01 | E8: =IF('WORK SHEET'!BW80=0," ",'WORK SHEET'!BW80) -> 18233 | F8: =IF('WORK SHEET'!BX80=0," ",'WORK SHEET'!BX80) -> 150 | G8: =IF('WORK SHEET'!BY80=0," ",'WORK SHEET'!BY80) -> 18763 | H8: =IF('WORK SHEET'!BZ80=0," ",'WORK SHEET'!BZ80) -> 150 | I8: =IF(F8=" "," ",F8-H8) -> 0
D9: =IF('WORK SHEET'!BP81=0," ",'WORK SHEET'!BP81) -> 2010-04-01 | E9: =IF('WORK SHEET'!BW81=0," ",'WORK SHEET'!BW81) -> 18233 | F9: =IF('WORK SHEET'!BX81=0," ",'WORK SHEET'!BX81) -> 150 | G9: =IF('WORK SHEET'!BY81=0," ",'WORK SHEET'!BY81) -> 18763 | H9: =IF('WORK SHEET'!BZ81=0," ",'WORK SHEET'!BZ81) -> 150 | I9: 0
D10: =IF('WORK SHEET'!BP82=0," ",'WORK SHEET'!BP82) -> 2010-05-01 | E10: =IF('WORK SHEET'!BW82=0," ",'WORK SHEET'!BW82) -> 18233 | F10: =IF('WORK SHEET'!BX82=0," ",'WORK SHEET'!BX82) -> 150 | G10: =IF('WORK SHEET'!BY82=0," ",'WORK SHEET'!BY82) -> 18763 | H10: =IF('WORK SHEET'!BZ82=0," ",'WORK SHEET'!BZ82) -> 150 | I10: 0
D11: =IF('WORK SHEET'!BP83=0," ",'WORK SHEET'!BP83) -> 2010-06-01 | E11: =IF('WORK SHEET'!BW83=0," ",'WORK SHEET'!BW83) -> 18233 | F11: =IF('WORK SHEET'!BX83=0," ",'WORK SHEET'!BX83) -> 150 | G11: =IF('WORK SHEET'!BY83=0," ",'WORK SHEET'!BY83) -> 18763 | H11: =IF('WORK SHEET'!BZ83=0," ",'WORK SHEET'!BZ83) -> 150 | I11: 0
D12: =IF('WORK SHEET'!BP84=0," ",'WORK SHEET'!BP84) -> 2010-07-01 | E12: =IF('WORK SHEET'!BW84=0," ",'WORK SHEET'!BW84) -> 19469 | F12: =IF('WORK SHEET'!BX84=0," ",'WORK SHEET'!BX84) -> 150 | G12: =IF('WORK SHEET'!BY84=0," ",'WORK SHEET'!BY84) -> 20035 | H12: =IF('WORK SHEET'!BZ84=0," ",'WORK SHEET'!BZ84) -> 200 | I12: -50
D13: =IF('WORK SHEET'!BP85=0," ",'WORK SHEET'!BP85) -> 2010-08-01 | E13: =IF('WORK SHEET'!BW85=0," ",'WORK SHEET'!BW85) -> 20035 | F13: =IF('WORK SHEET'!BX85=0," ",'WORK SHEET'!BX85) -> 200 | G13: =IF('WORK SHEET'!BY85=0," ",'WORK SHEET'!BY85) -> 20601 | H13: =IF('WORK SHEET'!BZ85=0," ",'WORK SHEET'!BZ85) -> 200 | I13: 0
D14: =IF('WORK SHEET'!BP86=0," ",'WORK SHEET'!BP86) -> 2010-09-01 | E14: =IF('WORK SHEET'!BW86=0," ",'WORK SHEET'!BW86) -> 20035 | F14: =IF('WORK SHEET'!BX86=0," ",'WORK SHEET'!BX86) -> 200 | G14: =IF('WORK SHEET'!BY86=0," ",'WORK SHEET'!BY86) -> 20601 | H14: =IF('WORK SHEET'!BZ86=0," ",'WORK SHEET'!BZ86) -> 200 | I14: 0
D15: =IF('WORK SHEET'!BP87=0," ",'WORK SHEET'!BP87) -> 2010-10-01 | E15: =IF('WORK SHEET'!BW87=0," ",'WORK SHEET'!BW87) -> 20035 | F15: =IF('WORK SHEET'!BX87=0," ",'WORK SHEET'!BX87) -> 200 | G15: =IF('WORK SHEET'!BY87=0," ",'WORK SHEET'!BY87) -> 20601 | H15: =IF('WORK SHEET'!BZ87=0," ",'WORK SHEET'!BZ87) -> 200 | I15: 0
D16: =IF('WORK SHEET'!BP88=0," ",'WORK SHEET'!BP88) -> 2010-11-01 | E16: =IF('WORK SHEET'!BW88=0," ",'WORK SHEET'!BW88) -> 20035 | F16: =IF('WORK SHEET'!BX88=0," ",'WORK SHEET'!BX88) -> 200 | G16: =IF('WORK SHEET'!BY88=0," ",'WORK SHEET'!BY88) -> 20601 | H16: =IF('WORK SHEET'!BZ88=0," ",'WORK SHEET'!BZ88) -> 200 | I16: 0
D17: =IF('WORK SHEET'!BP89=0," ",'WORK SHEET'!BP89) -> 2010-12-01 | E17: =IF('WORK SHEET'!BW89=0," ",'WORK SHEET'!BW89) -> 20035 | F17: =IF('WORK SHEET'!BX89=0," ",'WORK SHEET'!BX89) -> 200 | G17: =IF('WORK SHEET'!BY89=0," ",'WORK SHEET'!BY89) -> 20601 | H17: =IF('WORK SHEET'!BZ89=0," ",'WORK SHEET'!BZ89) -> 200 | I17: 0
D18: =IF('WORK SHEET'!BP90=0," ",'WORK SHEET'!BP90) -> 2011-01-01 | E18: =IF('WORK SHEET'!BW90=0," ",'WORK SHEET'!BW90) -> 20798 | F18: =IF('WORK SHEET'!BX90=0," ",'WORK SHEET'!BX90) -> 200 | G18: =IF('WORK SHEET'!BY90=0," ",'WORK SHEET'!BY90) -> 21386 | H18: =IF('WORK SHEET'!BZ90=0," ",'WORK SHEET'!BZ90) -> 200 | I18: 0
D19: =IF('WORK SHEET'!BP91=0," ",'WORK SHEET'!BP91) -> 2011-02-01 | E19: =IF('WORK SHEET'!BW91=0," ",'WORK SHEET'!BW91) -> 20798 | F19: =IF('WORK SHEET'!BX91=0," ",'WORK SHEET'!BX91) -> 200 | G19: =IF('WORK SHEET'!BY91=0," ",'WORK SHEET'!BY91) -> 21386 | H19: =IF('WORK SHEET'!BZ91=0," ",'WORK SHEET'!BZ91) -> 200 | I19: 0
D20: =IF('WORK SHEET'!BP92=0," ",'WORK SHEET'!BP92) -> 2011-03-01 | E20: =IF('WORK SHEET'!BW92=0," ",'WORK SHEET'!BW92) -> 20798 | F20: =IF('WORK SHEET'!BX92=0," ",'WORK SHEET'!BX92) -> 200 | G20: =IF('WORK SHEET'!BY92=0," ",'WORK SHEET'!BY92) -> 21386 | H20: =IF('WORK SHEET'!BZ92=0," ",'WORK SHEET'!BZ92) -> 200 | I20: 0
D21: =IF('WORK SHEET'!BP93=0," ",'WORK SHEET'!BP93) -> 2011-04-01 | E21: =IF('WORK SHEET'!BW93=0," ",'WORK SHEET'!BW93) -> 21095 | F21: =IF('WORK SHEET'!BX93=0," ",'WORK SHEET'!BX93) -> 200 | G21: =IF('WORK SHEET'!BY93=0," ",'WORK SHEET'!BY93) -> 21692 | H21: =IF('WORK SHEET'!BZ93=0," ",'WORK SHEET'!BZ93) -> 200 | I21: 0
D22: =IF('WORK SHEET'!BP94=0," ",'WORK SHEET'!BP94) -> 2011-05-01 | E22: =IF('WORK SHEET'!BW94=0," ",'WORK SHEET'!BW94) -> 21095 | F22: =IF('WORK SHEET'!BX94=0," ",'WORK SHEET'!BX94) -> 200 | G22: =IF('WORK SHEET'!BY94=0," ",'WORK SHEET'!BY94) -> 21692 | H22: =IF('WORK SHEET'!BZ94=0," ",'WORK SHEET'!BZ94) -> 200 | I22: 0
D23: =IF('WORK SHEET'!BP95=0," ",'WORK SHEET'!BP95) -> 2011-06-01 | E23: =IF('WORK SHEET'!BW95=0," ",'WORK SHEET'!BW95) -> 21095 | F23: =IF('WORK SHEET'!BX95=0," ",'WORK SHEET'!BX95) -> 200 | G23: =IF('WORK SHEET'!BY95=0," ",'WORK SHEET'!BY95) -> 21692 | H23: =IF('WORK SHEET'!BZ95=0," ",'WORK SHEET'!BZ95) -> 200 | I23: 0
D24: =IF('WORK SHEET'!BP96=0," ",'WORK SHEET'!BP96) -> 2011-07-01 | E24: =IF('WORK SHEET'!BW96=0," ",'WORK SHEET'!BW96) -> 20416 | F24: =IF('WORK SHEET'!BX96=0," ",'WORK SHEET'!BX96) -> 200 | G24: =IF('WORK SHEET'!BY96=0," ",'WORK SHEET'!BY96) -> 21692 | H24: =IF('WORK SHEET'!BZ96=0," ",'WORK SHEET'!BZ96) -> 200 | I24: 0
D25: =IF('WORK SHEET'!BP97=0," ",'WORK SHEET'!BP97) ->  | E25: =IF('WORK SHEET'!BW97=0," ",'WORK SHEET'!BW97) ->  | F25: =IF('WORK SHEET'!BX97=0," ",'WORK SHEET'!BX97) ->  | G25: =IF('WORK SHEET'!BY97=0," ",'WORK SHEET'!BY97) ->  | H25: =IF('WORK SHEET'!BZ97=0," ",'WORK SHEET'!BZ97) -> 
D26: =IF('WORK SHEET'!BP98=0," ",'WORK SHEET'!BP98) ->  | E26: =IF('WORK SHEET'!BW98=0," ",'WORK SHEET'!BW98) ->  | F26: =IF('WORK SHEET'!BX98=0," ",'WORK SHEET'!BX98) ->  | G26: =IF('WORK SHEET'!BY98=0," ",'WORK SHEET'!BY98) ->  | H26: =IF('WORK SHEET'!BZ98=0," ",'WORK SHEET'!BZ98) -> 
D27: =IF('WORK SHEET'!BP99=0," ",'WORK SHEET'!BP99) ->  | E27: =IF('WORK SHEET'!BW99=0," ",'WORK SHEET'!BW99) ->  | F27: =IF('WORK SHEET'!BX99=0," ",'WORK SHEET'!BX99) ->  | G27: =IF('WORK SHEET'!BY99=0," ",'WORK SHEET'!BY99) ->  | H27: =IF('WORK SHEET'!BZ99=0," ",'WORK SHEET'!BZ99) -> 
D28: =IF('WORK SHEET'!BP100=0," ",'WORK SHEET'!BP100) ->  | E28: =IF('WORK SHEET'!BW100=0," ",'WORK SHEET'!BW100) ->  | F28: =IF('WORK SHEET'!BX100=0," ",'WORK SHEET'!BX100) ->  | G28: =IF('WORK SHEET'!BY100=0," ",'WORK SHEET'!BY100) ->  | H28: =IF('WORK SHEET'!BZ100=0," ",'WORK SHEET'!BZ100) -> 
D29: =IF('WORK SHEET'!BP101=0," ",'WORK SHEET'!BP101) ->  | E29: =IF('WORK SHEET'!BW101=0," ",'WORK SHEET'!BW101) ->  | F29: =IF('WORK SHEET'!BX101=0," ",'WORK SHEET'!BX101) ->  | G29: =IF('WORK SHEET'!BY101=0," ",'WORK SHEET'!BY101) ->  | H29: =IF('WORK SHEET'!BZ101=0," ",'WORK SHEET'!BZ101) -> 
C30: TOTAL | I30: =SUM(I7:I29) -> -50
A32: ='WORK SHEET'!AJ155 -> 

Sheet 49-(1P)
A1: A.P.T.C. FORM - 49
A2: (See subsidiary Rule 13 under Treasury Rule 10)
A3: PERIODICAL INCREMENT CERTIFICATE
A4: ANNEXURE
A5: (1) Certified that every Government Servant (s) named below has have been earned and prescribed periodical increment from date / dates noted in column (10) and either I(a) has / have been the incumbent or the appointment indicated against his name / their names for a period not less than _____years since the date in column (5) or (if he has / they have been suspended for misconduct) column (7) after deducting the periods between the dates showing in columns (3) and has (9) and has been subjected in any order of stoppage of increment as panaulty during the periods and during the periods of leave on average pay taken at a time from _____________ to ______________ and from _____________ to _______________ which has / have been counted for increments / in the case of officiating Government servents / Servents named below the / they would have officiated in the post / posts but for his / thier going on leave or __________
A6: sno | B6: Name | C6: Appointment | D6: Whether substantive or officiating | E6: Date from which present pay is drawn | F6: Suspension for misconduct | H6: Leave without pay and in the case of those holding the post temporarily or in an officiating capacity all kinds of leave other than leave on average pay during which they would have continued to officiate in the post but for their going on leave upto a maximum of four months of such leave taken at time. | J6: Date from which increment may be given | K6: Scale of pay | L6: Present pay | M6: Amount of increment | N6: Future pay
F7: From | G7: To | H7: From | I7: To
A8: 1 | B8: 2 | C8: 3 | D8: 4 | E8: 5 | F8: 6 | G8: 7 | H8: 8 | I8: 9 | J8: 10 | K8: 11 | L8: 12 | M8: 13 | N8: 14
J9: ='WORK SHEET'!F108 -> 2010-02-01 | K9: ='WORK SHEET'!L108 -> 14860-39540 | L9: ='WORK SHEET'!I108 -> 14440 | M9: =N9-L9 -> 420 | N9: ='WORK SHEET'!H108 -> 14860
A10: 1 | B10: =CONCATENATE('WORK SHEET'!E2," ",'WORK SHEET'!E54) -> SK.KHAJARAHAMTULLA | J10: =PROCEEDINGS!B33 -> 2010-08-01 | K10: =PROCEEDINGS!F33 -> 14860-39540 | L10: =PROCEEDINGS!D33 -> 14860 | M10: =N10-L10 -> 420 | N10: =PROCEEDINGS!E33 -> 15280
B11: ='WORK SHEET'!E3 -> MPPS(G) | J11: =PROCEEDINGS!B34 ->  | K11: =PROCEEDINGS!F34 ->  | L11: =PROCEEDINGS!D34 ->  | M11: =IF(L11=" "," ",N11-L11) ->  | N11: =PROCEEDINGS!E34 -> 
B12: ='WORK SHEET'!E4 -> POTLAPADU | J12: =PROCEEDINGS!B35 ->  | K12: =PROCEEDINGS!F35 ->  | L12: =PROCEEDINGS!D35 ->  | M12: =IF(J12=" "," ",N12-L12) ->  | N12: =PROCEEDINGS!E35 -> 
B13: =CONCATENATE('WORK SHEET'!E5," ","MANDAL") -> KURICHEDU MANDAL | E13: =CONCATENATE(PROCEEDINGS!H33,PROCEEDINGS!H34) ->  | L13: =PROCEEDINGS!H35 -> 
J16: =PROCEEDINGS!H40 -> MANDAL EDUCATIONAL OFFICER
J17: =PROCEEDINGS!H41 -> MANDAL PARASAD
K18: =PROCEEDINGS!H42 -> KURICHEDU

Sheet 49-(2P)
A1: Note : | B1: 1. When an increment claimed operates to carry Government Servant over an efficiancy hav ethe claim should be supported by a declaration from the competent authority that it has satisfied itself that the character and efficiency of the Government Servant concerned are such that he is fit to pass the above column (5) and (10) to (14) should be filled up in red ink. 2. The terms leave on average pay upto a maximum of 4 months where ever occuring from includes earned leave upto a maximum of 100 days or 50 days or 30 days in case may be for a Government Servants governed by the Andhra Pradesh Leave Rules, 1988 are concerned. 3. The service of the individuals satisfactor and no disciplinary cases are pending against during the period of increment.
A4: CERTIFICATE
A6: (As laid down in Government Memo No.104215 A/1620/Pen.11/56-1, Dated 10-1-1977)
C8: Certified that Sri | D8: =PREAMBLE!D3 -> SK.KHAJARAHAMTULLA, , MPPS(G), POTLAPADU, KURICHEDU MANDAL
A9: whose basic pay is Rs. | C9: =MAX('49-(1P)'!N9:N12) -> 15280 | D9: has already insured under policy No. | H9: ='WORK SHEET'!E11 -> L2107590 | J9: of the Director of Insurances, AP, Hyd
A10: or its Regional Office and monthly premium of Rs. | E10: ='WORK SHEET'!E12 -> 450 | F10: is being deducted from his salary in accordance with the Rules of compalsory insurance
A11: them applicable to AP State Employees and sum of Rs.______________ towards of monthly premium is paid in challan No._________ dated ________
A12: towards of compulsory insurance scheme applicable to Govt. Servants as per G.O.Ms.No.337 F & P dated 3-8-1976.
C14: Certified that the age of Sri | F14: =IF('WORK SHEET'!E121=1,PROCEEDINGS!H18," ") -> 
A15: has exceeded 45 years and hence he can not insure the life with Government Life Insurance Department.
K18: ='49-(1P)'!J16 -> MANDAL EDUCATIONAL OFFICER
K19: ='49-(1P)'!J17 -> MANDAL PARASAD
K20: ='49-(1P)'!K18 -> KURICHEDU

Sheet PREAMBLE (hidden)
A1: PREAMBLE
C3: Sri/Smt./Kum. | D3: =CONCATENATE('WORK SHEET'!E2,", ",'WORK SHEET'!E54,", ",'WORK SHEET'!E3,", ",'WORK SHEET'!E4,", ",'WORK SHEET'!E5," ","MANDAL",) -> SK.KHAJARAHAMTULLA, , MPPS(G), POTLAPADU, KURICHEDU MANDAL
A4: is opted to come under revised pay scales, 2010 with effect from | H4: =#REF! ->  | I4: =#REF! ->  | L4: =CONCATENATE("He/She was drawning existing pay") -> He/She was drawning existing pay
A5: =CONCATENATE("Rs.",#REF!) ->  | C5: =CONCATENATE("in the time scale of ",#REF!,CONCATENATE(" in the cadre of ",#REF!," his/her pay fixed at Rs.",#REF!," in the time scale of ",#REF!)) -> 
A6: =CONCATENATE("and released periodical increments raising pay from Rs.",#REF!," to ",#REF!,#REF!," in the time scale", PROCEEDINGS!#REF!," with effect from") ->  | N6: =PROCEEDINGS!#REF! -> 
A7: =CONCATENATE("and released periodical increments raising pay from Rs.",#REF!," to ",#REF!,#REF!," in the time scale", PROCEEDINGS!#REF!," with effect from") ->  | N7: =PROCEEDINGS!#REF! -> 
A8: =CONCATENATE("and released periodical increments raising pay from Rs.",#REF!,#REF!," to ",#REF!," in the time scale", PROCEEDINGS!#REF!," with effect from") ->  | N8: =PROCEEDINGS!#REF! -> 
A9: ='49-(1P)'!K13 -> 0 | G9: ='49-(1P)'!L13 ->  | H9: =IF('WORK SHEET'!D80=9,CONCATENATE(", as he promoted to ",'WORK SHEET'!E44," ","on ")," ") ->  | M9: =IF(H9=" "," ",'WORK SHEET'!E138) -> 
A12: The difference of pay and allowances from 01-07-2008 to 31-013-2010 are adjusted to notional. The fixation arrears for the period from
A13: 1-2-2010 to 28-2-2010 adjested to p.f. as per G.O.Ms.No.52 Finanace (PC-I) Department dated 25-02-2010.
A14: in the revised pay scales 2010 from 01-03-2010 onwards will be paid in cash accordingly drawn as follows vide Proceedings
A15: =CONCATENATE(" Rc.No.",PROCEEDINGS!C4," dated ") -> Rc.No.2/AAS/2011 dated | D15: ='WORK SHEET'!E15 -> 2011-08-01 | E15: =CONCATENATE("of the ",K26,", ",K27,",",K28) -> of the MANDAL EDUCATIONAL OFFICER, MANDAL PARASAD ,KURICHEDU
A17: Existing Pay Scale | G17: Revised Pay scales, 2010
A19: 1. | B19: 01-07-2008 to 31-12-2008 | E19: 42.39 | F19: % | H19: 1. | I19: 01-07-2008 to 31-12-2008 | N19: --nil--
A20: 2. | B20: 01-01-2009 to 30-06-2009 | E20: 51.81 | F20: % | H20: 2. | I20: 01-01-2009 to 30-06-2009 | N20: 5.136 | O20: %
A21: 3. | B21: 01-07-2009 to 31-12-2009 | E21: 60.288 | F21: % | H21: 3. | I21: 01-07-2009 to 31-12-2009 | N21: 9.416 | O21: %
K26: ='49-(1P)'!J16 -> MANDAL EDUCATIONAL OFFICER
K27: ='49-(1P)'!J17 -> MANDAL PARASAD
K28: ='49-(1P)'!K18 -> KURICHEDU

Sheet Sheet1

Sheet Sheet2

Sheet Sheet3
